Workbook

Sheet Dates by Week
B1: FLcap-1 | C1: FLcap-2 | D1: TXweb-1 | E1: TXweb-2 | F1: FLec-1 | G1: FLec-2 | H1: TXjbs-1 | I1: TXjbs-2 | J1: FLsw-1 | K1: FLsw-2 | L1: FLne-1 | M1: FLne-2 | N1: LAma-1 | O1: GA-1 | P1: GA-2 | Q1: VAn-1 | R1: VAn-2 | S1: LAknf-1 | T1: NJdf-1 | U1: NJdf-2 | V1: TNhb-1 | W1: TNhb-2 | X1: TNbc-1 | Y1: TNbc-2 | Z1: TNbc-3 | AA1: PAhan-1 | AB1: PAhan-2 | AC1: CAsc-1 | AD1: CAsc-2 | AE1: PAfc-1 | AF1: PAfc-2 | AG1: PAfc-3 | AH1: WV-1 | AI1: WV-2 | AJ1: CAred-1 | AK1: CAred-2 | AL1: CAred-3 | AM1: TNjc-1 | AN1: TNjc-2 | AO1: TNjc-3 | AP1: PAhay-1 | AQ1: PAhay-2 | AR1: PAhay-3 | AS1: ILtrio-1 | AT1: ILtrio-2 | AU1: ILtrio-3 | AV1: IAdn-1 | AW1: IAdn-2 | AX1: MNdnr-1 | AY1: MNdnr-2 | AZ1: MNdnr-3 | BA1: INnd-1 | BB1: INnd-2 | BC1: INnd-3 | BD1: BCsr-1 | BE1: BCsr-2 | BF1: IA-1 | BG1: IA-2 | BH1: IA-3 | BI1: OHal-1 | BJ1: OHal-2 | BK1: OHal-3 | BL1: CAth-1 | BM1: COsl-1 | BN1: COsl-2 | BO1: BCd2-1 | BP1: BCd2-2 | BQ1: PAhar-1 | BR1: PAhar-2 | BS1: CO-1 | BT1: CO-2 | BU1: MEpr-1 | BV1: BCwr-1 | BW1: BCwr-2 | BX1: AKgg-1 | BY1: Aus-1 | BZ1: Aus-2 | CA1: TNdh-1 | CB1: TNdh-2 | CC1: TNdh-3 | CD1: OKsq-1 | CE1: MDpt-1 | CF1: MDpt-2 | CG1: DC1-1 | CH1: DC1-2 | CI1: FLsw2-1 | CJ1: FLsw2-2 | CK1: MTmc-1 | CL1: MTmc-2 | CM1: MTmc-3 | CN1: OHaa-1 | CO1: OHaa-2 | CP1: TNdw-1 | CQ1: TNdw-2 | CR1: IAdav-1 | CS1: IAdav-2 | CT1: BCh-1 | CU1: BCh-2 | CV1: AKken-1 | CW1: AKken-2 | CX1: CAbc-1 | CY1: CAbc-2 | CZ1: CAwe-1 | DA1: CAcp-1 | DB1: CAtc-1 | DC1: CAtc-2 | DD1: CAlop-1 | DE1: CAlop-2 | DF1: CAsr-1 | DG1: CAsr-2 | DH1: MO-1 | DI1: MO-2 | DJ1: CAfp-1 | DK1: CAfp-2 | DL1: CO-1 | DM1: CO-2 | DN1: CAph-1 | DO1: CAph-2 | DP1: CApr-1 | DQ1: CArc-1 | DR1: BCl-1 | DS1: ME-1 | DT1: ME-2 | DU1: MT-1 | DV1: MT-2 | DW1: WAlw-1 | DX1: WAlw-2 | DY1: CAhaz-1 | DZ1: NCjl-1 | EA1: CAlp-1 | EB1: CAlp-2 | EC1: OKsl-1 | ED1: OKsl-2 | EE1: OKsl-3 | EF1: OKsl-4 | EG1: CAmr-1 | EH1: BCs-1 | EI1: Wlw-1 | EJ1: Wlw-2 | EK1: CAhb-1 | EL1: CAhb-2 | EM1: BChm-1 | EN1: BChm-2 | EO1: WI-1 | EP1: WI-2 | EQ1: WIwr-1 | ER1: WIwr-2 | ES1: MD-1 | ET1: MD-2 | EU1: YT-1 | EV1: YT-2 | EW1: YT-3 | EX1: Africa-1 | EY1: Africa-2
A2: hatch | B2: 2020-12-14 | C2: 2020-12-14 | D2: 2021-01-17 | E2: 2021-01-18 | H2: 2021-01-21 | J2: 2021-01-23 | K2: 2021-01-23 | L2: 2021-02-08 | N2: 2021-02-09 | O2: 2021-02-10 | Q2: 2021-02-20 | R2: ~2/22/21 | S2: 2021-02-23 | T2: 2021-02-26 | U2: 2021-03-02 | V2: 2021-03-04 | W2: 2021-03-04 | X2: 2021-03-05 | Y2: 2021-03-06 | AA2: 2021-03-13 | AC2: 2021-03-15 | AE2: 2021-03-17 | AF2: ~3/18/21 | AG2: ~3/20/21 | AH2: 2021-03-20 | AI2: 2021-03-22 | AJ2: 2021-03-21 | AK2: 2021-03-22 | AL2: 2021-03-24 | AM2: 2021-03-21 | AN2: 2021-03-22 | AO2: 2021-03-22 | AP2: 2021-03-23 | AQ2: 2021-03-23 | AR2: 2021-03-27 | AS2: ~3/24/21 | AT2: ~3/26/21 | AU2: ~3/28/21 | AV2: 2021-03-25 | AW2: 2021-03-27 | AX2: 2021-03-26 | AY2: 2021-03-28 | BA2: 2021-03-29 | BB2: 2021-03-31 | BD2: 2021-04-03 | BE2: 2021-04-04 | BF2: ~4/4/21 | BG2: ~4/4/21 | BH2: ~4/6/21 | BI2: 2021-04-04 | BJ2: 2021-04-05 | BK2: 2021-04-08 | BL2: 2021-04-07 | BM2: 2021-04-07 | BN2: ?4/8/21 | BO2: 2021-04-08 | BP2: 2021-04-10 | BQ2: 2021-04-08 | BR2: 2022-04-10 | BS2: 2021-04-14 | BT2: 2021-04-17 | BU2: <4/15/21 | BV2: 2021-05-15 | BX2: 2021-05-27 | BY2: 2021-07-29 | BZ2: 2021-07-31
A3: 1 | B3: 2020-12-15 | C3: 2020-12-15 | D3: 2021-01-18 | E3: 2021-01-19 | H3: 2021-01-22 | J3: 2021-01-24 | K3: 2021-01-24 | L3: 2021-02-09 | N3: 2021-02-10 | O3: died | Q3: 2021-02-21 | R3: 2021-02-23 | S3: 2021-02-24 | T3: 2021-02-27 | U3: 2021-03-03 | V3: 2021-03-05 | W3: 2021-03-05 | X3: 2021-03-06 | Y3: 2021-03-07 | AA3: 2021-03-14 | AC3: 2021-03-16 | AE3: 2021-03-18 | AF3: 2021-03-19 | AG3: 2021-03-21 | AH3: 2021-03-21 | AI3: 2021-03-23 | AJ3: 2021-03-22 | AK3: 2021-03-23 | AL3: 2021-03-25 | AM3: 2021-03-22 | AN3: 2021-03-23 | AO3: 2021-03-23 | AP3: 2021-03-24 | AQ3: 2021-03-24 | AR3: 2021-03-28 | AS3: 2021-03-25 | AT3: 2021-03-27 | AU3: 2021-03-29 | AV3: 2021-03-26 | AW3: 2021-03-28 | AX3: 2021-03-27 | AY3: 2021-03-29 | BA3: 2021-03-30 | BB3: 2021-04-01 | BD3: 2021-04-04 | BE3: 2021-04-05 | BF3: 2021-04-05 | BG3: 2021-04-05 | BH3: 2021-04-07 | BI3: 2021-04-05 | BJ3: 2021-04-06 | BK3: 2021-04-09 | BL3: 2021-04-08 | BM3: 2021-04-08 | BN3: not seen | BO3: 2021-04-09 | BP3: 2021-04-11 | BQ3: 2021-04-09 | BR3: 2022-04-11 | BS3: died | BT3: 2021-04-18 | BU3: 2021-04-16 | BV3: 2021-05-16 | BX3: 2021-05-28 | BY3: 2021-07-30 | BZ3: 2021-08-01
A4: 2 | B4: 2020-12-16 | C4: 2020-12-16 | D4: 2021-01-19 | E4: died | H4: died | J4: 2021-01-25 | K4: 2021-01-25 | L4: 2021-02-10 | N4: 2021-02-11 | Q4: 2021-02-22 | R4: 2021-02-24 | S4: 2021-02-25 | T4: 2021-02-28 | U4: 2021-03-04 | V4: 2021-03-06 | W4: 2021-03-06 | X4: 2021-03-07 | Y4: 2021-03-08 | AA4: 2021-03-15 | AC4: 2021-03-17 | AE4: 2021-03-19 | AF4: 2021-03-20 | AG4: 2021-03-22 | AH4: 2021-03-22 | AI4: 2021-03-24 | AJ4: 2021-03-23 | AK4: 2021-03-24 | AL4: 2021-03-26 | AM4: died | AN4: 2021-03-24 | AO4: 2021-03-24 | AP4: 2021-03-25 | AQ4: 2021-03-25 | AR4: 2021-03-29 | AS4: 2021-03-26 | AT4: 2021-03-28 | AU4: 2021-03-30 | AV4: 2021-03-27 | AW4: 2021-03-29 | AX4: 2021-03-28 | AY4: 2021-03-30 | BA4: 2021-03-31 | BB4: 2021-04-02 | BD4: 2021-04-05 | BE4: 2021-04-06 | BF4: 2021-04-06 | BG4: 2021-04-06 | BH4: 2021-04-08 | BI4: 2021-04-06 | BJ4: 2021-04-07 | BK4: 2021-04-10 | BL4: 2021-04-09 | BM4: 2021-04-09 | BO4: 2021-04-10 | BP4: 2021-04-12 | BQ4: 2021-04-10 | BR4: 2022-04-12 | BT4: 2021-04-19 | BU4: 2021-04-17 | BV4: 2021-05-17 | BX4: 2021-05-29 | BY4: 2021-07-31 | BZ4: 2021-08-02
A5: 3 | B5: 2020-12-17 | C5: 2020-12-17 | D5: died | J5: 2021-01-26 | K5: 2021-01-26 | L5: 2021-02-11 | N5: 2021-02-12 | Q5: 2021-02-23 | R5: 2021-02-25 | S5: 2021-02-26 | T5: 2021-03-01 | U5: 2021-03-05 | V5: 2021-03-07 | W5: 2021-03-07 | X5: 2021-03-08 | Y5: 2021-03-09 | AA5: 2021-03-16 | AC5: 2021-03-18 | AE5: 2021-03-20 | AF5: 2021-03-21 | AG5: 2021-03-23 | AH5: 2021-03-23 | AI5: 2021-03-25 | AJ5: 2021-03-24 | AK5: 2021-03-25 | AL5: 2021-03-27 | AN5: 2021-03-25 | AO5: 2021-03-25 | AP5: 2021-03-26 | AQ5: 2021-03-26 | AR5: 2021-03-30 | AS5: 2021-03-27 | AT5: 2021-03-29 | AU5: 2021-03-31 | AV5: 2021-03-28 | AW5: 2021-03-30 | AX5: 2021-03-29 | AY5: 2021-03-31 | BA5: 2021-04-01 | BB5: 2021-04-03 | BD5: 2021-04-06 | BE5: 2021-04-07 | BF5: 2021-04-07 | BG5: 2021-04-07 | BH5: 2021-04-09 | BI5: 2021-04-07 | BJ5: 2021-04-08 | BK5: 2021-04-11 | BL5: 2021-04-10 | BM5: 2021-04-10 | BO5: 2021-04-11 | BP5: 2021-04-13 | BQ5: 2021-04-11 | BR5: 2022-04-13 | BT5: 2021-04-20 | BU5: 2021-04-18 | BV5: 2021-05-18 | BX5: 2021-05-30 | BY5: 2021-08-01 | BZ5: 2021-08-03
A6: 4 | B6: 2020-12-18 | C6: 2020-12-18 | J6: 2021-01-27 | K6: 2021-01-27 | L6: 2021-02-12 | N6: 2021-02-13 | Q6: 2021-02-24 | R6: 2021-02-26 | S6: 2021-02-27 | T6: 2021-03-02 | U6: 2021-03-06 | V6: 2021-03-08 | W6: 2021-03-08 | X6: 2021-03-09 | Y6: 2021-03-10 | AA6: 2021-03-17 | AC6: 2021-03-19 | AE6: 2021-03-21 | AF6: 2021-03-22 | AG6: 2021-03-24 | AH6: 2021-03-24 | AI6: 2021-03-26 | AJ6: 2021-03-25 | AK6: 2021-03-26 | AL6: 2021-03-28 | AN6: 2021-03-26 | AO6: 2021-03-26 | AP6: 2021-03-27 | AQ6: 2021-03-27 | AR6: 2021-03-31 | AS6: 2021-03-28 | AT6: 2021-03-30 | AU6: 2021-04-01 | AV6: 2021-03-29 | AW6: 2021-03-31 | AX6: 2021-03-30 | AY6: 2021-04-01 | BA6: 2021-04-02 | BB6: 2021-04-04 | BD6: 2021-04-07 | BE6: 2021-04-08 | BF6: 2021-04-08 | BG6: 2021-04-08 | BH6: 2021-04-10 | BI6: 2021-04-08 | BJ6: 2021-04-09 | BK6: 2021-04-12 | BL6: 2021-04-11 | BM6: 2021-04-11 | BO6: 2021-04-12 | BP6: 2021-04-14 | BQ6: 2021-04-12 | BR6: 2022-04-14 | BT6: 2021-04-21 | BU6: 2021-04-19 | BV6: 2021-05-19 | BX6: 2021-05-31 | BY6: 2021-08-02 | BZ6: 2021-08-04
A7: 5 | B7: 2020-12-19 | C7: 2020-12-19 | J7: 2021-01-28 | K7: 2021-01-28 | L7: 2021-02-13 | N7: 2021-02-14 | Q7: 2021-02-25 | R7: 2021-02-27 | S7: 2021-02-28 | T7: 2021-03-03 | U7: 2021-03-07 | V7: 2021-03-09 | W7: 2021-03-09 | X7: 2021-03-10 | Y7: 2021-03-11 | AA7: 2021-03-18 | AC7: 2021-03-20 | AE7: 2021-03-22 | AF7: 2021-03-23 | AG7: 2021-03-25 | AH7: 2021-03-25 | AI7: 2021-03-27 | AJ7: 2021-03-26 | AK7: 2021-03-27 | AL7: 2021-03-29 | AN7: 2021-03-27 | AO7: 2021-03-27 | AP7: 2021-03-28 | AQ7: 2021-03-28 | AR7: 2021-04-01 | AS7: 2021-03-29 | AT7: 2021-03-31 | AU7: 2021-04-02 | AV7: 2021-03-30 | AW7: 2021-04-01 | AX7: 2021-03-31 | AY7: 2021-04-02 | BA7: 2021-04-03 | BB7: 2021-04-05 | BD7: 2021-04-08 | BE7: 2021-04-09 | BF7: 2021-04-09 | BG7: 2021-04-09 | BH7: 2021-04-11 | BI7: 2021-04-09 | BJ7: 2021-04-10 | BK7: 2021-04-13 | BL7: 2021-04-12 | BM7: 2021-04-12 | BO7: 2021-04-13 | BP7: 2021-04-15 | BQ7: 2021-04-13 | BR7: 2022-04-15 | BT7: 2021-04-22 | BU7: 2021-04-20 | BV7: 2021-05-20 | BX7: 2021-06-01 | BY7: 2021-08-03 | BZ7: 2021-08-05
A8: 6 | B8: 2020-12-20 | C8: 2020-12-20 | J8: 2021-01-29 | K8: 2021-01-29 | L8: 2021-02-14 | N8: 2021-02-15 | Q8: 2021-02-26 | R8: 2021-02-28 | S8: 2021-03-01 | T8: 2021-03-04 | U8: 2021-03-08 | V8: 2021-03-10 | W8: 2021-03-10 | X8: 2021-03-11 | Y8: 2021-03-12 | AA8: 2021-03-19 | AC8: 2021-03-21 | AE8: 2021-03-23 | AF8: 2021-03-24 | AG8: 2021-03-26 | AH8: 2021-03-26 | AI8: 2021-03-28 | AJ8: 2021-03-27 | AK8: 2021-03-28 | AL8: 2021-03-30 | AN8: 2021-03-28 | AO8: 2021-03-28 | AP8: 2021-03-29 | AQ8: 2021-03-29 | AR8: 2021-04-02 | AS8: 2021-03-30 | AT8: 2021-04-01 | AU8: 2021-04-03 | AV8: 2021-03-31 | AW8: 2021-04-02 | AX8: 2021-04-01 | AY8: 2021-04-03 | BA8: 2021-04-04 | BB8: 2021-04-06 | BD8: 2021-04-09 | BE8: 2021-04-10 | BF8: 2021-04-10 | BG8: 2021-04-10 | BH8: 2021-04-12 | BI8: 2021-04-10 | BJ8: 2021-04-11 | BK8: 2021-04-14 | BL8: 2021-04-13 | BM8: 2021-04-13 | BO8: 2021-04-14 | BP8: 2021-04-16 | BQ8: 2021-04-14 | BR8: 2022-04-16 | BT8: 2021-04-23 | BU8: 2021-04-21 | BV8: 2021-05-21 | BX8: 2021-06-02 | BY8: 2021-08-04 | BZ8: 2021-08-06
A9: 1 week | B9: 2020-12-21 | C9: 2020-12-21 | J9: 2021-01-30 | K9: 2021-01-30 | L9: 2021-02-15 | N9: 2021-02-16 | Q9: 2021-02-27 | R9: 2021-03-01 | S9: 2021-03-02 | T9: 2021-03-05 | U9: 2021-03-09 | V9: 2021-03-11 | W9: 2021-03-11 | X9: 2021-03-12 | Y9: 2021-03-13 | AA9: 2021-03-20 | AC9: 2021-03-22 | AE9: 2021-03-24 | AF9: 2021-03-25 | AG9: 2021-03-27 | AH9: 2021-03-27 | AI9: 2021-03-29 | AJ9: 2021-03-28 | AK9: 2021-03-29 | AL9: 2021-03-31 | AN9: 2021-03-29 | AO9: 2021-03-29 | AP9: 2021-03-30 | AQ9: 2021-03-30 | AR9: 2021-04-03 | AS9: 2021-03-31 | AT9: 2021-04-02 | AU9: 2021-04-04 | AV9: 2021-04-01 | AW9: 2021-04-03 | AX9: 2021-04-02 | AY9: 2021-04-04 | BA9: 2021-04-05 | BB9: 2021-04-07 | BD9: 2021-04-10 | BE9: 2021-04-11 | BF9: 2021-04-11 | BG9: 2021-04-11 | BH9: 2021-04-13 | BI9: 2021-04-11 | BJ9: 2021-04-12 | BK9: 2021-04-15 | BL9: 2021-04-14 | BM9: 2021-04-14 | BO9: 2021-04-15 | BP9: 2021-04-17 | BQ9: 2021-04-15 | BR9: 2022-04-17 | BT9: 2021-04-24 | BU9: 2021-04-22 | BV9: 2021-05-22 | BX9: 2021-06-03 | BY9: 2021-08-05 | BZ9: 2021-08-07
A10: 8 | B10: 2020-12-22 | C10: 2020-12-22 | J10: 2021-01-31 | K10: 2021-01-31 | L10: 2021-02-16 | N10: 2021-02-17 | Q10: 2021-02-28 | R10: 2021-03-02 | S10: 2021-03-03 | T10: 2021-03-06 | U10: 2021-03-10 | V10: 2021-03-12 | W10: 2021-03-12 | X10: 2021-03-13 | Y10: 2021-03-14 | AA10: 2021-03-21 | AC10: 2021-03-23 | AE10: 2021-03-25 | AF10: 2021-03-26 | AG10: 2021-03-28 | AH10: 2021-03-28 | AI10: 2021-03-30 | AJ10: 2021-03-29 | AK10: 2021-03-30 | AL10: 2021-04-01 | AN10: 2021-03-30 | AO10: 2021-03-30 | AP10: 2021-03-31 | AQ10: 2021-03-31 | AR10: 2021-04-04 | AS10: 2021-04-01 | AT10: 2021-04-03 | AU10: 2021-04-05 | AV10: 2021-04-02 | AW10: 2021-04-04 | AX10: 2021-04-03 | AY10: 2021-04-05 | BA10: 2021-04-06 | BB10: 2021-04-08 | BD10: 2021-04-11 | BE10: 2021-04-12 | BF10: 2021-04-12 | BG10: 2021-04-12 | BH10: 2021-04-14 | BI10: 2021-04-12 | BJ10: 2021-04-13 | BK10: 2021-04-16 | BL10: 2021-04-15 | BM10: 2021-04-15 | BO10: 2021-04-16 | BP10: 2021-04-18 | BQ10: 2021-04-16 | BR10: 2022-04-18 | BT10: 2021-04-25 | BU10: 2021-04-23 | BV10: 2021-05-23 | BX10: 2021-06-04 | BY10: 2021-08-06 | BZ10: 2021-08-08
A11: 9 | B11: 2020-12-23 | C11: 2020-12-23 | J11: 2021-02-01 | K11: 2021-02-01 | L11: 2021-02-17 | N11: 2021-02-18 | Q11: 2021-03-01 | R11: 2021-03-03 | S11: 2021-03-04 | T11: 2021-03-07 | U11: 2021-03-11 | V11: 2021-03-13 | W11: 2021-03-13 | X11: 2021-03-14 | Y11: 2021-03-15 | AA11: 2021-03-22 | AC11: 2021-03-24 | AE11: 2021-03-26 | AF11: 2021-03-27 | AG11: 2021-03-29 | AH11: 2021-03-29 | AI11: 2021-03-31 | AJ11: 2021-03-30 | AK11: 2021-03-31 | AL11: 2021-04-02 | AN11: 2021-03-31 | AO11: 2021-03-31 | AP11: 2021-04-01 | AQ11: 2021-04-01 | AR11: 2021-04-05 | AS11: 2021-04-02 | AT11: 2021-04-04 | AU11: 2021-04-06 | AV11: 2021-04-03 | AW11: 2021-04-05 | AX11: 2021-04-04 | AY11: 2021-04-06 | BA11: 2021-04-07 | BB11: 2021-04-09 | BD11: 2021-04-12 | BE11: 2021-04-13 | BF11: 2021-04-13 | BG11: 2021-04-13 | BH11: 2021-04-15 | BI11: 2021-04-13 | BJ11: 2021-04-14 | BK11: 2021-04-17 | BL11: 2021-04-16 | BM11: 2021-04-16 | BO11: 2021-04-17 | BP11: 2021-04-19 | BQ11: 2021-04-17 | BR11: 2022-04-19 | BT11: 2021-04-26 | BU11: 2021-04-24 | BV11: 2021-05-24 | BX11: 2021-06-05 | BY11: 2021-08-07 | BZ11: 2021-08-09
A12: 10 | B12: 2020-12-24 | C12: 2020-12-24 | J12: 2021-02-02 | K12: 2021-02-02 | L12: 2021-02-18 | N12: 2021-02-19 | Q12: 2021-03-02 | R12: 2021-03-04 | S12: 2021-03-05 | T12: 2021-03-08 | U12: 2021-03-12 | V12: 2021-03-14 | W12: 2021-03-14 | X12: 2021-03-15 | Y12: 2021-03-16 | AA12: 2021-03-23 | AC12: 2021-03-25 | AE12: 2021-03-27 | AF12: 2021-03-28 | AG12: 2021-03-30 | AH12: 2021-03-30 | AI12: 2021-04-01 | AJ12: 2021-03-31 | AK12: 2021-04-01 | AL12: 2021-04-03 | AN12: 2021-04-01 | AO12: 2021-04-01 | AP12: 2021-04-02 | AQ12: 2021-04-02 | AR12: 2021-04-06 | AS12: 2021-04-03 | AT12: 2021-04-05 | AU12: 2021-04-07 | AV12: 2021-04-04 | AW12: 2021-04-06 | AX12: 2021-04-05 | AY12: 2021-04-07 | BA12: 2021-04-08 | BB12: 2021-04-10 | BD12: 2021-04-13 | BE12: 2021-04-14 | BF12: 2021-04-14 | BG12: 2021-04-14 | BH12: 2021-04-16 | BI12: 2021-04-14 | BJ12: 2021-04-15 | BK12: 2021-04-18 | BL12: 2021-04-17 | BM12: 2021-04-17 | BO12: 2021-04-18 | BP12: 2021-04-20 | BQ12: 2021-04-18 | BR12: 2022-04-20 | BT12: 2021-04-27 | BU12: 2021-04-25 | BV12: 2021-05-25 | BX12: 2021-06-06 | BY12: 2021-08-08 | BZ12: 2021-08-10
A13: 11 | B13: 2020-12-25 | C13: 2020-12-25 | J13: 2021-02-03 | K13: 2021-02-03 | L13: 2021-02-19 | N13: 2021-02-20 | Q13: 2021-03-03 | R13: 2021-03-05 | S13: 2021-03-06 | T13: 2021-03-09 | U13: 2021-03-13 | V13: 2021-03-15 | W13: 2021-03-15 | X13: 2021-03-16 | Y13: 2021-03-17 | AA13: 2021-03-24 | AC13: 2021-03-26 | AE13: 2021-03-28 | AF13: 2021-03-29 | AG13: 2021-03-31 | AH13: 2021-03-31 | AI13: 2021-04-02 | AJ13: 2021-04-01 | AK13: 2021-04-02 | AL13: 2021-04-04 | AN13: 2021-04-02 | AO13: 2021-04-02 | AP13: 2021-04-03 | AQ13: 2021-04-03 | AR13: 2021-04-07 | AS13: 2021-04-04 | AT13: 2021-04-06 | AU13: 2021-04-08 | AV13: 2021-04-05 | AW13: 2021-04-07 | AX13: 2021-04-06 | AY13: 2021-04-08 | BA13: 2021-04-09 | BB13: 2021-04-11 | BD13: 2021-04-14 | BE13: 2021-04-15 | BF13: 2021-04-15 | BG13: 2021-04-15 | BH13: 2021-04-17 | BI13: 2021-04-15 | BJ13: 2021-04-16 | BK13: 2021-04-19 | BL13: 2021-04-18 | BM13: 2021-04-18 | BO13: 2021-04-19 | BP13: 2021-04-21 | BQ13: 2021-04-19 | BR13: 2022-04-21 | BT13: 2021-04-28 | BU13: 2021-04-26 | BV13: 2021-05-26 | BX13: 2021-06-07 | BY13: 2021-08-09 | BZ13: 2021-08-11
A14: 12 | B14: 2020-12-26 | C14: 2020-12-26 | J14: 2021-02-04 | K14: 2021-02-04 | L14: 2021-02-20 | N14: 2021-02-21 | Q14: 2021-03-04 | R14: 2021-03-06 | S14: 2021-03-07 | T14: 2021-03-10 | U14: 2021-03-14 | V14: 2021-03-16 | W14: 2021-03-16 | X14: 2021-03-17 | Y14: 2021-03-18 | AA14: 2021-03-25 | AC14: 2021-03-27 | AE14: 2021-03-29 | AF14: 2021-03-30 | AG14: 2021-04-01 | AH14: 2021-04-01 | AI14: 2021-04-03 | AJ14: 2021-04-02 | AK14: 2021-04-03 | AL14: 2021-04-05 | AN14: 2021-04-03 | AO14: 2021-04-03 | AP14: 2021-04-04 | AQ14: 2021-04-04 | AR14: 2021-04-08 | AS14: 2021-04-05 | AT14: 2021-04-07 | AU14: 2021-04-09 | AV14: 2021-04-06 | AW14: 2021-04-08 | AX14: 2021-04-07 | AY14: 2021-04-09 | BA14: 2021-04-10 | BB14: 2021-04-12 | BD14: 2021-04-15 | BE14: 2021-04-16 | BF14: 2021-04-16 | BG14: 2021-04-16 | BH14: 2021-04-18 | BI14: 2021-04-16 | BJ14: 2021-04-17 | BK14: 2021-04-20 | BL14: 2021-04-19 | BM14: 2021-04-19 | BO14: 2021-04-20 | BP14: 2021-04-22 | BQ14: 2021-04-20 | BR14: 2022-04-22 | BT14: 2021-04-29 | BU14: 2021-04-27 | BV14: 2021-05-27 | BX14: 2021-06-08 | BY14: 2021-08-10 | BZ14: 2021-08-12
A15: 13 | B15: 2020-12-27 | C15: 2020-12-27 | J15: 2021-02-05 | K15: 2021-02-05 | L15: 2021-02-21 | N15: 2021-02-22 | Q15: 2021-03-05 | R15: 2021-03-07 | S15: 2021-03-08 | T15: 2021-03-11 | U15: 2021-03-15 | V15: 2021-03-17 | W15: 2021-03-17 | X15: 2021-03-18 | Y15: 2021-03-19 | AA15: 2021-03-26 | AC15: 2021-03-28 | AE15: 2021-03-30 | AF15: 2021-03-31 | AG15: 2021-04-02 | AH15: 2021-04-02 | AI15: 2021-04-04 | AJ15: 2021-04-03 | AK15: 2021-04-04 | AL15: 2021-04-06 | AN15: 2021-04-04 | AO15: 2021-04-04 | AP15: 2021-04-05 | AQ15: 2021-04-05 | AR15: 2021-04-09 | AS15: 2021-04-06 | AT15: 2021-04-08 | AU15: 2021-04-10 | AV15: 2021-04-07 | AW15: 2021-04-09 | AX15: 2021-04-08 | AY15: 2021-04-10 | BA15: 2021-04-11 | BB15: 2021-04-13 | BD15: 2021-04-16 | BE15: 2021-04-17 | BF15: 2021-04-17 | BG15: 2021-04-17 | BH15: 2021-04-19 | BI15: 2021-04-17 | BJ15: 2021-04-18 | BK15: 2021-04-21 | BL15: 2021-04-20 | BM15: 2021-04-20 | BO15: 2021-04-21 | BP15: 2021-04-23 | BQ15: 2021-04-21 | BR15: 2022-04-23 | BT15: 2021-04-30 | BU15: 2021-04-28 | BV15: 2021-05-28 | BX15: 2021-06-09 | BY15: 2021-08-11 | BZ15: 2021-08-13
A16: 2 weeks | B16: 2020-12-28 | C16: 2020-12-28 | J16: 2021-02-06 | K16: 2021-02-06 | L16: 2021-02-22 | N16: 2021-02-23 | Q16: 2021-03-06 | R16: 2021-03-08 | S16: 2021-03-09 | T16: 2021-03-12 | U16: 2021-03-16 | V16: 2021-03-18 | W16: 2021-03-18 | X16: 2021-03-19 | Y16: 2021-03-20 | AA16: 2021-03-27 | AC16: 2021-03-29 | AE16: 2021-03-31 | AF16: 2021-04-01 | AG16: 2021-04-03 | AH16: 2021-04-03 | AI16: 2021-04-05 | AJ16: 2021-04-04 | AK16: 2021-04-05 | AL16: 2021-04-07 | AN16: 2021-04-05 | AO16: 2021-04-05 | AP16: 2021-04-06 | AQ16: 2021-04-06 | AR16: 2021-04-10 | AS16: 2021-04-07 | AT16: 2021-04-09 | AU16: 2021-04-11 | AV16: 2021-04-08 | AW16: 2021-04-10 | AX16: 2021-04-09 | AY16: 2021-04-11 | BA16: 2021-04-12 | BB16: 2021-04-14 | BD16: 2021-04-17 | BE16: 2021-04-18 | BF16: 2021-04-18 | BG16: 2021-04-18 | BH16: 2021-04-20 | BI16: 2021-04-18 | BJ16: 2021-04-19 | BK16: 2021-04-22 | BL16: 2021-04-21 | BM16: 2021-04-21 | BO16: 2021-04-22 | BP16: 2021-04-24 | BQ16: 2021-04-22 | BR16: 2022-04-24 | BT16: 2021-05-01 | BU16: 2021-04-29 | BV16: 2021-05-29 | BX16: 2021-06-10 | BY16: 2021-08-12 | BZ16: 2021-08-14
A17: 15 | B17: 2020-12-29 | C17: 2020-12-29 | J17: 2021-02-07 | K17: 2021-02-07 | L17: 2021-02-23 | N17: 2021-02-24 | Q17: 2021-03-07 | R17: 2021-03-09 | S17: 2021-03-10 | T17: 2021-03-13 | U17: 2021-03-17 | V17: 2021-03-19 | W17: 2021-03-19 | X17: 2021-03-20 | Y17: 2021-03-21 | AA17: 2021-03-28 | AC17: 2021-03-30 | AE17: 2021-04-01 | AF17: 2021-04-02 | AG17: 2021-04-04 | AH17: 2021-04-04 | AI17: 2021-04-06 | AJ17: 2021-04-05 | AK17: 2021-04-06 | AL17: 2021-04-08 | AN17: 2021-04-06 | AO17: 2021-04-06 | AP17: 2021-04-07 | AQ17: 2021-04-07 | AR17: 2021-04-11 | AS17: 2021-04-08 | AT17: 2021-04-10 | AU17: 2021-04-12 | AV17: 2021-04-09 | AW17: 2021-04-11 | AX17: 2021-04-10 | AY17: 2021-04-12 | BA17: 2021-04-13 | BB17: 2021-04-15 | BD17: 2021-04-18 | BE17: 2021-04-19 | BF17: 2021-04-19 | BG17: 2021-04-19 | BH17: 2021-04-21 | BI17: 2021-04-19 | BJ17: 2021-04-20 | BK17: 2021-04-23 | BL17: 2021-04-22 | BM17: 2021-04-22 | BO17: 2021-04-23 | BP17: 2021-04-25 | BQ17: 2021-04-23 | BR17: 2022-04-25 | BT17: 2021-05-02 | BU17: 2021-04-30 | BV17: 2021-05-30 | BX17: 2021-06-11 | BY17: 2021-08-13 | BZ17: 2021-08-15
A18: 16 | B18: 2020-12-30 | C18: 2020-12-30 | J18: 2021-02-08 | K18: 2021-02-08 | L18: 2021-02-24 | N18: 2021-02-25 | Q18: 2021-03-08 | R18: 2021-03-10 | S18: 2021-03-11 | T18: 2021-03-14 | U18: 2021-03-18 | V18: 2021-03-20 | W18: 2021-03-20 | X18: 2021-03-21 | Y18: 2021-03-22 | AA18: 2021-03-29 | AC18: 2021-03-31 | AE18: 2021-04-02 | AF18: 2021-04-03 | AG18: 2021-04-05 | AH18: 2021-04-05 | AI18: 2021-04-07 | AJ18: 2021-04-06 | AK18: 2021-04-07 | AL18: 2021-04-09 | AN18: 2021-04-07 | AO18: 2021-04-07 | AP18: 2021-04-08 | AQ18: 2021-04-08 | AR18: 2021-04-12 | AS18: 2021-04-09 | AT18: 2021-04-11 | AU18: 2021-04-13 | AV18: 2021-04-10 | AW18: 2021-04-12 | AX18: 2021-04-11 | AY18: 2021-04-13 | BA18: 2021-04-14 | BB18: 2021-04-16 | BD18: 2021-04-19 | BE18: 2021-04-20 | BF18: 2021-04-20 | BG18: 2021-04-20 | BH18: 2021-04-22 | BI18: 2021-04-20 | BJ18: 2021-04-21 | BK18: 2021-04-24 | BL18: 2021-04-23 | BM18: 2021-04-23 | BO18: 2021-04-24 | BP18: 2021-04-26 | BQ18: 2021-04-24 | BR18: 2022-04-26 | BT18: 2021-05-03 | BU18: 2021-05-01 | BV18: 2021-05-31 | BX18: 2021-06-12 | BY18: 2021-08-14 | BZ18: 2021-08-16
A19: 17 | B19: 2020-12-31 | C19: 2020-12-31 | J19: 2021-02-09 | K19: 2021-02-09 | L19: 2021-02-25 | N19: 2021-02-26 | Q19: 2021-03-09 | R19: 2021-03-11 | S19: 2021-03-12 | T19: 2021-03-15 | U19: 2021-03-19 | V19: 2021-03-21 | W19: 2021-03-21 | X19: 2021-03-22 | Y19: 2021-03-23 | AA19: 2021-03-30 | AC19: 2021-04-01 | AE19: 2021-04-03 | AF19: 2021-04-04 | AG19: 2021-04-06 | AH19: 2021-04-06 | AI19: 2021-04-08 | AJ19: 2021-04-07 | AK19: 2021-04-08 | AL19: 2021-04-10 | AN19: 2021-04-08 | AO19: 2021-04-08 | AP19: 2021-04-09 | AQ19: 2021-04-09 | AR19: 2021-04-13 | AS19: 2021-04-10 | AT19: 2021-04-12 | AU19: 2021-04-14 | AV19: 2021-04-11 | AW19: 2021-04-13 | AX19: 2021-04-12 | AY19: 2021-04-14 | BA19: 2021-04-15 | BB19: 2021-04-17 | BD19: 2021-04-20 | BE19: 2021-04-21 | BF19: 2021-04-21 | BG19: 2021-04-21 | BH19: 2021-04-23 | BI19: 2021-04-21 | BJ19: 2021-04-22 | BK19: 2021-04-25 | BL19: 2021-04-24 | BM19: 2021-04-24 | BO19: 2021-04-25 | BP19: 2021-04-27 | BQ19: 2021-04-25 | BR19: 2022-04-27 | BT19: 2021-05-04 | BU19: 2021-05-02 | BV19: 2021-06-01 | BX19: 2021-06-13 | BY19: 2021-08-15 | BZ19: 2021-08-17
A20: 18 | B20: 2021-01-01 | C20: 2021-01-01 | J20: 2021-02-10 | K20: 2021-02-10 | L20: 2021-02-26 | N20: 2021-02-27 | Q20: 2021-03-10 | R20: 2021-03-12 | S20: 2021-03-13 | T20: 2021-03-16 | U20: 2021-03-20 | V20: 2021-03-22 | W20: 2021-03-22 | X20: 2021-03-23 | Y20: 2021-03-24 | AA20: 2021-03-31 | AC20: 2021-04-02 | AE20: 2021-04-04 | AF20: 2021-04-05 | AG20: 2021-04-07 | AH20: 2021-04-07 | AI20: 2021-04-09 | AJ20: 2021-04-08 | AK20: 2021-04-09 | AL20: 2021-04-11 | AN20: 2021-04-09 | AO20: 2021-04-09 | AP20: 2021-04-10 | AQ20: 2021-04-10 | AR20: 2021-04-14 | AS20: 2021-04-11 | AT20: 2021-04-13 | AU20: 2021-04-15 | AV20: 2021-04-12 | AW20: 2021-04-14 | AX20: 2021-04-13 | AY20: 2021-04-15 | BA20: 2021-04-16 | BB20: 2021-04-18 | BD20: 2021-04-21 | BE20: 2021-04-22 | BF20: 2021-04-22 | BG20: 2021-04-22 | BH20: 2021-04-24 | BI20: 2021-04-22 | BJ20: 2021-04-23 | BK20: 2021-04-26 | BL20: 2021-04-25 | BM20: 2021-04-25 | BO20: 2021-04-26 | BP20: 2021-04-28 | BQ20: 2021-04-26 | BR20: 2022-04-28 | BT20: 2021-05-05 | BU20: 2021-05-03 | BV20: 2021-06-02 | BX20: 2021-06-14 | BY20: 2021-08-16 | BZ20: 2021-08-18
A21: 19 | B21: 2021-01-02 | C21: 2021-01-02 | J21: 2021-02-11 | K21: 2021-02-11 | L21: 2021-02-27 | N21: 2021-02-28 | Q21: 2021-03-11 | R21: 2021-03-13 | S21: 2021-03-14 | T21: 2021-03-17 | U21: 2021-03-21 | V21: 2021-03-23 | W21: 2021-03-23 | X21: 2021-03-24 | Y21: 2021-03-25 | AA21: 2021-04-01 | AC21: 2021-04-03 | AE21: 2021-04-05 | AF21: 2021-04-06 | AG21: 2021-04-08 | AH21: 2021-04-08 | AI21: 2021-04-10 | AJ21: 2021-04-09 | AK21: 2021-04-10 | AL21: 2021-04-12 | AN21: 2021-04-10 | AO21: 2021-04-10 | AP21: 2021-04-11 | AQ21: 2021-04-11 | AR21: 2021-04-15 | AS21: 2021-04-12 | AT21: 2021-04-14 | AU21: 2021-04-16 | AV21: 2021-04-13 | AW21: 2021-04-15 | AX21: 2021-04-14 | AY21: 2021-04-16 | BA21: 2021-04-17 | BB21: 2021-04-19 | BD21: 2021-04-22 | BE21: 2021-04-23 | BF21: 2021-04-23 | BG21: 2021-04-23 | BH21: 2021-04-25 | BI21: 2021-04-23 | BJ21: 2021-04-24 | BK21: 2021-04-27 | BL21: 2021-04-26 | BM21: 2021-04-26 | BO21: 2021-04-27 | BP21: 2021-04-29 | BQ21: 2021-04-27 | BR21: 2022-04-29 | BT21: 2021-05-06 | BU21: 2021-05-04 | BV21: 2021-06-03 | BX21: 2021-06-15 | BY21: 2021-08-17 | BZ21: 2021-08-19
A22: 20 | B22: 2021-01-03 | C22: 2021-01-03 | J22: 2021-02-12 | K22: 2021-02-12 | L22: 2021-02-28 | N22: 2021-03-01 | Q22: 2021-03-12 | R22: 2021-03-14 | S22: 2021-03-15 | T22: 2021-03-18 | U22: 2021-03-22 | V22: 2021-03-24 | W22: 2021-03-24 | X22: 2021-03-25 | Y22: 2021-03-26 | AA22: 2021-04-02 | AC22: 2021-04-04 | AE22: 2021-04-06 | AF22: 2021-04-07 | AG22: 2021-04-09 | AH22: 2021-04-09 | AI22: 2021-04-11 | AJ22: 2021-04-10 | AK22: 2021-04-11 | AL22: 2021-04-13 | AN22: 2021-04-11 | AO22: 2021-04-11 | AP22: 2021-04-12 | AQ22: 2021-04-12 | AR22: 2021-04-16 | AS22: 2021-04-13 | AT22: 2021-04-15 | AU22: 2021-04-17 | AV22: 2021-04-14 | AW22: 2021-04-16 | AX22: 2021-04-15 | AY22: 2021-04-17 | BA22: 2021-04-18 | BB22: 2021-04-20 | BD22: 2021-04-23 | BE22: 2021-04-24 | BF22: 2021-04-24 | BG22: 2021-04-24 | BH22: 2021-04-26 | BI22: 2021-04-24 | BJ22: 2021-04-25 | BK22: 2021-04-28 | BL22: 2021-04-27 | BM22: 2021-04-27 | BO22: 2021-04-28 | BP22: 2021-04-30 | BQ22: 2021-04-28 | BR22: 2022-04-30 | BT22: 2021-05-07 | BU22: 2021-05-05 | BV22: 2021-06-04 | BX22: 2021-06-16 | BY22: 2021-08-18 | BZ22: 2021-08-20
A23: 3 weeks | B23: 2021-01-04 | C23: 2021-01-04 | J23: 2021-02-13 | K23: 2021-02-13 | L23: 2021-03-01 | N23: 2021-03-02 | Q23: 2021-03-13 | R23: 2021-03-15 | S23: 2021-03-16 | T23: 2021-03-19 | U23: 2021-03-23 | V23: 2021-03-25 | W23: 2021-03-25 | X23: 2021-03-26 | Y23: 2021-03-27 | AA23: 2021-04-03 | AC23: 2021-04-05 | AE23: 2021-04-07 | AF23: 2021-04-08 | AG23: 2021-04-10 | AH23: 2021-04-10 | AI23: 2021-04-12 | AJ23: 2021-04-11 | AK23: 2021-04-12 | AL23: 2021-04-14 | AN23: 2021-04-12 | AO23: 2021-04-12 | AP23: 2021-04-13 | AQ23: 2021-04-13 | AR23: 2021-04-17 | AS23: 2021-04-14 | AT23: 2021-04-16 | AU23: 2021-04-18 | AV23: 2021-04-15 | AW23: 2021-04-17 | AX23: 2021-04-16 | AY23: 2021-04-18 | BA23: 2021-04-19 | BB23: 2021-04-21 | BD23: 2021-04-24 | BE23: 2021-04-25 | BF23: 2021-04-25 | BG23: 2021-04-25 | BH23: 2021-04-27 | BI23: 2021-04-25 | BJ23: 2021-04-26 | BK23: 2021-04-29 | BL23: 2021-04-28 | BM23: 2021-04-28 | BO23: 2021-04-29 | BP23: 2021-05-01 | BQ23: 2021-04-29 | BR23: 2022-05-01 | BT23: 2021-05-08 | BU23: 2021-05-06 | BV23: 2021-06-05 | BX23: 2021-06-17 | BY23: 2021-08-19 | BZ23: 2021-08-21
A24: 22 | B24: 2021-01-05 | C24: 2021-01-05 | J24: 2021-02-14 | K24: 2021-02-14 | L24: 2021-03-02 | N24: 2021-03-03 | Q24: 2021-03-14 | R24: 2021-03-16 | S24: 2021-03-17 | T24: 2021-03-20 | U24: 2021-03-24 | V24: 2021-03-26 | W24: 2021-03-26 | X24: 2021-03-27 | Y24: 2021-03-28 | AA24: 2021-04-04 | AC24: 2021-04-06 | AE24: 2021-04-08 | AF24: 2021-04-09 | AG24: 2021-04-11 | AH24: 2021-04-11 | AI24: 2021-04-13 | AJ24: 2021-04-12 | AK24: 2021-04-13 | AL24: 2021-04-15 | AN24: 2021-04-13 | AO24: 2021-04-13 | AP24: 2021-04-14 | AQ24: 2021-04-14 | AR24: 2021-04-18 | AS24: 2021-04-15 | AT24: 2021-04-17 | AU24: 2021-04-19 | AV24: 2021-04-16 | AW24: 2021-04-18 | AX24: 2021-04-17 | AY24: 2021-04-19 | BA24: 2021-04-20 | BB24: 2021-04-22 | BD24: 2021-04-25 | BE24: 2021-04-26 | BF24: 2021-04-26 | BG24: 2021-04-26 | BH24: 2021-04-28 | BI24: 2021-04-26 | BJ24: 2021-04-27 | BK24: 2021-04-30 | BL24: 2021-04-29 | BM24: 2021-04-29 | BO24: 2021-04-30 | BP24: 2021-05-02 | BQ24: 2021-04-30 | BR24: 2022-05-02 | BT24: 2021-05-09 | BU24: 2021-05-07 | BV24: 2021-06-06 | BX24: 2021-06-18 | BY24: 2021-08-20 | BZ24: 2021-08-22
A25: 23 | B25: 2021-01-06 | C25: 2021-01-06 | J25: 2021-02-15 | K25: 2021-02-15 | L25: 2021-03-03 | N25: 2021-03-04 | Q25: 2021-03-15 | R25: 2021-03-17 | S25: 2021-03-18 | T25: 2021-03-21 | U25: 2021-03-25 | V25: 2021-03-27 | W25: 2021-03-27 | X25: 2021-03-28 | Y25: 2021-03-29 | AA25: 2021-04-05 | AC25: 2021-04-07 | AE25: 2021-04-09 | AF25: 2021-04-10 | AG25: 2021-04-12 | AH25: 2021-04-12 | AI25: 2021-04-14 | AJ25: 2021-04-13 | AK25: 2021-04-14 | AL25: 2021-04-16 | AN25: 2021-04-14 | AO25: 2021-04-14 | AP25: 2021-04-15 | AQ25: 2021-04-15 | AR25: 2021-04-19 | AS25: 2021-04-16 | AT25: 2021-04-18 | AU25: 2021-04-20 | AV25: 2021-04-17 | AW25: 2021-04-19 | AX25: 2021-04-18 | AY25: 2021-04-20 | BA25: 2021-04-21 | BB25: 2021-04-23 | BD25: 2021-04-26 | BE25: 2021-04-27 | BF25: 2021-04-27 | BG25: 2021-04-27 | BH25: 2021-04-29 | BI25: 2021-04-27 | BJ25: 2021-04-28 | BK25: 2021-05-01 | BL25: 2021-04-30 | BM25: 2021-04-30 | BO25: 2021-05-01 | BP25: 2021-05-03 | BQ25: 2021-05-01 | BR25: 2022-05-03 | BT25: 2021-05-10 | BU25: 2021-05-08 | BV25: 2021-06-07 | BX25: 2021-06-19 | BY25: 2021-08-21 | BZ25: 2021-08-23
A26: 24 | B26: 2021-01-07 | C26: 2021-01-07 | J26: 2021-02-16 | K26: 2021-02-16 | L26: 2021-03-04 | N26: 2021-03-05 | Q26: 2021-03-16 | R26: 2021-03-18 | S26: 2021-03-19 | T26: 2021-03-22 | U26: 2021-03-26 | V26: 2021-03-28 | W26: 2021-03-28 | X26: 2021-03-29 | Y26: 2021-03-30 | AA26: 2021-04-06 | AC26: 2021-04-08 | AE26: 2021-04-10 | AF26: 2021-04-11 | AG26: 2021-04-13 | AH26: 2021-04-13 | AI26: 2021-04-15 | AJ26: 2021-04-14 | AK26: 2021-04-15 | AL26: 2021-04-17 | AN26: 2021-04-15 | AO26: died | AP26: 2021-04-16 | AQ26: 2021-04-16 | AR26: 2021-04-20 | AS26: 2021-04-17 | AT26: 2021-04-19 | AU26: 2021-04-21 | AV26: 2021-04-18 | AW26: 2021-04-20 | AX26: 2021-04-19 | AY26: 2021-04-21 | BA26: 2021-04-22 | BB26: 2021-04-24 | BD26: 2021-04-27 | BE26: 2021-04-28 | BF26: 2021-04-28 | BG26: 2021-04-28 | BH26: 2021-04-30 | BI26: 2021-04-28 | BJ26: 2021-04-29 | BK26: 2021-05-02 | BL26: 2021-05-01 | BM26: 2021-05-01 | BO26: 2021-05-02 | BP26: 2021-05-04 | BQ26: 2021-05-02 | BR26: 2022-05-04 | BT26: 2021-05-11 | BU26: 2021-05-09 | BV26: 2021-06-08 | BX26: 2021-06-20 | BY26: 2021-08-22 | BZ26: 2021-08-24
A27: 25 | B27: 2021-01-08 | C27: 2021-01-08 | J27: 2021-02-17 | K27: 2021-02-17 | L27: 2021-03-05 | N27: 2021-03-06 | Q27: 2021-03-17 | R27: 2021-03-19 | S27: 2021-03-20 | T27: 2021-03-23 | U27: 2021-03-27 | V27: 2021-03-29 | W27: 2021-03-29 | X27: 2021-03-30 | Y27: 2021-03-31 | AA27: 2021-04-07 | AC27: 2021-04-09 | AE27: 2021-04-11 | AF27: 2021-04-12 | AG27: 2021-04-14 | AH27: 2021-04-14 | AI27: 2021-04-16 | AJ27: 2021-04-15 | AK27: 2021-04-16 | AL27: 2021-04-18 | AN27: 2021-04-16 | AP27: 2021-04-17 | AQ27: 2021-04-17 | AR27: 2021-04-21 | AS27: 2021-04-18 | AT27: 2021-04-20 | AU27: 2021-04-22 | AV27: 2021-04-19 | AW27: 2021-04-21 | AX27: 2021-04-20 | AY27: 2021-04-22 | BA27: 2021-04-23 | BB27: 2021-04-25 | BD27: 2021-04-28 | BE27: 2021-04-29 | BF27: 2021-04-29 | BG27: 2021-04-29 | BH27: 2021-05-01 | BI27: 2021-04-29 | BJ27: 2021-04-30 | BK27: 2021-05-03 | BL27: 2021-05-02 | BM27: 2021-05-02 | BO27: 2021-05-03 | BP27: 2021-05-05 | BQ27: 2021-05-03 | BR27: 2022-05-05 | BT27: 2021-05-12 | BU27: 2021-05-10 | BV27: 2021-06-09 | BX27: 2021-06-21 | BY27: 2021-08-23 | BZ27: 2021-08-25
A28: 26 | B28: 2021-01-09 | C28: 2021-01-09 | J28: 2021-02-18 | K28: 2021-02-18 | L28: 2021-03-06 | N28: 2021-03-07 | Q28: 2021-03-18 | R28: 2021-03-20 | S28: 2021-03-21 | T28: 2021-03-24 | U28: 2021-03-28 | V28: 2021-03-30 | W28: 2021-03-30 | X28: 2021-03-31 | Y28: 2021-04-01 | AA28: 2021-04-08 | AC28: 2021-04-10 | AE28: 2021-04-12 | AF28: 2021-04-13 | AG28: 2021-04-15 | AH28: 2021-04-15 | AI28: 2021-04-17 | AJ28: 2021-04-16 | AK28: 2021-04-17 | AL28: 2021-04-19 | AN28: 2021-04-17 | AP28: 2021-04-18 | AQ28: 2021-04-18 | AR28: 2021-04-22 | AS28: 2021-04-19 | AT28: 2021-04-21 | AU28: 2021-04-23 | AV28: 2021-04-20 | AW28: 2021-04-22 | AX28: 2021-04-21 | AY28: 2021-04-23 | BA28: 2021-04-24 | BB28: 2021-04-26 | BD28: 2021-04-29 | BE28: 2021-04-30 | BF28: 2021-04-30 | BG28: 2021-04-30 | BH28: 2021-05-02 | BI28: 2021-04-30 | BJ28: 2021-05-01 | BK28: 2021-05-04 | BL28: 2021-05-03 | BM28: 2021-05-03 | BO28: 2021-05-04 | BP28: 2021-05-06 | BQ28: 2021-05-04 | BR28: 2022-05-06 | BT28: 2021-05-13 | BU28: 2021-05-11 | BV28: 2021-06-10 | BX28: 2021-06-22 | BY28: 2021-08-24 | BZ28: 2021-08-26
A29: 27 | B29: 2021-01-10 | C29: 2021-01-10 | J29: 2021-02-19 | K29: 2021-02-19 | L29: 2021-03-07 | N29: 2021-03-08 | Q29: 2021-03-19 | R29: 2021-03-21 | S29: 2021-03-22 | T29: 2021-03-25 | U29: 2021-03-29 | V29: 2021-03-31 | W29: 2021-03-31 | X29: 2021-04-01 | Y29: 2021-04-02 | AA29: 2021-04-09 | AC29: 2021-04-11 | AE29: 2021-04-13 | AF29: 2021-04-14 | AG29: 2021-04-16 | AH29: 2021-04-16 | AI29: 2021-04-18 | AJ29: 2021-04-17 | AK29: 2021-04-18 | AL29: 2021-04-20 | AN29: 2021-04-18 | AP29: 2021-04-19 | AQ29: 2021-04-19 | AR29: 2021-04-23 | AS29: 2021-04-20 | AT29: 2021-04-22 | AU29: 2021-04-24 | AV29: 2021-04-21 | AW29: 2021-04-23 | AX29: 2021-04-22 | AY29: 2021-04-24 | BA29: 2021-04-25 | BB29: 2021-04-27 | BD29: 2021-04-30 | BE29: 2021-05-01 | BF29: 2021-05-01 | BG29: 2021-05-01 | BH29: 2021-05-03 | BI29: 2021-05-01 | BJ29: 2021-05-02 | BK29: 2021-05-05 | BL29: 2021-05-04 | BM29: 2021-05-04 | BO29: 2021-05-05 | BP29: 2021-05-07 | BQ29: 2021-05-05 | BR29: 2022-05-07 | BT29: 2021-05-14 | BU29: 2021-05-12 | BV29: 2021-06-11 | BX29: 2021-06-23 | BY29: 2021-08-25 | BZ29: 2021-08-27
A30: 4 weeks | B30: 2021-01-11 | C30: 2021-01-11 | J30: 2021-02-20 | K30: 2021-02-20 | L30: 2021-03-08 | N30: 2021-03-09 | Q30: 2021-03-20 | R30: 2021-03-22 | S30: 2021-03-23 | T30: 2021-03-26 | U30: 2021-03-30 | V30: 2021-04-01 | W30: 2021-04-01 | X30: 2021-04-02 | Y30: 2021-04-03 | AA30: 2021-04-10 | AC30: 2021-04-12 | AE30: 2021-04-14 | AF30: 2021-04-15 | AG30: 2021-04-17 | AH30: 2021-04-17 | AI30: 2021-04-19 | AJ30: 2021-04-18 | AK30: 2021-04-19 | AL30: 2021-04-21 | AN30: 2021-04-19 | AP30: 2021-04-20 | AQ30: 2021-04-20 | AR30: 2021-04-24 | AS30: 2021-04-21 | AT30: 2021-04-23 | AU30: 2021-04-25 | AV30: 2021-04-22 | AW30: 2021-04-24 | AX30: 2021-04-23 | AY30: 2021-04-25 | BA30: 2021-04-26 | BB30: 2021-04-28 | BD30: 2021-05-01 | BE30: 2021-05-02 | BF30: 2021-05-02 | BG30: 2021-05-02 | BH30: 2021-05-04 | BI30: 2021-05-02 | BJ30: 2021-05-03 | BK30: 2021-05-06 | BL30: 2021-05-05 | BM30: 2021-05-05 | BO30: 2021-05-06 | BP30: 2021-05-08 | BQ30: 2021-05-06 | BR30: 2022-05-08 | BT30: 2021-05-15 | BU30: 2021-05-13 | BV30: 2021-06-12 | BX30: 2021-06-24 | BY30: 2021-08-26 | BZ30: 2021-08-28
A31: 29 | B31: 2021-01-12 | C31: 2021-01-12 | J31: 2021-02-21 | K31: 2021-02-21 | L31: 2021-03-09 | N31: 2021-03-10 | Q31: 2021-03-21 | R31: 2021-03-23 | S31: 2021-03-24 | T31: 2021-03-27 | U31: 2021-03-31 | V31: 2021-04-02 | W31: 2021-04-02 | X31: 2021-04-03 | Y31: 2021-04-04 | AA31: 2021-04-11 | AC31: 2021-04-13 | AE31: 2021-04-15 | AF31: 2021-04-16 | AG31: 2021-04-18 | AH31: 2021-04-18 | AI31: 2021-04-20 | AJ31: 2021-04-19 | AK31: 2021-04-20 | AL31: 2021-04-22 | AN31: 2021-04-20 | AP31: 2021-04-21 | AQ31: 2021-04-21 | AR31: 2021-04-25 | AS31: 2021-04-22 | AT31: 2021-04-24 | AU31: 2021-04-26 | AV31: 2021-04-23 | AW31: 2021-04-25 | AX31: 2021-04-24 | AY31: 2021-04-26 | BA31: 2021-04-27 | BB31: 2021-04-29 | BD31: 2021-05-02 | BE31: 2021-05-03 | BF31: 2021-05-03 | BG31: 2021-05-03 | BH31: 2021-05-05 | BI31: 2021-05-03 | BJ31: 2021-05-04 | BK31: 2021-05-07 | BL31: 2021-05-06 | BM31: 2021-05-06 | BO31: 2021-05-07 | BP31: 2021-05-09 | BQ31: 2021-05-07 | BR31: 2022-05-09 | BT31: 2021-05-16 | BU31: 2021-05-14 | BV31: 2021-06-13 | BX31: 2021-06-25 | BY31: 2021-08-27 | BZ31: 2021-08-29
A32: 30 | B32: 2021-01-13 | C32: 2021-01-13 | J32: 2021-02-22 | K32: 2021-02-22 | L32: 2021-03-10 | N32: 2021-03-11 | Q32: 2021-03-22 | R32: 2021-03-24 | S32: 2021-03-25 | T32: 2021-03-28 | U32: 2021-04-01 | V32: 2021-04-03 | W32: 2021-04-03 | X32: 2021-04-04 | Y32: 2021-04-05 | AA32: 2021-04-12 | AC32: 2021-04-14 | AE32: 2021-04-16 | AF32: 2021-04-17 | AG32: 2021-04-19 | AH32: 2021-04-19 | AI32: 2021-04-21 | AJ32: 2021-04-20 | AK32: 2021-04-21 | AL32: 2021-04-23 | AN32: 2021-04-21 | AP32: 2021-04-22 | AQ32: 2021-04-22 | AR32: 2021-04-26 | AS32: 2021-04-23 | AT32: 2021-04-25 | AU32: 2021-04-27 | AV32: 2021-04-24 | AW32: 2021-04-26 | AX32: 2021-04-25 | AY32: 2021-04-27 | BA32: 2021-04-28 | BB32: 2021-04-30 | BD32: 2021-05-03 | BE32: 2021-05-04 | BF32: 2021-05-04 | BG32: 2021-05-04 | BH32: 2021-05-06 | BI32: 2021-05-04 | BJ32: 2021-05-05 | BK32: 2021-05-08 | BL32: 2021-05-07 | BM32: 2021-05-07 | BO32: 2021-05-08 | BP32: 2021-05-10 | BQ32: 2021-05-08 | BR32: 2022-05-10 | BT32: 2021-05-17 | BU32: 2021-05-15 | BV32: 2021-06-14 | BX32: 2021-06-26 | BY32: 2021-08-28 | BZ32: 2021-08-30
A33: 31 | B33: died | C33: 2021-01-14 | J33: 2021-02-23 | K33: 2021-02-23 | L33: 2021-03-11 | N33: 2021-03-12 | Q33: 2021-03-23 | R33: 2021-03-25 | S33: 2021-03-26 | T33: 2021-03-29 | U33: 2021-04-02 | V33: 2021-04-04 | W33: 2021-04-04 | X33: 2021-04-05 | Y33: 2021-04-06 | AA33: 2021-04-13 | AC33: 2021-04-15 | AE33: 2021-04-17 | AF33: 2021-04-18 | AG33: 2021-04-20 | AH33: 2021-04-20 | AI33: 2021-04-22 | AJ33: 2021-04-21 | AK33: 2021-04-22 | AL33: 2021-04-24 | AN33: 2021-04-22 | AP33: 2021-04-23 | AQ33: 2021-04-23 | AR33: 2021-04-27 | AS33: 2021-04-24 | AT33: 2021-04-26 | AU33: 2021-04-28 | AV33: 2021-04-25 | AW33: 2021-04-27 | AX33: 2021-04-26 | AY33: 2021-04-28 | BA33: 2021-04-29 | BB33: 2021-05-01 | BD33: 2021-05-04 | BE33: 2021-05-05 | BF33: 2021-05-05 | BG33: 2021-05-05 | BH33: 2021-05-07 | BI33: 2021-05-05 | BJ33: 2021-05-06 | BK33: 2021-05-09 | BL33: 2021-05-08 | BM33: 2021-05-08 | BO33: 2021-05-09 | BP33: 2021-05-11 | BQ33: 2021-05-09 | BR33: 2022-05-11 | BT33: 2021-05-18 | BU33: 2021-05-16 | BV33: 2021-06-15 | BX33: 2021-06-27 | BY33: 2021-08-29 | BZ33: 2021-08-31
A34: 32 | C34: 2021-01-15 | J34: 2021-02-24 | K34: 2021-02-24 | L34: 2021-03-12 | N34: 2021-03-13 | Q34: 2021-03-24 | R34: 2021-03-26 | S34: 2021-03-27 | T34: 2021-03-30 | U34: 2021-04-03 | V34: 2021-04-05 | W34: 2021-04-05 | X34: 2021-04-06 | Y34: 2021-04-07 | AA34: 2021-04-14 | AC34: 2021-04-16 | AE34: 2021-04-18 | AF34: 2021-04-19 | AG34: 2021-04-21 | AH34: 2021-04-21 | AI34: 2021-04-23 | AJ34: 2021-04-22 | AK34: 2021-04-23 | AL34: 2021-04-25 | AN34: 2021-04-23 | AP34: 2021-04-24 | AQ34: 2021-04-24 | AR34: 2021-04-28 | AS34: 2021-04-25 | AT34: 2021-04-27 | AU34: 2021-04-29 | AV34: 2021-04-26 | AW34: 2021-04-28 | AX34: 2021-04-27 | AY34: 2021-04-29 | BA34: 2021-04-30 | BB34: 2021-05-02 | BD34: 2021-05-05 | BE34: 2021-05-06 | BF34: 2021-05-06 | BG34: 2021-05-06 | BH34: 2021-05-08 | BI34: 2021-05-06 | BJ34: 2021-05-07 | BK34: 2021-05-10 | BL34: 2021-05-09 | BM34: 2021-05-09 | BO34: 2021-05-10 | BP34: 2021-05-12 | BQ34: 2021-05-10 | BR34: 2022-05-12 | BT34: 2021-05-19 | BU34: 2021-05-17 | BV34: 2021-06-16 | BX34: 2021-06-28 | BY34: 2021-08-30 | BZ34: 2021-09-01
A35: 33 | C35: 2021-01-16 | J35: 2021-02-25 | K35: 2021-02-25 | L35: 2021-03-13 | N35: 2021-03-14 | Q35: 2021-03-25 | R35: 2021-03-27 | S35: 2021-03-28 | T35: 2021-03-31 | U35: 2021-04-04 | V35: 2021-04-06 | W35: 2021-04-06 | X35: 2021-04-07 | Y35: 2021-04-08 | AA35: 2021-04-15 | AC35: 2021-04-17 | AE35: 2021-04-19 | AF35: 2021-04-20 | AG35: 2021-04-22 | AH35: 2021-04-22 | AI35: 2021-04-24 | AJ35: 2021-04-23 | AK35: 2021-04-24 | AL35: 2021-04-26 | AN35: 2021-04-24 | AP35: 2021-04-25 | AQ35: 2021-04-25 | AR35: 2021-04-29 | AS35: 2021-04-26 | AT35: 2021-04-28 | AU35: 2021-04-30 | AV35: 2021-04-27 | AW35: 2021-04-29 | AX35: 2021-04-28 | AY35: 2021-04-30 | BA35: 2021-05-01 | BB35: 2021-05-03 | BD35: 2021-05-06 | BE35: 2021-05-07 | BF35: 2021-05-07 | BG35: 2021-05-07 | BH35: 2021-05-09 | BI35: 2021-05-07 | BJ35: 2021-05-08 | BK35: 2021-05-11 | BL35: 2021-05-10 | BM35: 2021-05-10 | BO35: 2021-05-11 | BP35: 2021-05-13 | BQ35: 2021-05-11 | BR35: 2022-05-13 | BT35: 2021-05-20 | BU35: 2021-05-18 | BV35: 2021-06-17 | BX35: 2021-06-29 | BY35: 2021-08-31 | BZ35: 2021-09-02
A36: 34 | C36: 2021-01-17 | J36: 2021-02-26 | K36: 2021-02-26 | L36: 2021-03-14 | N36: 2021-03-15 | Q36: 2021-03-26 | R36: 2021-03-28 | S36: 2021-03-29 | T36: 2021-04-01 | U36: 2021-04-05 | V36: 2021-04-07 | W36: 2021-04-07 | X36: 2021-04-08 | Y36: 2021-04-09 | AA36: 2021-04-16 | AC36: 2021-04-18 | AE36: 2021-04-20 | AF36: 2021-04-21 | AG36: 2021-04-23 | AH36: 2021-04-23 | AI36: 2021-04-25 | AJ36: 2021-04-24 | AK36: 2021-04-25 | AL36: 2021-04-27 | AN36: 2021-04-25 | AP36: 2021-04-26 | AQ36: 2021-04-26 | AR36: 2021-04-30 | AS36: 2021-04-27 | AT36: 2021-04-29 | AU36: 2021-05-01 | AV36: 2021-04-28 | AW36: 2021-04-30 | AX36: 2021-04-29 | AY36: 2021-05-01 | BA36: 2021-05-02 | BB36: 2021-05-04 | BD36: 2021-05-07 | BE36: 2021-05-08 | BF36: 2021-05-08 | BG36: 2021-05-08 | BH36: 2021-05-10 | BI36: 2021-05-08 | BJ36: 2021-05-09 | BK36: 2021-05-12 | BL36: 2021-05-11 | BM36: 2021-05-11 | BO36: 2021-05-12 | BP36: 2021-05-14 | BQ36: 2021-05-12 | BR36: 2022-05-14 | BT36: 2021-05-21 | BU36: 2021-05-19 | BV36: 2021-06-18 | BX36: 2021-06-30 | BY36: 2021-09-01 | BZ36: 2021-09-03
A37: 5 weeks | C37: 2021-01-18 | J37: 2021-02-27 | K37: 2021-02-27 | L37: 2021-03-15 | N37: 2021-03-16 | Q37: 2021-03-27 | R37: 2021-03-29 | S37: 2021-03-30 | T37: 2021-04-02 | U37: 2021-04-06 | V37: 2021-04-08 | W37: 2021-04-08 | X37: 2021-04-09 | Y37: 2021-04-10 | AA37: 2021-04-17 | AC37: 2021-04-19 | AE37: 2021-04-21 | AF37: 2021-04-22 | AG37: 2021-04-24 | AH37: 2021-04-24 | AI37: 2021-04-26 | AJ37: 2021-04-25 | AK37: 2021-04-26 | AL37: 2021-04-28 | AN37: 2021-04-26 | AP37: 2021-04-27 | AQ37: 2021-04-27 | AR37: 2021-05-01 | AS37: 2021-04-28 | AT37: 2021-04-30 | AU37: 2021-05-02 | AV37: 2021-04-29 | AW37: 2021-05-01 | AX37: 2021-04-30 | AY37: 2021-05-02 | BA37: 2021-05-03 | BB37: 2021-05-05 | BD37: 2021-05-08 | BE37: 2021-05-09 | BF37: 2021-05-09 | BG37: 2021-05-09 | BH37: 2021-05-11 | BI37: 2021-05-09 | BJ37: 2021-05-10 | BK37: 2021-05-13 | BL37: 2021-05-12 | BM37: 2021-05-12 | BO37: 2021-05-13 | BP37: 2021-05-15 | BQ37: 2021-05-13 | BR37: 2022-05-15 | BT37: 2021-05-22 | BU37: 2021-05-20 | BV37: 2021-06-19 | BX37: 2021-07-01 | BY37: 2021-09-02 | BZ37: 2021-09-04
A38: 36 | C38: 2021-01-19 | J38: 2021-02-28 | K38: 2021-02-28 | L38: 2021-03-16 | N38: 2021-03-17 | Q38: 2021-03-28 | R38: 2021-03-30 | S38: 2021-03-31 | T38: 2021-04-03 | U38: 2021-04-07 | V38: 2021-04-09 | W38: 2021-04-09 | X38: 2021-04-10 | Y38: 2021-04-11 | AA38: 2021-04-18 | AC38: 2021-04-20 | AE38: 2021-04-22 | AF38: 2021-04-23 | AG38: 2021-04-25 | AH38: 2021-04-25 | AI38: 2021-04-27 | AJ38: 2021-04-26 | AK38: 2021-04-27 | AL38: 2021-04-29 | AN38: 2021-04-27 | AP38: 2021-04-28 | AQ38: 2021-04-28 | AR38: 2021-05-02 | AS38: 2021-04-29 | AT38: 2021-05-01 | AU38: 2021-05-03 | AV38: 2021-04-30 | AW38: 2021-05-02 | AX38: 2021-05-01 | AY38: 2021-05-03 | BA38: 2021-05-04 | BB38: 2021-05-06 | BD38: 2021-05-09 | BE38: 2021-05-10 | BF38: 2021-05-10 | BG38: 2021-05-10 | BH38: 2021-05-12 | BI38: 2021-05-10 | BJ38: 2021-05-11 | BK38: 2021-05-14 | BL38: 2021-05-13 | BM38: died | BO38: 2021-05-14 | BP38: 2021-05-16 | BQ38: 2021-05-14 | BR38: 2022-05-16 | BT38: 2021-05-23 | BU38: 2021-05-21 | BV38: 2021-06-20 | BX38: 2021-07-02 | BY38: 2021-09-03 | BZ38: 2021-09-05
A39: 37 | C39: 2021-01-20 | J39: 2021-03-01 | K39: 2021-03-01 | L39: 2021-03-17 | N39: 2021-03-18 | Q39: 2021-03-29 | R39: 2021-03-31 | S39: 2021-04-01 | T39: 2021-04-04 | U39: 2021-04-08 | V39: 2021-04-10 | W39: 2021-04-10 | X39: 2021-04-11 | Y39: 2021-04-12 | AA39: 2021-04-19 | AC39: 2021-04-21 | AE39: 2021-04-23 | AF39: 2021-04-24 | AG39: 2021-04-26 | AH39: 2021-04-26 | AI39: 2021-04-28 | AJ39: 2021-04-27 | AK39: 2021-04-28 | AL39: 2021-04-30 | AN39: 2021-04-28 | AP39: 2021-04-29 | AQ39: 2021-04-29 | AR39: 2021-05-03 | AS39: 2021-04-30 | AT39: 2021-05-02 | AU39: 2021-05-04 | AV39: 2021-05-01 | AW39: 2021-05-03 | AX39: 2021-05-02 | AY39: 2021-05-04 | BA39: 2021-05-05 | BB39: 2021-05-07 | BD39: 2021-05-10 | BE39: 2021-05-11 | BF39: 2021-05-11 | BG39: 2021-05-11 | BH39: 2021-05-13 | BI39: 2021-05-11 | BJ39: 2021-05-12 | BK39: 2021-05-15 | BL39: 2021-05-14 | BO39: 2021-05-15 | BP39: 2021-05-17 | BQ39: 2021-05-15 | BR39: 2022-05-17 | BT39: 2021-05-24 | BU39: 2021-05-22 | BV39: 2021-06-21 | BX39: 2021-07-03 | BY39: 2021-09-04 | BZ39: 2021-09-06
A40: 38 | C40: 2021-01-21 | J40: 2021-03-02 | K40: 2021-03-02 | L40: 2021-03-18 | N40: 2021-03-19 | Q40: 2021-03-30 | R40: 2021-04-01 | S40: 2021-04-02 | T40: 2021-04-05 | U40: 2021-04-09 | V40: 2021-04-11 | W40: 2021-04-11 | X40: 2021-04-12 | Y40: 2021-04-13 | AA40: 2021-04-20 | AC40: 2021-04-22 | AE40: 2021-04-24 | AF40: 2021-04-25 | AG40: 2021-04-27 | AH40: 2021-04-27 | AI40: 2021-04-29 | AJ40: 2021-04-28 | AK40: 2021-04-29 | AL40: 2021-05-01 | AN40: 2021-04-29 | AP40: 2021-04-30 | AQ40: 2021-04-30 | AR40: 2021-05-04 | AS40: 2021-05-01 | AT40: 2021-05-03 | AU40: 2021-05-05 | AV40: 2021-05-02 | AW40: 2021-05-04 | AX40: 2021-05-03 | AY40: 2021-05-05 | BA40: 2021-05-06 | BB40: 2021-05-08 | BD40: 2021-05-11 | BE40: 2021-05-12 | BF40: 2021-05-12 | BG40: 2021-05-12 | BH40: 2021-05-14 | BI40: 2021-05-12 | BJ40: 2021-05-13 | BK40: 2021-05-16 | BL40: 2021-05-15 | BM40: nest tree | BO40: 2021-05-16 | BP40: 2021-05-18 | BQ40: 2021-05-16 | BR40: 2022-05-18 | BT40: 2021-05-25 | BU40: 2021-05-23 | BV40: 2021-06-22 | BX40: 2021-07-04 | BY40: 2021-09-05 | BZ40: 2021-09-07
A41: 39 | C41: 2021-01-22 | J41: 2021-03-03 | K41: 2021-03-03 | L41: 2021-03-19 | N41: 2021-03-20 | Q41: 2021-03-31 | R41: 2021-04-02 | S41: 2021-04-03 | T41: 2021-04-06 | U41: 2021-04-10 | V41: 2021-04-12 | W41: 2021-04-12 | X41: 2021-04-13 | Y41: 2021-04-14 | AA41: 2021-04-21 | AC41: 2021-04-23 | AE41: 2021-04-25 | AF41: 2021-04-26 | AG41: 2021-04-28 | AH41: 2021-04-28 | AI41: 2021-04-30 | AJ41: 2021-04-29 | AK41: 2021-04-30 | AL41: 2021-05-02 | AN41: 2021-04-30 | AP41: 2021-05-01 | AQ41: 2021-05-01 | AR41: 2021-05-05 | AS41: 2021-05-02 | AT41: 2021-05-04 | AU41: 2021-05-06 | AV41: 2021-05-03 | AW41: 2021-05-05 | AX41: 2021-05-04 | AY41: 2021-05-06 | BA41: 2021-05-07 | BB41: 2021-05-09 | BD41: 2021-05-12 | BE41: 2021-05-13 | BF41: 2021-05-13 | BG41: 2021-05-13 | BH41: 2021-05-15 | BI41: 2021-05-13 | BJ41: 2021-05-14 | BK41: 2021-05-17 | BL41: 2021-05-16 | BM41: collapsed | BO41: 2021-05-17 | BP41: 2021-05-19 | BQ41: 2021-05-17 | BR41: 2022-05-19 | BT41: 2021-05-26 | BU41: 2021-05-24 | BV41: 2021-06-23 | BX41: 2021-07-05 | BY41: 2021-09-06 | BZ41: 2021-09-08
A42: 40 | C42: 2021-01-23 | J42: 2021-03-04 | K42: 2021-03-04 | L42: 2021-03-20 | N42: 2021-03-21 | Q42: 2021-04-01 | R42: 2021-04-03 | S42: 2021-04-04 | T42: 2021-04-07 | U42: 2021-04-11 | V42: 2021-04-13 | W42: 2021-04-13 | X42: 2021-04-14 | Y42: 2021-04-15 | AA42: 2021-04-22 | AC42: 2021-04-24 | AE42: 2021-04-26 | AF42: 2021-04-27 | AG42: 2021-04-29 | AH42: 2021-04-29 | AI42: 2021-05-01 | AJ42: 2021-04-30 | AK42: 2021-05-01 | AL42: 2021-05-03 | AN42: 2021-05-01 | AP42: 2021-05-02 | AQ42: 2021-05-02 | AR42: 2021-05-06 | AS42: 2021-05-03 | AT42: 2021-05-05 | AU42: 2021-05-07 | AV42: 2021-05-04 | AW42: 2021-05-06 | AX42: 2021-05-05 | AY42: 2021-05-07 | BA42: 2021-05-08 | BB42: 2021-05-10 | BD42: 2021-05-13 | BE42: 2021-05-14 | BF42: 2021-05-14 | BG42: 2021-05-14 | BH42: 2021-05-16 | BI42: 2021-05-14 | BJ42: 2021-05-15 | BK42: 2021-05-18 | BL42: 2021-05-17 | BO42: 2021-05-18 | BP42: 2021-05-20 | BQ42: 2021-05-18 | BR42: 2022-05-20 | BT42: 2021-05-27 | BU42: 2021-05-25 | BV42: 2021-06-24 | BX42: 2021-07-06 | BY42: 2021-09-07 | BZ42: 2021-09-09
A43: 41 | C43: died | J43: 2021-03-05 | K43: 2021-03-05 | L43: 2021-03-21 | N43: 2021-03-22 | Q43: 2021-04-02 | R43: 2021-04-04 | S43: 2021-04-05 | T43: 2021-04-08 | U43: 2021-04-12 | V43: 2021-04-14 | W43: 2021-04-14 | X43: 2021-04-15 | Y43: 2021-04-16 | AA43: 2021-04-23 | AC43: 2021-04-25 | AE43: 2021-04-27 | AF43: 2021-04-28 | AG43: 2021-04-30 | AH43: 2021-04-30 | AI43: 2021-05-02 | AJ43: 2021-05-01 | AK43: 2021-05-02 | AL43: 2021-05-04 | AN43: 2021-05-02 | AP43: 2021-05-03 | AQ43: 2021-05-03 | AR43: 2021-05-07 | AS43: 2021-05-04 | AT43: 2021-05-06 | AU43: 2021-05-08 | AV43: 2021-05-05 | AW43: 2021-05-07 | AX43: 2021-05-06 | AY43: 2021-05-08 | BA43: 2021-05-09 | BB43: 2021-05-11 | BD43: 2021-05-14 | BE43: 2021-05-15 | BF43: 2021-05-15 | BG43: 2021-05-15 | BH43: 2021-05-17 | BI43: 2021-05-15 | BJ43: 2021-05-16 | BK43: 2021-05-19 | BL43: 2021-05-18 | BO43: 2021-05-19 | BP43: 2021-05-21 | BQ43: 2021-05-19 | BR43: 2022-05-21 | BT43: 2021-05-28 | BU43: 2021-05-26 | BV43: 2021-06-25 | BX43: 2021-07-07 | BY43: 2021-09-08 | BZ43: 2021-09-10
A44: 6 weeks | J44: 2021-03-06 | K44: 2021-03-06 | L44: 2021-03-22 | N44: 2021-03-23 | Q44: 2021-04-03 | R44: 2021-04-05 | S44: 2021-04-06 | T44: 2021-04-09 | U44: 2021-04-13 | V44: 2021-04-15 | W44: 2021-04-15 | X44: 2021-04-16 | Y44: 2021-04-17 | AA44: 2021-04-24 | AC44: 2021-04-26 | AE44: 2021-04-28 | AF44: 2021-04-29 | AG44: 2021-05-01 | AH44: 2021-05-01 | AI44: 2021-05-03 | AJ44: 2021-05-02 | AK44: 2021-05-03 | AL44: 2021-05-05 | AN44: 2021-05-03 | AP44: 2021-05-04 | AQ44: 2021-05-04 | AR44: 2021-05-08 | AS44: 2021-05-05 | AT44: 2021-05-07 | AU44: 2021-05-09 | AV44: 2021-05-06 | AW44: 2021-05-08 | AX44: 2021-05-07 | AY44: 2021-05-09 | BA44: 2021-05-10 | BB44: 2021-05-12 | BD44: 2021-05-15 | BE44: 2021-05-16 | BF44: 2021-05-16 | BG44: 2021-05-16 | BH44: 2021-05-18 | BI44: 2021-05-16 | BJ44: 2021-05-17 | BK44: 2021-05-20 | BL44: 2021-05-19 | BO44: 2021-05-20 | BP44: 2021-05-22 | BQ44: 2021-05-20 | BR44: 2022-05-22 | BT44: 2021-05-29 | BU44: 2021-05-27 | BV44: 2021-06-26 | BX44: 2021-07-08 | BY44: 2021-09-09 | BZ44: 2021-09-11
A45: 43 | J45: 2021-03-07 | K45: 2021-03-07 | L45: 2021-03-23 | N45: 2021-03-24 | Q45: 2021-04-04 | R45: 2021-04-06 | S45: 2021-04-07 | T45: 2021-04-10 | U45: 2021-04-14 | V45: 2021-04-16 | W45: 2021-04-16 | X45: 2021-04-17 | Y45: 2021-04-18 | AA45: 2021-04-25 | AC45: 2021-04-27 | AE45: 2021-04-29 | AF45: 2021-04-30 | AG45: 2021-05-02 | AH45: 2021-05-02 | AI45: 2021-05-04 | AJ45: 2021-05-03 | AK45: 2021-05-04 | AL45: 2021-05-06 | AN45: 2021-05-04 | AP45: 2021-05-05 | AQ45: 2021-05-05 | AR45: 2021-05-09 | AS45: 2021-05-06 | AT45: 2021-05-08 | AU45: 2021-05-10 | AV45: 2021-05-07 | AW45: 2021-05-09 | AX45: 2021-05-08 | AY45: 2021-05-10 | BA45: 2021-05-11 | BB45: 2021-05-13 | BD45: 2021-05-16 | BE45: 2021-05-17 | BF45: 2021-05-17 | BG45: 2021-05-17 | BH45: 2021-05-19 | BI45: 2021-05-17 | BJ45: 2021-05-18 | BK45: 2021-05-21 | BL45: 2021-05-20 | BO45: 2021-05-21 | BP45: 2021-05-23 | BQ45: 2021-05-21 | BR45: 2022-05-23 | BT45: 2021-05-30 | BU45: 2021-05-28 | BV45: 2021-06-27 | BX45: 2021-07-09 | BY45: 2021-09-10 | BZ45: 2021-09-12
A46: 44 | J46: 2021-03-08 | K46: 2021-03-08 | L46: 2021-03-24 | N46: 2021-03-25 | Q46: 2021-04-05 | R46: 2021-04-07 | S46: 2021-04-08 | T46: 2021-04-11 | U46: 2021-04-15 | V46: 2021-04-17 | W46: 2021-04-17 | X46: 2021-04-18 | Y46: 2021-04-19 | AA46: 2021-04-26 | AC46: 2021-04-28 | AE46: 2021-04-30 | AF46: 2021-05-01 | AG46: 2021-05-03 | AH46: 2021-05-03 | AI46: 2021-05-05 | AJ46: 2021-05-04 | AK46: 2021-05-05 | AL46: 2021-05-07 | AN46: 2021-05-05 | AP46: 2021-05-06 | AQ46: 2021-05-06 | AR46: 2021-05-10 | AS46: 2021-05-07 | AT46: 2021-05-09 | AU46: 2021-05-11 | AV46: 2021-05-08 | AW46: 2021-05-10 | AX46: 2021-05-09 | AY46: 2021-05-11 | BA46: 2021-05-12 | BB46: 2021-05-14 | BD46: 2021-05-17 | BE46: 2021-05-18 | BF46: 2021-05-18 | BG46: 2021-05-18 | BH46: 2021-05-20 | BI46: 2021-05-18 | BJ46: 2021-05-19 | BK46: 2021-05-22 | BL46: 2021-05-21 | BO46: 2021-05-22 | BP46: 2021-05-24 | BQ46: 2021-05-22 | BR46: 2022-05-24 | BT46: 2021-05-31 | BU46: 2021-05-29 | BV46: 2021-06-28 | BX46: 2021-07-10 | BY46: 2021-09-11 | BZ46: 2021-09-13
A47: 45 | J47: 2021-03-09 | K47: 2021-03-09 | L47: 2021-03-25 | N47: 2021-03-26 | Q47: 2021-04-06 | R47: 2021-04-08 | S47: 2021-04-09 | T47: 2021-04-12 | U47: 2021-04-16 | V47: 2021-04-18 | W47: 2021-04-18 | X47: 2021-04-19 | Y47: 2021-04-20 | AA47: 2021-04-27 | AC47: 2021-04-29 | AE47: 2021-05-01 | AF47: 2021-05-02 | AG47: 2021-05-04 | AH47: 2021-05-04 | AI47: 2021-05-06 | AJ47: 2021-05-05 | AK47: 2021-05-06 | AL47: 2021-05-08 | AN47: 2021-05-06 | AP47: 2021-05-07 | AQ47: 2021-05-07 | AR47: 2021-05-11 | AS47: 2021-05-08 | AT47: 2021-05-10 | AU47: 2021-05-12 | AV47: 2021-05-09 | AW47: 2021-05-11 | AX47: 2021-05-10 | AY47: 2021-05-12 | BA47: 2021-05-13 | BB47: 2021-05-15 | BD47: 2021-05-18 | BE47: 2021-05-19 | BF47: 2021-05-19 | BG47: 2021-05-19 | BH47: 2021-05-21 | BI47: 2021-05-19 | BJ47: 2021-05-20 | BK47: 2021-05-23 | BL47: 2021-05-22 | BO47: 2021-05-23 | BP47: 2021-05-25 | BQ47: 2021-05-23 | BR47: 2022-05-25 | BT47: 2021-06-01 | BU47: 2021-05-30 | BV47: 2021-06-29 | BX47: 2021-07-11 | BY47: 2021-09-12 | BZ47: 2021-09-14
A48: 46 | J48: 2021-03-10 | K48: 2021-03-10 | L48: 2021-03-26 | N48: 2021-03-27 | Q48: 2021-04-07 | R48: 2021-04-09 | S48: 2021-04-10 | T48: 2021-04-13 | U48: 2021-04-17 | V48: 2021-04-19 | W48: 2021-04-19 | X48: 2021-04-20 | Y48: 2021-04-21 | AA48: 2021-04-28 | AC48: 2021-04-30 | AE48: 2021-05-02 | AF48: 2021-05-03 | AG48: 2021-05-05 | AH48: 2021-05-05 | AI48: 2021-05-07 | AJ48: 2021-05-06 | AK48: 2021-05-07 | AL48: 2021-05-09 | AN48: 2021-05-07 | AP48: 2021-05-08 | AQ48: 2021-05-08 | AR48: 2021-05-12 | AS48: 2021-05-09 | AT48: 2021-05-11 | AU48: 2021-05-13 | AV48: 2021-05-10 | AW48: 2021-05-12 | AX48: 2021-05-11 | AY48: 2021-05-13 | BA48: 2021-05-14 | BB48: 2021-05-16 | BD48: 2021-05-19 | BE48: 2021-05-20 | BF48: 2021-05-20 | BG48: 2021-05-20 | BH48: 2021-05-22 | BI48: 2021-05-20 | BJ48: 2021-05-21 | BK48: 2021-05-24 | BL48: 2021-05-23 | BO48: 2021-05-24 | BP48: 2021-05-26 | BQ48: 2021-05-24 | BR48: 2022-05-26 | BT48: 2021-06-02 | BU48: 2021-05-31 | BV48: 2021-06-30 | BX48: 2021-07-12 | BY48: 2021-09-13 | BZ48: 2021-09-15
A49: 47 | J49: 2021-03-11 | K49: 2021-03-11 | L49: 2021-03-27 | N49: 2021-03-28 | Q49: 2021-04-08 | R49: 2021-04-10 | S49: 2021-04-11 | T49: 2021-04-14 | U49: 2021-04-18 | V49: 2021-04-20 | W49: 2021-04-20 | X49: 2021-04-21 | Y49: 2021-04-22 | AA49: 2021-04-29 | AC49: 2021-05-01 | AE49: 2021-05-03 | AF49: 2021-05-04 | AG49: 2021-05-06 | AH49: 2021-05-06 | AI49: 2021-05-08 | AJ49: 2021-05-07 | AK49: 2021-05-08 | AL49: 2021-05-10 | AN49: 2021-05-08 | AP49: 2021-05-09 | AQ49: 2021-05-09 | AR49: 2021-05-13 | AS49: 2021-05-10 | AT49: 2021-05-12 | AU49: 2021-05-14 | AV49: 2021-05-11 | AW49: 2021-05-13 | AX49: 2021-05-12 | AY49: 2021-05-14 | BA49: 2021-05-15 | BB49: 2021-05-17 | BD49: 2021-05-20 | BE49: 2021-05-21 | BF49: 2021-05-21 | BG49: 2021-05-21 | BH49: 2021-05-23 | BI49: 2021-05-21 | BJ49: 2021-05-22 | BK49: 2021-05-25 | BL49: 2021-05-24 | BO49: 2021-05-25 | BP49: 2021-05-27 | BQ49: 2021-05-25 | BR49: 2022-05-27 | BT49: 2021-06-03 | BU49: 2021-06-01 | BV49: 2021-07-01 | BX49: 2021-07-13 | BY49: 2021-09-14 | BZ49: 2021-09-16
A50: 48 | J50: 2021-03-12 | K50: 2021-03-12 | L50: 2021-03-28 | N50: 2021-03-29 | Q50: 2021-04-09 | R50: 2021-04-11 | S50: 2021-04-12 | T50: 2021-04-15 | U50: 2021-04-19 | V50: 2021-04-21 | W50: 2021-04-21 | X50: 2021-04-22 | Y50: 2021-04-23 | AA50: 2021-04-30 | AC50: 2021-05-02 | AE50: 2021-05-04 | AF50: 2021-05-05 | AG50: 2021-05-07 | AH50: 2021-05-07 | AI50: 2021-05-09 | AJ50: 2021-05-08 | AK50: 2021-05-09 | AL50: 2021-05-11 | AN50: 2021-05-09 | AP50: 2021-05-10 | AQ50: 2021-05-10 | AR50: 2021-05-14 | AS50: 2021-05-11 | AT50: 2021-05-13 | AU50: 2021-05-15 | AV50: 2021-05-12 | AW50: 2021-05-14 | AX50: 2021-05-13 | AY50: 2021-05-15 | BA50: 2021-05-16 | BB50: 2021-05-18 | BD50: 2021-05-21 | BE50: 2021-05-22 | BF50: 2021-05-22 | BG50: 2021-05-22 | BH50: 2021-05-24 | BI50: 2021-05-22 | BJ50: 2021-05-23 | BK50: 2021-05-26 | BL50: 2021-05-25 | BO50: 2021-05-26 | BP50: 2021-05-28 | BQ50: 2021-05-26 | BR50: 2022-05-28 | BT50: 2021-06-04 | BU50: 2021-06-02 | BV50: 2021-07-02 | BX50: 2021-07-14 | BY50: 2021-09-15 | BZ50: 2021-09-17
A51: 7 weeks | J51: 2021-03-13 | K51: 2021-03-13 | L51: 2021-03-29 | N51: 2021-03-30 | Q51: 2021-04-10 | R51: 2021-04-12 | S51: 2021-04-13 | T51: 2021-04-16 | U51: 2021-04-20 | V51: 2021-04-22 | W51: 2021-04-22 | X51: 2021-04-23 | Y51: 2021-04-24 | AA51: 2021-05-01 | AC51: 2021-05-03 | AE51: 2021-05-05 | AF51: 2021-05-06 | AG51: 2021-05-08 | AH51: 2021-05-08 | AI51: 2021-05-10 | AJ51: 2021-05-09 | AK51: 2021-05-10 | AL51: 2021-05-12 | AN51: 2021-05-10 | AP51: 2021-05-11 | AQ51: 2021-05-11 | AR51: 2021-05-15 | AS51: 2021-05-12 | AT51: 2021-05-14 | AU51: 2021-05-16 | AV51: 2021-05-13 | AW51: 2021-05-15 | AX51: 2021-05-14 | AY51: 2021-05-16 | BA51: 2021-05-17 | BB51: 2021-05-19 | BD51: 2021-05-22 | BE51: 2021-05-23 | BF51: 2021-05-23 | BG51: 2021-05-23 | BH51: 2021-05-25 | BI51: 2021-05-23 | BJ51: 2021-05-24 | BK51: 2021-05-27 | BL51: 2021-05-26 | BO51: 2021-05-27 | BP51: 2021-05-29 | BQ51: 2021-05-27 | BR51: 2022-05-29 | BT51: 2021-06-05 | BU51: 2021-06-03 | BV51: 2021-07-03 | BX51: 2021-07-15 | BY51: 2021-09-16 | BZ51: 2021-09-18
A52: 50 | J52: 2021-03-14 | K52: 2021-03-14 | L52: 2021-03-30 | N52: 2021-03-31 | Q52: 2021-04-11 | R52: 2021-04-13 | S52: 2021-04-14 | T52: 2021-04-17 | U52: 2021-04-21 | V52: 2021-04-23 | W52: 2021-04-23 | X52: 2021-04-24 | Y52: 2021-04-25 | AA52: 2021-05-02 | AC52: 2021-05-04 | AE52: 2021-05-06 | AF52: 2021-05-07 | AG52: 2021-05-09 | AH52: 2021-05-09 | AI52: 2021-05-11 | AJ52: 2021-05-10 | AK52: 2021-05-11 | AL52: 2021-05-13 | AN52: 2021-05-11 | AP52: 2021-05-12 | AQ52: 2021-05-12 | AR52: 2021-05-16 | AS52: 2021-05-13 | AT52: 2021-05-15 | AU52: 2021-05-17 | AV52: 2021-05-14 | AW52: 2021-05-16 | AX52: 2021-05-15 | AY52: 2021-05-17 | BA52: 2021-05-18 | BB52: 2021-05-20 | BD52: 2021-05-23 | BE52: 2021-05-24 | BF52: 2021-05-24 | BG52: 2021-05-24 | BH52: 2021-05-26 | BI52: 2021-05-24 | BJ52: 2021-05-25 | BK52: 2021-05-28 | BL52: 2021-05-27 | BO52: 2021-05-28 | BP52: 2021-05-30 | BQ52: 2021-05-28 | BR52: 2022-05-30 | BT52: 2021-06-06 | BU52: 2021-06-04 | BV52: 2021-07-04 | BX52: 2021-07-16 | BY52: 2021-09-17 | BZ52: 2021-09-19
A53: 51 | J53: 2021-03-15 | K53: 2021-03-15 | L53: 2021-03-31 | N53: 2021-04-01 | Q53: 2021-04-12 | R53: 2021-04-14 | S53: 2021-04-15 | T53: 2021-04-18 | U53: 2021-04-22 | V53: 2021-04-24 | W53: 2021-04-24 | X53: 2021-04-25 | Y53: 2021-04-26 | AA53: 2021-05-03 | AC53: 2021-05-05 | AE53: 2021-05-07 | AF53: 2021-05-08 | AG53: 2021-05-10 | AH53: 2021-05-10 | AI53: 2021-05-12 | AJ53: 2021-05-11 | AK53: 2021-05-12 | AL53: 2021-05-14 | AN53: 2021-05-12 | AP53: 2021-05-13 | AQ53: 2021-05-13 | AR53: 2021-05-17 | AS53: 2021-05-14 | AT53: 2021-05-16 | AU53: 2021-05-18 | AV53: 2021-05-15 | AW53: 2021-05-17 | AX53: 2021-05-16 | AY53: 2021-05-18 | BA53: 2021-05-19 | BB53: 2021-05-21 | BD53: 2021-05-24 | BE53: 2021-05-25 | BF53: 2021-05-25 | BG53: 2021-05-25 | BH53: 2021-05-27 | BI53: 2021-05-25 | BJ53: 2021-05-26 | BK53: 2021-05-29 | BL53: 2021-05-28 | BO53: 2021-05-29 | BP53: 2021-05-31 | BQ53: 2021-05-29 | BR53: 2022-05-31 | BT53: 2021-06-07 | BU53: 2021-06-05 | BV53: 2021-07-05 | BX53: 2021-07-17 | BY53: 2021-09-18 | BZ53: 2021-09-20
A54: 52 | J54: 2021-03-16 | K54: 2021-03-16 | L54: 2021-04-01 | N54: 2021-04-02 | Q54: 2021-04-13 | R54: 2021-04-15 | S54: 2021-04-16 | T54: 2021-04-19 | U54: 2021-04-23 | V54: 2021-04-25 | W54: 2021-04-25 | X54: 2021-04-26 | Y54: 2021-04-27 | AA54: 2021-05-04 | AC54: 2021-05-06 | AE54: 2021-05-08 | AF54: 2021-05-09 | AG54: 2021-05-11 | AH54: 2021-05-11 | AI54: 2021-05-13 | AJ54: 2021-05-12 | AK54: 2021-05-13 | AL54: 2021-05-15 | AN54: 2021-05-13 | AP54: 2021-05-14 | AQ54: 2021-05-14 | AR54: 2021-05-18 | AS54: 2021-05-15 | AT54: 2021-05-17 | AU54: 2021-05-19 | AV54: 2021-05-16 | AW54: 2021-05-18 | AX54: 2021-05-17 | AY54: 2021-05-19 | BA54: 2021-05-20 | BB54: 2021-05-22 | BD54: 2021-05-25 | BE54: 2021-05-26 | BF54: 2021-05-26 | BG54: 2021-05-26 | BH54: 2021-05-28 | BI54: 2021-05-26 | BJ54: 2021-05-27 | BK54: 2021-05-30 | BL54: 2021-05-29 | BO54: 2021-05-30 | BP54: 2021-06-01 | BQ54: 2021-05-30 | BR54: 2022-06-01 | BT54: 2021-06-08 | BU54: 2021-06-06 | BV54: 2021-07-06 | BX54: 2021-07-18 | BY54: 2021-09-19 | BZ54: 2021-09-21
A55: 53 | J55: 2021-03-17 | K55: 2021-03-17 | L55: 2021-04-02 | N55: 2021-04-03 | Q55: 2021-04-14 | R55: 2021-04-16 | S55: 2021-04-17 | T55: 2021-04-20 | U55: 2021-04-24 | V55: 2021-04-26 | W55: 2021-04-26 | X55: 2021-04-27 | Y55: 2021-04-28 | AA55: 2021-05-05 | AC55: 2021-05-07 | AE55: 2021-05-09 | AF55: 2021-05-10 | AG55: 2021-05-12 | AH55: 2021-05-12 | AI55: 2021-05-14 | AJ55: 2021-05-13 | AK55: 2021-05-14 | AL55: 2021-05-16 | AN55: 2021-05-14 | AP55: 2021-05-15 | AQ55: 2021-05-15 | AR55: 2021-05-19 | AS55: 2021-05-16 | AT55: 2021-05-18 | AU55: 2021-05-20 | AV55: 2021-05-17 | AW55: 2021-05-19 | AX55: 2021-05-18 | AY55: 2021-05-20 | BA55: 2021-05-21 | BB55: 2021-05-23 | BD55: 2021-05-26 | BE55: 2021-05-27 | BF55: 2021-05-27 | BG55: 2021-05-27 | BH55: 2021-05-29 | BI55: 2021-05-27 | BJ55: 2021-05-28 | BK55: 2021-05-31 | BL55: 2021-05-30 | BO55: 2021-05-31 | BP55: 2021-06-02 | BQ55: 2021-05-31 | BR55: 2022-06-02 | BT55: 2021-06-09 | BU55: 2021-06-07 | BV55: 2021-07-07 | BX55: 2021-07-19 | BY55: 2021-09-20 | BZ55: 2021-09-22
A56: 54 | J56: 2021-03-18 | K56: 2021-03-18 | L56: 2021-04-03 | N56: 2021-04-04 | Q56: 2021-04-15 | R56: 2021-04-17 | S56: 2021-04-18 | T56: 2021-04-21 | U56: 2021-04-25 | V56: 2021-04-27 | W56: 2021-04-27 | X56: 2021-04-28 | Y56: 2021-04-29 | AA56: 2021-05-06 | AC56: 2021-05-08 | AE56: 2021-05-10 | AF56: 2021-05-11 | AG56: 2021-05-13 | AH56: 2021-05-13 | AI56: 2021-05-15 | AJ56: 2021-05-14 | AK56: 2021-05-15 | AL56: 2021-05-17 | AN56: 2021-05-15 | AP56: 2021-05-16 | AQ56: 2021-05-16 | AR56: 2021-05-20 | AS56: 2021-05-17 | AT56: 2021-05-19 | AU56: 2021-05-21 | AV56: 2021-05-18 | AW56: 2021-05-20 | AX56: 2021-05-19 | AY56: 2021-05-21 | BA56: 2021-05-22 | BB56: 2021-05-24 | BD56: 2021-05-27 | BE56: 2021-05-28 | BF56: 2021-05-28 | BG56: 2021-05-28 | BH56: 2021-05-30 | BI56: 2021-05-28 | BJ56: 2021-05-29 | BK56: 2021-06-01 | BL56: 2021-05-31 | BO56: 2021-06-01 | BP56: 2021-06-03 | BQ56: 2021-06-01 | BR56: 2022-06-03 | BT56: 2021-06-10 | BU56: 2021-06-08 | BV56: 2021-07-08 | BX56: 2021-07-20 | BY56: 2021-09-21 | BZ56: 2021-09-23
A57: 55 | J57: 2021-03-19 | K57: 2021-03-19 | L57: 2021-04-04 | N57: 2021-04-05 | Q57: 2021-04-16 | R57: 2021-04-18 | S57: 2021-04-19 | T57: 2021-04-22 | U57: 2021-04-26 | V57: 2021-04-28 | W57: 2021-04-28 | X57: 2021-04-29 | Y57: 2021-04-30 | AA57: 2021-05-07 | AC57: 2021-05-09 | AE57: 2021-05-11 | AF57: 2021-05-12 | AG57: 2021-05-14 | AH57: 2021-05-14 | AI57: 2021-05-16 | AJ57: 2021-05-15 | AK57: 2021-05-16 | AL57: 2021-05-18 | AN57: 2021-05-16 | AP57: 2021-05-17 | AQ57: 2021-05-17 | AR57: 2021-05-21 | AS57: 2021-05-18 | AT57: 2021-05-20 | AU57: 2021-05-22 | AV57: 2021-05-19 | AW57: 2021-05-21 | AX57: 2021-05-20 | AY57: 2021-05-22 | BA57: 2021-05-23 | BB57: 2021-05-25 | BD57: 2021-05-28 | BE57: 2021-05-29 | BF57: 2021-05-29 | BG57: 2021-05-29 | BH57: 2021-05-31 | BI57: 2021-05-29 | BJ57: 2021-05-30 | BK57: 2021-06-02 | BL57: 2021-06-01 | BO57: 2021-06-02 | BP57: 2021-06-04 | BQ57: 2021-06-02 | BR57: 2022-06-04 | BT57: 2021-06-11 | BU57: 2021-06-09 | BV57: 2021-07-09 | BX57: 2021-07-21 | BY57: 2021-09-22 | BZ57: 2021-09-24
A58: 8 weeks | J58: 2021-03-20 | K58: 2021-03-20 | L58: 2021-04-05 | N58: 2021-04-06 | Q58: 2021-04-17 | R58: 2021-04-19 | S58: 2021-04-20 | T58: 2021-04-23 | U58: 2021-04-27 | V58: 2021-04-29 | W58: 2021-04-29 | X58: 2021-04-30 | Y58: 2021-05-01 | AA58: 2021-05-08 | AC58: 2021-05-10 | AE58: 2021-05-12 | AF58: 2021-05-13 | AG58: 2021-05-15 | AH58: 2021-05-15 | AI58: 2021-05-17 | AJ58: 2021-05-16 | AK58: 2021-05-17 | AL58: 2021-05-19 | AN58: 2021-05-17 | AP58: 2021-05-18 | AQ58: 2021-05-18 | AR58: 2021-05-22 | AS58: 2021-05-19 | AT58: 2021-05-21 | AU58: 2021-05-23 | AV58: 2021-05-20 | AW58: 2021-05-22 | AX58: 2021-05-21 | AY58: 2021-05-23 | BA58: 2021-05-24 | BB58: 2021-05-26 | BD58: 2021-05-29 | BE58: 2021-05-30 | BF58: 2021-05-30 | BG58: 2021-05-30 | BH58: 2021-06-01 | BI58: 2021-05-30 | BJ58: 2021-05-31 | BK58: 2021-06-03 | BL58: 2021-06-02 | BO58: 2021-06-03 | BP58: 2021-06-05 | BQ58: 2021-06-03 | BR58: 2022-06-05 | BT58: 2021-06-12 | BU58: 2021-06-10 | BV58: 2021-07-10 | BX58: 2021-07-22 | BY58: 2021-09-23 | BZ58: 2021-09-25
A59: 57 | J59: 2021-03-21 | K59: 2021-03-21 | L59: 2021-04-06 | N59: 2021-04-07 | Q59: 2021-04-18 | R59: 2021-04-20 | S59: 2021-04-21 | T59: 2021-04-24 | U59: 2021-04-28 | V59: 2021-04-30 | W59: 2021-04-30 | X59: 2021-05-01 | Y59: 2021-05-02 | AA59: 2021-05-09 | AC59: 2021-05-11 | AE59: 2021-05-13 | AF59: 2021-05-14 | AG59: 2021-05-16 | AH59: 2021-05-16 | AI59: 2021-05-18 | AJ59: 2021-05-17 | AK59: 2021-05-18 | AL59: 2021-05-20 | AN59: 2021-05-18 | AP59: 2021-05-19 | AQ59: 2021-05-19 | AR59: 2021-05-23 | AS59: 2021-05-20 | AT59: 2021-05-22 | AU59: 2021-05-24 | AV59: 2021-05-21 | AW59: 2021-05-23 | AX59: 2021-05-22 | AY59: 2021-05-24 | BA59: 2021-05-25 | BB59: 2021-05-27 | BD59: 2021-05-30 | BE59: 2021-05-31 | BF59: 2021-05-31 | BG59: 2021-05-31 | BH59: 2021-06-02 | BI59: 2021-05-31 | BJ59: 2021-06-01 | BK59: 2021-06-04 | BL59: 2021-06-03 | BO59: 2021-06-04 | BP59: 2021-06-06 | BQ59: 2021-06-04 | BR59: 2022-06-06 | BT59: 2021-06-13 | BU59: 2021-06-11 | BV59: 2021-07-11 | BX59: 2021-07-23 | BY59: 2021-09-24 | BZ59: 2021-09-26
A60: 58 | J60: 2021-03-22 | K60: 2021-03-22 | L60: 2021-04-07 | N60: 2021-04-08 | Q60: 2021-04-19 | R60: 2021-04-21 | S60: 2021-04-22 | T60: 2021-04-25 | U60: 2021-04-29 | V60: 2021-05-01 | W60: 2021-05-01 | X60: 2021-05-02 | Y60: 2021-05-03 | AA60: 2021-05-10 | AC60: 2021-05-12 | AE60: 2021-05-14 | AF60: 2021-05-15 | AG60: 2021-05-17 | AH60: 2021-05-17 | AI60: 2021-05-19 | AJ60: 2021-05-18 | AK60: 2021-05-19 | AL60: 2021-05-21 | AN60: 2021-05-19 | AP60: 2021-05-20 | AQ60: 2021-05-20 | AR60: 2021-05-24 | AS60: 2021-05-21 | AT60: 2021-05-23 | AU60: 2021-05-25 | AV60: 2021-05-22 | AW60: 2021-05-24 | AX60: 2021-05-23 | AY60: 2021-05-25 | BA60: 2021-05-26 | BB60: 2021-05-28 | BD60: 2021-05-31 | BE60: 2021-06-01 | BF60: 2021-06-01 | BG60: 2021-06-01 | BH60: 2021-06-03 | BI60: 2021-06-01 | BJ60: 2021-06-02 | BK60: 2021-06-05 | BL60: 2021-06-04 | BO60: 2021-06-05 | BP60: 2021-06-07 | BQ60: 2021-06-05 | BR60: 2022-06-07 | BT60: 2021-06-14 | BU60: 2021-06-12 | BV60: 2021-07-12 | BX60: 2021-07-24 | BY60: 2021-09-25 | BZ60: 2021-09-27
A61: 59 | J61: 2021-03-23 | K61: 2021-03-23 | L61: 2021-04-08 | N61: 2021-04-09 | Q61: 2021-04-20 | R61: 2021-04-22 | S61: 2021-04-23 | T61: 2021-04-26 | U61: 2021-04-30 | V61: 2021-05-02 | W61: 2021-05-02 | X61: 2021-05-03 | Y61: 2021-05-04 | AA61: 2021-05-11 | AC61: 2021-05-13 | AE61: 2021-05-15 | AF61: 2021-05-16 | AG61: 2021-05-18 | AH61: 2021-05-18 | AI61: 2021-05-20 | AJ61: 2021-05-19 | AK61: 2021-05-20 | AL61: 2021-05-22 | AN61: 2021-05-20 | AP61: 2021-05-21 | AQ61: 2021-05-21 | AR61: 2021-05-25 | AS61: 2021-05-22 | AT61: 2021-05-24 | AU61: 2021-05-26 | AV61: 2021-05-23 | AW61: 2021-05-25 | AX61: 2021-05-24 | AY61: 2021-05-26 | BA61: 2021-05-27 | BB61: 2021-05-29 | BD61: 2021-06-01 | BE61: 2021-06-02 | BF61: 2021-06-02 | BG61: 2021-06-02 | BH61: 2021-06-04 | BI61: 2021-06-02 | BJ61: 2021-06-03 | BK61: 2021-06-06 | BL61: 2021-06-05 | BO61: 2021-06-06 | BP61: 2021-06-08 | BQ61: 2021-06-06 | BR61: 2022-06-08 | BT61: 2021-06-15 | BU61: 2021-06-13 | BV61: 2021-07-13 | BX61: 2021-07-25 | BY61: 2021-09-26 | BZ61: 2021-09-28
A62: 60 | J62: 2021-03-24 | K62: 2021-03-24 | L62: 2021-04-09 | N62: 2021-04-10 | Q62: 2021-04-21 | R62: 2021-04-23 | S62: 2021-04-24 | T62: 2021-04-27 | U62: 2021-05-01 | V62: 2021-05-03 | W62: 2021-05-03 | X62: 2021-05-04 | Y62: 2021-05-05 | AA62: 2021-05-12 | AC62: 2021-05-14 | AE62: 2021-05-16 | AF62: 2021-05-17 | AG62: 2021-05-19 | AH62: 2021-05-19 | AI62: 2021-05-21 | AJ62: 2021-05-20 | AK62: 2021-05-21 | AL62: 2021-05-23 | AN62: 2021-05-21 | AP62: 2021-05-22 | AQ62: 2021-05-22 | AR62: 2021-05-26 | AS62: 2021-05-23 | AT62: 2021-05-25 | AU62: 2021-05-27 | AV62: 2021-05-24 | AW62: 2021-05-26 | AX62: 2021-05-25 | AY62: 2021-05-27 | BA62: 2021-05-28 | BB62: 2021-05-30 | BD62: 2021-06-02 | BE62: 2021-06-03 | BF62: 2021-06-03 | BG62: 2021-06-03 | BH62: 2021-06-05 | BI62: 2021-06-03 | BJ62: 2021-06-04 | BK62: 2021-06-07 | BL62: 2021-06-06 | BO62: 2021-06-07 | BP62: 2021-06-09 | BQ62: 2021-06-07 | BR62: 2022-06-09 | BT62: 2021-06-16 | BU62: 2021-06-14 | BV62: 2021-07-14 | BX62: 2021-07-26 | BY62: 2021-09-27 | BZ62: 2021-09-29
A63: 61 | J63: 2021-03-25 | K63: 2021-03-25 | L63: 2021-04-10 | N63: 2021-04-11 | Q63: 2021-04-22 | R63: 2021-04-24 | S63: 2021-04-25 | T63: 2021-04-28 | U63: 2021-05-02 | V63: 2021-05-04 | W63: 2021-05-04 | X63: 2021-05-05 | Y63: 2021-05-06 | AA63: 2021-05-13 | AC63: 2021-05-15 | AE63: 2021-05-17 | AF63: 2021-05-18 | AG63: 2021-05-20 | AH63: 2021-05-20 | AI63: 2021-05-22 | AJ63: 2021-05-21 | AK63: 2021-05-22 | AL63: 2021-05-24 | AN63: 2021-05-22 | AP63: 2021-05-23 | AQ63: 2021-05-23 | AR63: 2021-05-27 | AS63: 2021-05-24 | AT63: 2021-05-26 | AU63: 2021-05-28 | AV63: 2021-05-25 | AW63: 2021-05-27 | AX63: 2021-05-26 | AY63: 2021-05-28 | BA63: 2021-05-29 | BB63: 2021-05-31 | BD63: 2021-06-03 | BE63: 2021-06-04 | BF63: 2021-06-04 | BG63: 2021-06-04 | BH63: 2021-06-06 | BI63: 2021-06-04 | BJ63: 2021-06-05 | BK63: 2021-06-08 | BL63: 2021-06-07 | BO63: 2021-06-08 | BP63: 2021-06-10 | BQ63: 2021-06-08 | BR63: 2022-06-10 | BT63: 2021-06-17 | BU63: 2021-06-15 | BV63: 2021-07-15 | BX63: 2021-07-27 | BY63: 2021-09-28 | BZ63: 2021-09-30
A64: 62 | J64: 2021-03-26 | K64: 2021-03-26 | L64: 2021-04-11 | N64: 2021-04-12 | Q64: 2021-04-23 | R64: 2021-04-25 | S64: 2021-04-26 | T64: 2021-04-29 | U64: 2021-05-03 | V64: 2021-05-05 | W64: 2021-05-05 | X64: 2021-05-06 | Y64: 2021-05-07 | AA64: 2021-05-14 | AC64: 2021-05-16 | AE64: 2021-05-18 | AF64: 2021-05-19 | AG64: 2021-05-21 | AH64: 2021-05-21 | AI64: 2021-05-23 | AJ64: 2021-05-22 | AK64: 2021-05-23 | AL64: 2021-05-25 | AN64: 2021-05-23 | AP64: 2021-05-24 | AQ64: 2021-05-24 | AR64: 2021-05-28 | AS64: 2021-05-25 | AT64: 2021-05-27 | AU64: 2021-05-29 | AV64: 2021-05-26 | AW64: 2021-05-28 | AX64: 2021-05-27 | AY64: 2021-05-29 | BA64: 2021-05-30 | BB64: 2021-06-01 | BD64: 2021-06-04 | BE64: 2021-06-05 | BF64: 2021-06-05 | BG64: 2021-06-05 | BH64: 2021-06-07 | BI64: 2021-06-05 | BJ64: 2021-06-06 | BK64: 2021-06-09 | BL64: 2021-06-08 | BO64: 2021-06-09 | BP64: 2021-06-11 | BQ64: 2021-06-09 | BR64: 2022-06-11 | BT64: 2021-06-18 | BU64: 2021-06-16 | BV64: 2021-07-16 | BX64: 2021-07-28 | BY64: 2021-09-29 | BZ64: 2021-10-01
A65: 9 weeks | J65: 2021-03-27 | K65: 2021-03-27 | L65: 2021-04-12 | N65: 2021-04-13 | Q65: 2021-04-24 | R65: 2021-04-26 | S65: 2021-04-27 | T65: 2021-04-30 | U65: 2021-05-04 | V65: 2021-05-06 | W65: 2021-05-06 | X65: 2021-05-07 | Y65: 2021-05-08 | AA65: 2021-05-15 | AC65: 2021-05-17 | AE65: 2021-05-19 | AF65: 2021-05-20 | AG65: 2021-05-22 | AH65: 2021-05-22 | AI65: 2021-05-24 | AJ65: 2021-05-23 | AK65: 2021-05-24 | AL65: 2021-05-26 | AN65: 2021-05-24 | AP65: 2021-05-25 | AQ65: 2021-05-25 | AR65: 2021-05-29 | AS65: 2021-05-26 | AT65: 2021-05-28 | AU65: 2021-05-30 | AV65: 2021-05-27 | AW65: 2021-05-29 | AX65: 2021-05-28 | AY65: 2021-05-30 | BA65: 2021-05-31 | BB65: 2021-06-02 | BD65: 2021-06-05 | BE65: 2021-06-06 | BF65: 2021-06-06 | BG65: 2021-06-06 | BH65: 2021-06-08 | BI65: 2021-06-06 | BJ65: 2021-06-07 | BK65: 2021-06-10 | BL65: 2021-06-09 | BO65: 2021-06-10 | BP65: 2021-06-12 | BQ65: 2021-06-10 | BR65: 2022-06-12 | BT65: 2021-06-19 | BU65: 2021-06-17 | BV65: 2021-07-17 | BX65: 2021-07-29 | BY65: 2021-09-30 | BZ65: 2021-10-02
A66: 64 | J66: 2021-03-28 | K66: 2021-03-28 | L66: 2021-04-13 | N66: 2021-04-14 | Q66: 2021-04-25 | R66: 2021-04-27 | S66: 2021-04-28 | T66: 2021-05-01 | U66: 2021-05-05 | V66: 2021-05-07 | W66: 2021-05-07 | X66: 2021-05-08 | Y66: 2021-05-09 | AA66: 2021-05-16 | AC66: 2021-05-18 | AE66: 2021-05-20 | AF66: 2021-05-21 | AG66: 2021-05-23 | AH66: 2021-05-23 | AI66: 2021-05-25 | AJ66: 2021-05-24 | AK66: 2021-05-25 | AL66: 2021-05-27 | AN66: 2021-05-25 | AP66: 2021-05-26 | AQ66: 2021-05-26 | AR66: 2021-05-30 | AS66: 2021-05-27 | AT66: 2021-05-29 | AU66: 2021-05-31 | AV66: 2021-05-28 | AW66: 2021-05-30 | AX66: 2021-05-29 | AY66: 2021-05-31 | BA66: 2021-06-01 | BB66: 2021-06-03 | BD66: 2021-06-06 | BE66: 2021-06-07 | BF66: 2021-06-07 | BG66: 2021-06-07 | BH66: 2021-06-09 | BI66: 2021-06-07 | BJ66: 2021-06-08 | BK66: 2021-06-11 | BL66: 2021-06-10 | BO66: 2021-06-11 | BP66: 2021-06-13 | BQ66: 2021-06-11 | BR66: 2022-06-13 | BT66: 2021-06-20 | BU66: 2021-06-18 | BV66: 2021-07-18 | BX66: 2021-07-30 | BY66: 2021-10-01 | BZ66: 2021-10-03
A67: 65 | J67: 2021-03-29 | K67: 2021-03-29 | L67: 2021-04-14 | N67: 2021-04-15 | Q67: 2021-04-26 | R67: 2021-04-28 | S67: 2021-04-29 | T67: 2021-05-02 | U67: 2021-05-06 | V67: 2021-05-08 | W67: 2021-05-08 | X67: 2021-05-09 | Y67: 2021-05-10 | AA67: 2021-05-17 | AC67: 2021-05-19 | AE67: 2021-05-21 | AF67: 2021-05-22 | AG67: 2021-05-24 | AH67: 2021-05-24 | AI67: 2021-05-26 | AJ67: 2021-05-25 | AK67: 2021-05-26 | AL67: 2021-05-28 | AN67: 2021-05-26 | AP67: 2021-05-27 | AQ67: 2021-05-27 | AR67: 2021-05-31 | AS67: 2021-05-28 | AT67: 2021-05-30 | AU67: 2021-06-01 | AV67: 2021-05-29 | AW67: 2021-05-31 | AX67: 2021-05-30 | AY67: 2021-06-01 | BA67: 2021-06-02 | BB67: 2021-06-04 | BD67: 2021-06-07 | BE67: 2021-06-08 | BF67: 2021-06-08 | BG67: 2021-06-08 | BH67: 2021-06-10 | BI67: 2021-06-08 | BJ67: 2021-06-09 | BK67: 2021-06-12 | BL67: 2021-06-11 | BO67: 2021-06-12 | BP67: 2021-06-14 | BQ67: 2021-06-12 | BR67: 2022-06-14 | BT67: 2021-06-21 | BU67: 2021-06-19 | BV67: 2021-07-19 | BX67: 2021-07-31 | BY67: 2021-10-02 | BZ67: 2021-10-04
A68: 66 | J68: 2021-03-30 | K68: 2021-03-30 | L68: 2021-04-15 | N68: 2021-04-16 | Q68: 2021-04-27 | R68: 2021-04-29 | S68: 2021-04-30 | T68: 2021-05-03 | U68: 2021-05-07 | V68: 2021-05-09 | W68: 2021-05-09 | X68: 2021-05-10 | Y68: 2021-05-11 | AA68: 2021-05-18 | AC68: 2021-05-20 | AE68: 2021-05-22 | AF68: 2021-05-23 | AG68: 2021-05-25 | AH68: 2021-05-25 | AI68: 2021-05-27 | AJ68: 2021-05-26 | AK68: 2021-05-27 | AL68: 2021-05-29 | AN68: 2021-05-27 | AP68: 2021-05-28 | AQ68: 2021-05-28 | AR68: 2021-06-01 | AS68: 2021-05-29 | AT68: 2021-05-31 | AU68: 2021-06-02 | AV68: 2021-05-30 | AW68: 2021-06-01 | AX68: 2021-05-31 | AY68: 2021-06-02 | BA68: 2021-06-03 | BB68: 2021-06-05 | BD68: 2021-06-08 | BE68: 2021-06-09 | BF68: 2021-06-09 | BG68: 2021-06-09 | BH68: 2021-06-11 | BI68: 2021-06-09 | BJ68: 2021-06-10 | BK68: 2021-06-13 | BL68: 2021-06-12 | BO68: 2021-06-13 | BP68: 2021-06-15 | BQ68: 2021-06-13 | BR68: 2022-06-15 | BT68: 2021-06-22 | BU68: 2021-06-20 | BV68: 2021-07-20 | BX68: 2021-08-01 | BY68: 2021-10-03 | BZ68: 2021-10-05
A69: 67 | J69: 2021-03-31 | K69: 2021-03-31 | L69: 2021-04-16 | N69: 2021-04-17 | Q69: 2021-04-28 | R69: 2021-04-30 | S69: 2021-05-01 | T69: 2021-05-04 | U69: 2021-05-08 | V69: 2021-05-10 | W69: 2021-05-10 | X69: 2021-05-11 | Y69: 2021-05-12 | AA69: 2021-05-19 | AC69: 2021-05-21 | AE69: 2021-05-23 | AF69: 2021-05-24 | AG69: 2021-05-26 | AH69: 2021-05-26 | AI69: 2021-05-28 | AJ69: 2021-05-27 | AK69: 2021-05-28 | AL69: 2021-05-30 | AN69: 2021-05-28 | AP69: 2021-05-29 | AQ69: 2021-05-29 | AR69: 2021-06-02 | AS69: 2021-05-30 | AT69: 2021-06-01 | AU69: 2021-06-03 | AV69: 2021-05-31 | AW69: 2021-06-02 | AX69: 2021-06-01 | AY69: 2021-06-03 | BA69: 2021-06-04 | BB69: 2021-06-06 | BD69: 2021-06-09 | BE69: 2021-06-10 | BF69: 2021-06-10 | BG69: 2021-06-10 | BH69: 2021-06-12 | BI69: 2021-06-10 | BJ69: 2021-06-11 | BK69: 2021-06-14 | BL69: 2021-06-13 | BO69: 2021-06-14 | BP69: 2021-06-16 | BQ69: 2021-06-14 | BR69: 2022-06-16 | BT69: 2021-06-23 | BU69: 2021-06-21 | BV69: 2021-07-21 | BX69: 2021-08-02 | BY69: 2021-10-04 | BZ69: 2021-10-06
A70: 68 | J70: 2021-04-01 | K70: 2021-04-01 | L70: 2021-04-17 | N70: 2021-04-18 | Q70: 2021-04-29 | R70: 2021-05-01 | S70: 2021-05-02 | T70: 2021-05-05 | U70: 2021-05-09 | V70: 2021-05-11 | W70: 2021-05-11 | X70: 2021-05-12 | Y70: 2021-05-13 | AA70: 2021-05-20 | AC70: 2021-05-22 | AE70: 2021-05-24 | AF70: 2021-05-25 | AG70: 2021-05-27 | AH70: 2021-05-27 | AI70: 2021-05-29 | AJ70: 2021-05-28 | AK70: 2021-05-29 | AL70: 2021-05-31 | AN70: 2021-05-29 | AP70: 2021-05-30 | AQ70: 2021-05-30 | AR70: 2021-06-03 | AS70: 2021-05-31 | AT70: 2021-06-02 | AU70: 2021-06-04 | AV70: 2021-06-01 | AW70: 2021-06-03 | AX70: 2021-06-02 | AY70: 2021-06-04 | BA70: 2021-06-05 | BB70: 2021-06-07 | BD70: 2021-06-10 | BE70: 2021-06-11 | BF70: 2021-06-11 | BG70: 2021-06-11 | BH70: 2021-06-13 | BI70: 2021-06-11 | BJ70: 2021-06-12 | BK70: 2021-06-15 | BL70: 2021-06-14 | BO70: 2021-06-15 | BP70: 2021-06-17 | BQ70: 2021-06-15 | BR70: 2022-06-17 | BT70: 2021-06-24 | BU70: 2021-06-22 | BV70: 2021-07-22 | BX70: 2021-08-03 | BY70: 2021-10-05 | BZ70: 2021-10-07
A71: 69 | J71: 2021-04-02 | K71: 2021-04-02 | L71: 2021-04-18 | N71: 2021-04-19 | Q71: 2021-04-30 | R71: 2021-05-02 | S71: 2021-05-03 | T71: 2021-05-06 | U71: 2021-05-10 | V71: 2021-05-12 | W71: 2021-05-12 | X71: 2021-05-13 | Y71: 2021-05-14 | AA71: 2021-05-21 | AC71: 2021-05-23 | AE71: 2021-05-25 | AF71: 2021-05-26 | AG71: 2021-05-28 | AH71: 2021-05-28 | AI71: 2021-05-30 | AJ71: 2021-05-29 | AK71: 2021-05-30 | AL71: 2021-06-01 | AN71: 2021-05-30 | AP71: 2021-05-31 | AQ71: 2021-05-31 | AR71: 2021-06-04 | AS71: 2021-06-01 | AT71: 2021-06-03 | AU71: 2021-06-05 | AV71: 2021-06-02 | AW71: 2021-06-04 | AX71: 2021-06-03 | AY71: 2021-06-05 | BA71: 2021-06-06 | BB71: 2021-06-08 | BD71: 2021-06-11 | BE71: 2021-06-12 | BF71: 2021-06-12 | BG71: 2021-06-12 | BH71: 2021-06-14 | BI71: 2021-06-12 | BJ71: 2021-06-13 | BK71: 2021-06-16 | BL71: 2021-06-15 | BO71: 2021-06-16 | BP71: 2021-06-18 | BQ71: 2021-06-16 | BR71: 2022-06-18 | BT71: 2021-06-25 | BU71: 2021-06-23 | BV71: 2021-07-23 | BX71: 2021-08-04 | BY71: 2021-10-06 | BZ71: 2021-10-08
A72: 10 weeks | J72: 2021-04-03 | K72: 2021-04-03 | L72: 2021-04-19 | N72: 2021-04-20 | Q72: 2021-05-01 | R72: 2021-05-03 | S72: 2021-05-04 | T72: 2021-05-07 | U72: 2021-05-11 | V72: 2021-05-13 | W72: 2021-05-13 | X72: 2021-05-14 | Y72: 2021-05-15 | AA72: 2021-05-22 | AC72: 2021-05-24 | AE72: 2021-05-26 | AF72: 2021-05-27 | AG72: 2021-05-29 | AH72: 2021-05-29 | AI72: 2021-05-31 | AJ72: 2021-05-30 | AK72: 2021-05-31 | AL72: 2021-06-02 | AN72: 2021-05-31 | AP72: 2021-06-01 | AQ72: 2021-06-01 | AR72: 2021-06-05 | AS72: 2021-06-02 | AT72: 2021-06-04 | AU72: 2021-06-06 | AV72: 2021-06-03 | AW72: 2021-06-05 | AX72: 2021-06-04 | AY72: 2021-06-06 | BA72: 2021-06-07 | BB72: 2021-06-09 | BD72: 2021-06-12 | BE72: 2021-06-13 | BF72: 2021-06-13 | BG72: 2021-06-13 | BH72: 2021-06-15 | BI72: 2021-06-13 | BJ72: 2021-06-14 | BK72: 2021-06-17 | BL72: 2021-06-16 | BO72: 2021-06-17 | BP72: 2021-06-19 | BQ72: 2021-06-17 | BR72: 2022-06-19 | BT72: 2021-06-26 | BU72: 2021-06-24 | BV72: 2021-07-24 | BX72: 2021-08-05 | BY72: 2021-10-07 | BZ72: 2021-10-09
A73: 71 | J73: 2021-04-04 | K73: 2021-04-04 | L73: 2021-04-20 | N73: 2021-04-21 | Q73: 2021-05-02 | R73: 2021-05-04 | S73: 2021-05-05 | T73: 2021-05-08 | U73: 2021-05-12 | V73: 2021-05-14 | W73: 2021-05-14 | X73: 2021-05-15 | Y73: 2021-05-16 | AA73: 2021-05-23 | AC73: 2021-05-25 | AE73: 2021-05-27 | AF73: 2021-05-28 | AG73: 2021-05-30 | AH73: 2021-05-30 | AI73: 2021-06-01 | AJ73: 2021-05-31 | AK73: 2021-06-01 | AL73: 2021-06-03 | AN73: 2021-06-01 | AP73: 2021-06-02 | AQ73: 2021-06-02 | AR73: 2021-06-06 | AS73: 2021-06-03 | AT73: 2021-06-05 | AU73: 2021-06-07 | AV73: 2021-06-04 | AW73: 2021-06-06 | AX73: 2021-06-05 | AY73: 2021-06-07 | BA73: 2021-06-08 | BB73: 2021-06-10 | BD73: 2021-06-13 | BE73: 2021-06-14 | BF73: 2021-06-14 | BG73: 2021-06-14 | BH73: 2021-06-16 | BI73: 2021-06-14 | BJ73: 2021-06-15 | BK73: 2021-06-18 | BL73: 2021-06-17 | BO73: 2021-06-18 | BP73: 2021-06-20 | BQ73: 2021-06-18 | BR73: 2022-06-20 | BT73: 2021-06-27 | BU73: 2021-06-25 | BV73: 2021-07-25 | BX73: 2021-08-06 | BY73: 2021-10-08 | BZ73: 2021-10-10
A74: 72 | J74: 2021-04-05 | K74: 2021-04-05 | L74: 2021-04-21 | N74: 2021-04-22 | Q74: 2021-05-03 | R74: 2021-05-05 | S74: 2021-05-06 | T74: 2021-05-09 | U74: 2021-05-13 | V74: 2021-05-15 | W74: 2021-05-15 | X74: 2021-05-16 | Y74: 2021-05-17 | AA74: 2021-05-24 | AC74: 2021-05-26 | AE74: 2021-05-28 | AF74: 2021-05-29 | AG74: 2021-05-31 | AH74: 2021-05-31 | AI74: 2021-06-02 | AJ74: 2021-06-01 | AK74: 2021-06-02 | AL74: 2021-06-04 | AN74: 2021-06-02 | AP74: 2021-06-03 | AQ74: 2021-06-03 | AR74: 2021-06-07 | AS74: 2021-06-04 | AT74: 2021-06-06 | AU74: 2021-06-08 | AV74: 2021-06-05 | AW74: 2021-06-07 | AX74: 2021-06-06 | AY74: 2021-06-08 | BA74: 2021-06-09 | BB74: 2021-06-11 | BD74: 2021-06-14 | BE74: 2021-06-15 | BF74: 2021-06-15 | BG74: 2021-06-15 | BH74: 2021-06-17 | BI74: 2021-06-15 | BJ74: 2021-06-16 | BK74: 2021-06-19 | BL74: 2021-06-18 | BO74: 2021-06-19 | BP74: 2021-06-21 | BQ74: 2021-06-19 | BR74: 2022-06-21 | BT74: 2021-06-28 | BU74: 2021-06-26 | BV74: 2021-07-26 | BX74: 2021-08-07 | BY74: 2021-10-09 | BZ74: 2021-10-11
A75: 73 | J75: 2021-04-06 | K75: 2021-04-06 | L75: 2021-04-22 | N75: 2021-04-23 | Q75: 2021-05-04 | R75: 2021-05-06 | S75: 2021-05-07 | T75: 2021-05-10 | U75: 2021-05-14 | V75: 2021-05-16 | W75: 2021-05-16 | X75: 2021-05-17 | Y75: 2021-05-18 | AA75: 2021-05-25 | AC75: 2021-05-27 | AE75: 2021-05-29 | AF75: 2021-05-30 | AG75: 2021-06-01 | AH75: 2021-06-01 | AI75: 2021-06-03 | AJ75: 2021-06-02 | AK75: 2021-06-03 | AL75: 2021-06-05 | AN75: 2021-06-03 | AP75: 2021-06-04 | AQ75: 2021-06-04 | AR75: 2021-06-08 | AS75: 2021-06-05 | AT75: 2021-06-07 | AU75: 2021-06-09 | AV75: 2021-06-06 | AW75: 2021-06-08 | AX75: 2021-06-07 | AY75: 2021-06-09 | BA75: 2021-06-10 | BB75: 2021-06-12 | BD75: 2021-06-15 | BE75: 2021-06-16 | BF75: 2021-06-16 | BG75: 2021-06-16 | BH75: 2021-06-18 | BI75: 2021-06-16 | BJ75: 2021-06-17 | BK75: 2021-06-20 | BL75: 2021-06-19 | BO75: 2021-06-20 | BP75: 2021-06-22 | BQ75: 2021-06-20 | BR75: 2022-06-22 | BT75: 2021-06-29 | BU75: 2021-06-27 | BV75: 2021-07-27 | BX75: 2021-08-08 | BY75: 2021-10-10 | BZ75: 2021-10-12
A76: 74 | J76: 2021-04-07 | K76: 2021-04-07 | L76: 2021-04-23 | N76: 2021-04-24 | Q76: 2021-05-05 | R76: 2021-05-07 | S76: 2021-05-08 | T76: 2021-05-11 | U76: 2021-05-15 | V76: 2021-05-17 | W76: 2021-05-17 | X76: 2021-05-18 | Y76: 2021-05-19 | AA76: 2021-05-26 | AC76: 2021-05-28 | AE76: 2021-05-30 | AF76: 2021-05-31 | AG76: 2021-06-02 | AH76: 2021-06-02 | AI76: 2021-06-04 | AJ76: 2021-06-03 | AK76: 2021-06-04 | AL76: 2021-06-06 | AN76: 2021-06-04 | AP76: 2021-06-05 | AQ76: 2021-06-05 | AR76: 2021-06-09 | AS76: 2021-06-06 | AT76: 2021-06-08 | AU76: 2021-06-10 | AV76: 2021-06-07 | AW76: 2021-06-09 | AX76: 2021-06-08 | AY76: 2021-06-10 | BA76: 2021-06-11 | BB76: 2021-06-13 | BD76: 2021-06-16 | BE76: 2021-06-17 | BF76: 2021-06-17 | BG76: 2021-06-17 | BH76: 2021-06-19 | BI76: 2021-06-17 | BJ76: 2021-06-18 | BK76: 2021-06-21 | BL76: 2021-06-20 | BO76: 2021-06-21 | BP76: 2021-06-23 | BQ76: 2021-06-21 | BR76: 2022-06-23 | BT76: 2021-06-30 | BU76: 2021-06-28 | BV76: 2021-07-28 | BX76: 2021-08-09 | BY76: 2021-10-11 | BZ76: 2021-10-13
A77: 75 | J77: 2021-04-08 | K77: 2021-04-08 | L77: 2021-04-24 | N77: 2021-04-25 | Q77: 2021-05-06 | R77: 2021-05-08 | S77: 2021-05-09 | T77: 2021-05-12 | U77: 2021-05-16 | V77: 2021-05-18 | W77: 2021-05-18 | X77: 2021-05-19 | Y77: 2021-05-20 | AA77: 2021-05-27 | AC77: 2021-05-29 | AE77: 2021-05-31 | AF77: 2021-06-01 | AG77: 2021-06-03 | AH77: 2021-06-03 | AI77: 2021-06-05 | AJ77: 2021-06-04 | AK77: 2021-06-05 | AL77: 2021-06-07 | AN77: 2021-06-05 | AP77: 2021-06-06 | AQ77: 2021-06-06 | AR77: 2021-06-10 | AS77: 2021-06-07 | AT77: 2021-06-09 | AU77: 2021-06-11 | AV77: 2021-06-08 | AW77: 2021-06-10 | AX77: 2021-06-09 | AY77: 2021-06-11 | BA77: 2021-06-12 | BB77: 2021-06-14 | BD77: 2021-06-17 | BE77: 2021-06-18 | BF77: 2021-06-18 | BG77: 2021-06-18 | BH77: 2021-06-20 | BI77: 2021-06-18 | BJ77: 2021-06-19 | BK77: 2021-06-22 | BL77: 2021-06-21 | BO77: 2021-06-22 | BP77: 2021-06-24 | BQ77: 2021-06-22 | BR77: 2022-06-24 | BT77: 2021-07-01 | BU77: 2021-06-29 | BV77: 2021-07-29 | BX77: 2021-08-10 | BY77: 2021-10-12 | BZ77: 2021-10-14
A78: 76 | J78: 2021-04-09 | K78: 2021-04-09 | L78: 2021-04-25 | N78: 2021-04-26 | Q78: 2021-05-07 | R78: 2021-05-09 | S78: 2021-05-10 | T78: 2021-05-13 | U78: 2021-05-17 | V78: 2021-05-19 | W78: 2021-05-19 | X78: 2021-05-20 | Y78: 2021-05-21 | AA78: 2021-05-28 | AC78: 2021-05-30 | AE78: 2021-06-01 | AF78: 2021-06-02 | AG78: 2021-06-04 | AH78: 2021-06-04 | AI78: 2021-06-06 | AJ78: 2021-06-05 | AK78: 2021-06-06 | AL78: 2021-06-08 | AN78: 2021-06-06 | AP78: 2021-06-07 | AQ78: 2021-06-07 | AR78: 2021-06-11 | AS78: 2021-06-08 | AT78: 2021-06-10 | AU78: 2021-06-12 | AV78: 2021-06-09 | AW78: 2021-06-11 | AX78: 2021-06-10 | AY78: 2021-06-12 | BA78: 2021-06-13 | BB78: 2021-06-15 | BD78: 2021-06-18 | BE78: 2021-06-19 | BF78: 2021-06-19 | BG78: 2021-06-19 | BH78: 2021-06-21 | BI78: 2021-06-19 | BJ78: 2021-06-20 | BK78: 2021-06-23 | BL78: 2021-06-22 | BO78: 2021-06-23 | BP78: 2021-06-25 | BQ78: 2021-06-23 | BR78: 2022-06-25 | BT78: 2021-07-02 | BU78: 2021-06-30 | BV78: 2021-07-30 | BX78: 2021-08-11 | BY78: 2021-10-13 | BZ78: 2021-10-15
A79: 11 weeks | J79: 2021-04-10 | K79: 2021-04-10 | L79: 2021-04-26 | N79: 2021-04-27 | Q79: 2021-05-08 | R79: 2021-05-10 | S79: 2021-05-11 | T79: 2021-05-14 | U79: 2021-05-18 | V79: 2021-05-20 | W79: 2021-05-20 | X79: 2021-05-21 | Y79: 2021-05-22 | AA79: 2021-05-29 | AC79: 2021-05-31 | AE79: 2021-06-02 | AF79: 2021-06-03 | AG79: 2021-06-05 | AH79: 2021-06-05 | AI79: 2021-06-07 | AJ79: 2021-06-06 | AK79: 2021-06-07 | AL79: 2021-06-09 | AN79: 2021-06-07 | AP79: 2021-06-08 | AQ79: 2021-06-08 | AR79: 2021-06-12 | AS79: 2021-06-09 | AT79: 2021-06-11 | AU79: 2021-06-13 | AV79: 2021-06-10 | AW79: 2021-06-12 | AX79: 2021-06-11 | AY79: 2021-06-13 | BA79: 2021-06-14 | BB79: 2021-06-16 | BD79: 2021-06-19 | BE79: 2021-06-20 | BF79: 2021-06-20 | BG79: 2021-06-20 | BH79: 2021-06-22 | BI79: 2021-06-20 | BJ79: 2021-06-21 | BK79: 2021-06-24 | BL79: 2021-06-23 | BO79: 2021-06-24 | BP79: 2021-06-26 | BQ79: 2021-06-24 | BR79: 2022-06-26 | BT79: 2021-07-03 | BU79: 2021-07-01 | BV79: 2021-07-31 | BX79: 2021-08-12 | BY79: 2021-10-14 | BZ79: 2021-10-16
A80: 78 | J80: 2021-04-11 | K80: 2021-04-11 | L80: 2021-04-27 | N80: 2021-04-28 | Q80: 2021-05-09 | R80: 2021-05-11 | S80: 2021-05-12 | T80: 2021-05-15 | U80: 2021-05-19 | V80: 2021-05-21 | W80: 2021-05-21 | X80: 2021-05-22 | Y80: 2021-05-23 | AA80: 2021-05-30 | AC80: 2021-06-01 | AE80: 2021-06-03 | AF80: 2021-06-04 | AG80: 2021-06-06 | AH80: 2021-06-06 | AI80: 2021-06-08 | AJ80: 2021-06-07 | AK80: 2021-06-08 | AL80: 2021-06-10 | AN80: 2021-06-08 | AP80: 2021-06-09 | AQ80: 2021-06-09 | AR80: 2021-06-13 | AS80: 2021-06-10 | AT80: 2021-06-12 | AU80: 2021-06-14 | AV80: 2021-06-11 | AW80: 2021-06-13 | AX80: 2021-06-12 | AY80: 2021-06-14 | BA80: 2021-06-15 | BB80: 2021-06-17 | BD80: 2021-06-20 | BE80: 2021-06-21 | BF80: 2021-06-21 | BG80: 2021-06-21 | BH80: 2021-06-23 | BI80: 2021-06-21 | BJ80: 2021-06-22 | BK80: 2021-06-25 | BL80: 2021-06-24 | BO80: 2021-06-25 | BP80: 2021-06-27 | BQ80: 2021-06-25 | BR80: 2022-06-27 | BT80: 2021-07-04 | BU80: 2021-07-02 | BV80: 2021-08-01 | BX80: 2021-08-13 | BY80: 2021-10-15 | BZ80: 2021-10-17
A81: 79 | J81: 2021-04-12 | K81: 2021-04-12 | L81: 2021-04-28 | N81: 2021-04-29 | Q81: 2021-05-10 | R81: 2021-05-12 | S81: 2021-05-13 | T81: 2021-05-16 | U81: 2021-05-20 | V81: 2021-05-22 | W81: 2021-05-22 | X81: 2021-05-23 | Y81: 2021-05-24 | AA81: 2021-05-31 | AC81: 2021-06-02 | AE81: 2021-06-04 | AF81: 2021-06-05 | AG81: 2021-06-07 | AH81: 2021-06-07 | AI81: 2021-06-09 | AJ81: 2021-06-08 | AK81: 2021-06-09 | AL81: 2021-06-11 | AN81: 2021-06-09 | AP81: 2021-06-10 | AQ81: 2021-06-10 | AR81: 2021-06-14 | AS81: 2021-06-11 | AT81: 2021-06-13 | AU81: 2021-06-15 | AV81: 2021-06-12 | AW81: 2021-06-14 | AX81: 2021-06-13 | AY81: 2021-06-15 | BA81: 2021-06-16 | BB81: 2021-06-18 | BD81: 2021-06-21 | BE81: 2021-06-22 | BF81: 2021-06-22 | BG81: 2021-06-22 | BH81: 2021-06-24 | BI81: 2021-06-22 | BJ81: 2021-06-23 | BK81: 2021-06-26 | BL81: 2021-06-25 | BO81: 2021-06-26 | BP81: 2021-06-28 | BQ81: 2021-06-26 | BR81: 2022-06-28 | BT81: 2021-07-05 | BU81: 2021-07-03 | BV81: 2021-08-02 | BX81: 2021-08-14 | BY81: 2021-10-16 | BZ81: 2021-10-18
A82: 80 | J82: 2021-04-13 | K82: 2021-04-13 | L82: 2021-04-29 | N82: 2021-04-30 | Q82: 2021-05-11 | R82: 2021-05-13 | S82: 2021-05-14 | T82: 2021-05-17 | U82: 2021-05-21 | V82: 2021-05-23 | W82: 2021-05-23 | X82: 2021-05-24 | Y82: 2021-05-25 | AA82: 2021-06-01 | AC82: 2021-06-03 | AE82: 2021-06-05 | AF82: 2021-06-06 | AG82: 2021-06-08 | AH82: 2021-06-08 | AI82: 2021-06-10 | AJ82: 2021-06-09 | AK82: 2021-06-10 | AL82: 2021-06-12 | AN82: 2021-06-10 | AP82: 2021-06-11 | AQ82: 2021-06-11 | AR82: 2021-06-15 | AS82: 2021-06-12 | AT82: 2021-06-14 | AU82: 2021-06-16 | AV82: 2021-06-13 | AW82: 2021-06-15 | AX82: 2021-06-14 | AY82: 2021-06-16 | BA82: 2021-06-17 | BB82: 2021-06-19 | BD82: 2021-06-22 | BE82: 2021-06-23 | BF82: 2021-06-23 | BG82: 2021-06-23 | BH82: 2021-06-25 | BI82: 2021-06-23 | BJ82: 2021-06-24 | BK82: 2021-06-27 | BL82: 2021-06-26 | BO82: 2021-06-27 | BP82: 2021-06-29 | BQ82: 2021-06-27 | BR82: 2022-06-29 | BT82: 2021-07-06 | BU82: 2021-07-04 | BV82: 2021-08-03 | BX82: 2021-08-15 | BY82: 2021-10-17 | BZ82: 2021-10-19
A83: 81 | J83: 2021-04-14 | K83: 2021-04-14 | L83: 2021-04-30 | N83: 2021-05-01 | Q83: 2021-05-12 | R83: 2021-05-14 | S83: 2021-05-15 | T83: 2021-05-18 | U83: 2021-05-22 | V83: 2021-05-24 | W83: 2021-05-24 | X83: 2021-05-25 | Y83: 2021-05-26 | AA83: 2021-06-02 | AC83: 2021-06-04 | AE83: 2021-06-06 | AF83: 2021-06-07 | AG83: 2021-06-09 | AH83: 2021-06-09 | AI83: 2021-06-11 | AJ83: 2021-06-10 | AK83: 2021-06-11 | AL83: 2021-06-13 | AN83: 2021-06-11 | AP83: 2021-06-12 | AQ83: 2021-06-12 | AR83: 2021-06-16 | AS83: 2021-06-13 | AT83: 2021-06-15 | AU83: 2021-06-17 | AV83: 2021-06-14 | AW83: 2021-06-16 | AX83: 2021-06-15 | AY83: 2021-06-17 | BA83: 2021-06-18 | BB83: 2021-06-20 | BD83: 2021-06-23 | BE83: 2021-06-24 | BF83: 2021-06-24 | BG83: 2021-06-24 | BH83: 2021-06-26 | BI83: 2021-06-24 | BJ83: 2021-06-25 | BK83: 2021-06-28 | BL83: 2021-06-27 | BO83: 2021-06-28 | BP83: 2021-06-30 | BQ83: 2021-06-28 | BR83: 2022-06-30 | BT83: 2021-07-07 | BU83: 2021-07-05 | BV83: 2021-08-04 | BX83: 2021-08-16 | BY83: 2021-10-18 | BZ83: 2021-10-20
A84: 82 | J84: 2021-04-15 | K84: 2021-04-15 | L84: 2021-05-01 | N84: 2021-05-02 | Q84: 2021-05-13 | R84: 2021-05-15 | S84: 2021-05-16 | T84: 2021-05-19 | U84: 2021-05-23 | V84: 2021-05-25 | W84: 2021-05-25 | X84: 2021-05-26 | Y84: 2021-05-27 | AA84: 2021-06-03 | AC84: 2021-06-05 | AE84: 2021-06-07 | AF84: 2021-06-08 | AG84: 2021-06-10 | AH84: 2021-06-10 | AI84: 2021-06-12 | AJ84: 2021-06-11 | AK84: 2021-06-12 | AL84: 2021-06-14 | AN84: 2021-06-12 | AP84: 2021-06-13 | AQ84: 2021-06-13 | AR84: 2021-06-17 | AS84: 2021-06-14 | AT84: 2021-06-16 | AU84: 2021-06-18 | AV84: 2021-06-15 | AW84: 2021-06-17 | AX84: 2021-06-16 | AY84: 2021-06-18 | BA84: 2021-06-19 | BB84: 2021-06-21 | BD84: 2021-06-24 | BE84: 2021-06-25 | BF84: 2021-06-25 | BG84: 2021-06-25 | BH84: 2021-06-27 | BI84: 2021-06-25 | BJ84: 2021-06-26 | BK84: 2021-06-29 | BL84: 2021-06-28 | BO84: 2021-06-29 | BP84: 2021-07-01 | BQ84: 2021-06-29 | BR84: 2022-07-01 | BT84: 2021-07-08 | BU84: 2021-07-06 | BV84: 2021-08-05 | BX84: 2021-08-17 | BY84: 2021-10-19 | BZ84: 2021-10-21
A85: 83 | J85: 2021-04-16 | K85: 2021-04-16 | L85: 2021-05-02 | N85: 2021-05-03 | Q85: 2021-05-14 | R85: 2021-05-16 | S85: 2021-05-17 | T85: 2021-05-20 | U85: 2021-05-24 | V85: 2021-05-26 | W85: 2021-05-26 | X85: 2021-05-27 | Y85: 2021-05-28 | AA85: 2021-06-04 | AC85: 2021-06-06 | AE85: 2021-06-08 | AF85: 2021-06-09 | AG85: 2021-06-11 | AH85: 2021-06-11 | AI85: 2021-06-13 | AJ85: 2021-06-12 | AK85: 2021-06-13 | AL85: 2021-06-15 | AN85: 2021-06-13 | AP85: 2021-06-14 | AQ85: 2021-06-14 | AR85: 2021-06-18 | AS85: 2021-06-15 | AT85: 2021-06-17 | AU85: 2021-06-19 | AV85: 2021-06-16 | AW85: 2021-06-18 | AX85: 2021-06-17 | AY85: 2021-06-19 | BA85: 2021-06-20 | BB85: 2021-06-22 | BD85: 2021-06-25 | BE85: 2021-06-26 | BF85: 2021-06-26 | BG85: 2021-06-26 | BH85: 2021-06-28 | BI85: 2021-06-26 | BJ85: 2021-06-27 | BK85: 2021-06-30 | BL85: 2021-06-29 | BO85: 2021-06-30 | BP85: 2021-07-02 | BQ85: 2021-06-30 | BR85: 2022-07-02 | BT85: 2021-07-09 | BU85: 2021-07-07 | BV85: 2021-08-06 | BX85: 2021-08-18 | BY85: 2021-10-20 | BZ85: 2021-10-22
A86: 12 weeks | J86: 2021-04-17 | K86: 2021-04-17 | L86: 2021-05-03 | N86: 2021-05-04 | Q86: 2021-05-15 | R86: 2021-05-17 | S86: 2021-05-18 | T86: 2021-05-21 | U86: 2021-05-25 | V86: 2021-05-27 | W86: 2021-05-27 | X86: 2021-05-28 | Y86: 2021-05-29 | AA86: 2021-06-05 | AC86: 2021-06-07 | AE86: 2021-06-09 | AF86: 2021-06-10 | AG86: 2021-06-12 | AH86: 2021-06-12 | AI86: 2021-06-14 | AJ86: 2021-06-13 | AK86: 2021-06-14 | AL86: 2021-06-16 | AN86: 2021-06-14 | AP86: 2021-06-15 | AQ86: 2021-06-15 | AR86: 2021-06-19 | AS86: 2021-06-16 | AT86: 2021-06-18 | AU86: 2021-06-20 | AV86: 2021-06-17 | AW86: 2021-06-19 | AX86: 2021-06-18 | AY86: 2021-06-20 | BA86: 2021-06-21 | BB86: 2021-06-23 | BD86: 2021-06-26 | BE86: 2021-06-27 | BF86: 2021-06-27 | BG86: 2021-06-27 | BH86: 2021-06-29 | BI86: 2021-06-27 | BJ86: 2021-06-28 | BK86: 2021-07-01 | BL86: 2021-06-30 | BO86: 2021-07-01 | BP86: 2021-07-03 | BQ86: 2021-07-01 | BR86: 2022-07-03 | BT86: 2021-07-10 | BU86: 2021-07-08 | BV86: 2021-08-07 | BX86: 2021-08-19 | BY86: 2021-10-21 | BZ86: 2021-10-23
A87: 85 | J87: 2021-04-18 | K87: 2021-04-18 | L87: 2021-05-04 | N87: 2021-05-05 | Q87: 2021-05-16 | R87: 2021-05-18 | S87: 2021-05-19 | T87: 2021-05-22 | U87: 2021-05-26 | V87: 2021-05-28 | W87: 2021-05-28 | X87: 2021-05-29 | Y87: 2021-05-30 | AA87: 2021-06-06 | AC87: 2021-06-08 | AE87: 2021-06-10 | AF87: 2021-06-11 | AG87: 2021-06-13 | AH87: 2021-06-13 | AI87: 2021-06-15 | AJ87: 2021-06-14 | AK87: 2021-06-15 | AL87: 2021-06-17 | AN87: 2021-06-15 | AP87: 2021-06-16 | AQ87: 2021-06-16 | AR87: 2021-06-20 | AS87: 2021-06-17 | AT87: 2021-06-19 | AU87: 2021-06-21 | AV87: 2021-06-18 | AW87: 2021-06-20 | AX87: 2021-06-19 | AY87: 2021-06-21 | BA87: 2021-06-22 | BB87: 2021-06-24 | BD87: 2021-06-27 | BE87: 2021-06-28 | BF87: 2021-06-28 | BG87: 2021-06-28 | BH87: 2021-06-30 | BI87: 2021-06-28 | BJ87: 2021-06-29 | BK87: 2021-07-02 | BL87: 2021-07-01 | BO87: 2021-07-02 | BP87: 2021-07-04 | BQ87: 2021-07-02 | BR87: 2022-07-04 | BT87: 2021-07-11 | BU87: 2021-07-09 | BV87: 2021-08-08 | BX87: 2021-08-20 | BY87: 2021-10-22 | BZ87: 2021-10-24
A88: 86 | J88: 2021-04-19 | K88: 2021-04-19 | L88: 2021-05-05 | N88: 2021-05-06 | Q88: 2021-05-17 | R88: 2021-05-19 | S88: 2021-05-20 | T88: 2021-05-23 | U88: 2021-05-27 | V88: 2021-05-29 | W88: 2021-05-29 | X88: 2021-05-30 | Y88: 2021-05-31 | AA88: 2021-06-07 | AC88: 2021-06-09 | AE88: 2021-06-11 | AF88: 2021-06-12 | AG88: 2021-06-14 | AH88: 2021-06-14 | AI88: 2021-06-16 | AJ88: 2021-06-15 | AK88: 2021-06-16 | AL88: 2021-06-18 | AN88: 2021-06-16 | AP88: 2021-06-17 | AQ88: 2021-06-17 | AR88: 2021-06-21 | AS88: 2021-06-18 | AT88: 2021-06-20 | AU88: 2021-06-22 | AV88: 2021-06-19 | AW88: 2021-06-21 | AX88: 2021-06-20 | AY88: 2021-06-22 | BA88: 2021-06-23 | BB88: 2021-06-25 | BD88: 2021-06-28 | BE88: 2021-06-29 | BF88: 2021-06-29 | BG88: 2021-06-29 | BH88: 2021-07-01 | BI88: 2021-06-29 | BJ88: 2021-06-30 | BK88: 2021-07-03 | BL88: 2021-07-02 | BO88: 2021-07-03 | BP88: 2021-07-05 | BQ88: 2021-07-03 | BR88: 2022-07-05 | BT88: 2021-07-12 | BU88: 2021-07-10 | BV88: 2021-08-09 | BX88: 2021-08-21 | BY88: 2021-10-23 | BZ88: 2021-10-25
A89: 87 | J89: 2021-04-20 | K89: 2021-04-20 | L89: 2021-05-06 | N89: 2021-05-07 | Q89: 2021-05-18 | R89: 2021-05-20 | S89: 2021-05-21 | T89: 2021-05-24 | U89: 2021-05-28 | V89: 2021-05-30 | W89: 2021-05-30 | X89: 2021-05-31 | Y89: 2021-06-01 | AA89: 2021-06-08 | AC89: 2021-06-10 | AE89: 2021-06-12 | AF89: 2021-06-13 | AG89: 2021-06-15 | AH89: 2021-06-15 | AI89: 2021-06-17 | AJ89: 2021-06-16 | AK89: 2021-06-17 | AL89: 2021-06-19 | AN89: 2021-06-17 | AP89: 2021-06-18 | AQ89: 2021-06-18 | AR89: 2021-06-22 | AS89: 2021-06-19 | AT89: 2021-06-21 | AU89: 2021-06-23 | AV89: 2021-06-20 | AW89: 2021-06-22 | AX89: 2021-06-21 | AY89: 2021-06-23 | BA89: 2021-06-24 | BB89: 2021-06-26 | BD89: 2021-06-29 | BE89: 2021-06-30 | BF89: 2021-06-30 | BG89: 2021-06-30 | BH89: 2021-07-02 | BI89: 2021-06-30 | BJ89: 2021-07-01 | BK89: 2021-07-04 | BL89: 2021-07-03 | BO89: 2021-07-04 | BP89: 2021-07-06 | BQ89: 2021-07-04 | BR89: 2022-07-06 | BT89: 2021-07-13 | BU89: 2021-07-11 | BV89: 2021-08-10 | BX89: 2021-08-22 | BY89: 2021-10-24 | BZ89: 2021-10-26
A90: 88 | J90: 2021-04-21 | K90: 2021-04-21 | L90: 2021-05-07 | N90: 2021-05-08 | Q90: 2021-05-19 | R90: 2021-05-21 | S90: 2021-05-22 | T90: 2021-05-25 | U90: 2021-05-29 | V90: 2021-05-31 | W90: 2021-05-31 | X90: 2021-06-01 | Y90: 2021-06-02 | AA90: 2021-06-09 | AC90: 2021-06-11 | AE90: 2021-06-13 | AF90: 2021-06-14 | AG90: 2021-06-16 | AH90: 2021-06-16 | AI90: 2021-06-18 | AJ90: 2021-06-17 | AK90: 2021-06-18 | AL90: 2021-06-20 | AN90: 2021-06-18 | AP90: 2021-06-19 | AQ90: 2021-06-19 | AR90: 2021-06-23 | AS90: 2021-06-20 | AT90: 2021-06-22 | AU90: 2021-06-24 | AV90: 2021-06-21 | AW90: 2021-06-23 | AX90: 2021-06-22 | AY90: 2021-06-24 | BA90: 2021-06-25 | BB90: 2021-06-27 | BD90: 2021-06-30 | BE90: 2021-07-01 | BF90: 2021-07-01 | BG90: 2021-07-01 | BH90: 2021-07-03 | BI90: 2021-07-01 | BJ90: 2021-07-02 | BK90: 2021-07-05 | BL90: 2021-07-04 | BO90: 2021-07-05 | BP90: 2021-07-07 | BQ90: 2021-07-05 | BR90: 2022-07-07 | BT90: 2021-07-14 | BU90: 2021-07-12 | BV90: 2021-08-11 | BX90: 2021-08-23 | BY90: 2021-10-25 | BZ90: 2021-10-27
A91: 89 | J91: 2021-04-22 | K91: 2021-04-22 | L91: 2021-05-08 | N91: 2021-05-09 | Q91: 2021-05-20 | R91: 2021-05-22 | S91: 2021-05-23 | T91: 2021-05-26 | U91: 2021-05-30 | V91: 2021-06-01 | W91: 2021-06-01 | X91: 2021-06-02 | Y91: 2021-06-03 | AA91: 2021-06-10 | AC91: 2021-06-12 | AE91: 2021-06-14 | AF91: 2021-06-15 | AG91: 2021-06-17 | AH91: 2021-06-17 | AI91: 2021-06-19 | AJ91: 2021-06-18 | AK91: 2021-06-19 | AL91: 2021-06-21 | AN91: 2021-06-19 | AP91: 2021-06-20 | AQ91: 2021-06-20 | AR91: 2021-06-24 | AS91: 2021-06-21 | AT91: 2021-06-23 | AU91: 2021-06-25 | AV91: 2021-06-22 | AW91: 2021-06-24 | AX91: 2021-06-23 | AY91: 2021-06-25 | BA91: 2021-06-26 | BB91: 2021-06-28 | BD91: 2021-07-01 | BE91: 2021-07-02 | BF91: 2021-07-02 | BG91: 2021-07-02 | BH91: 2021-07-04 | BI91: 2021-07-02 | BJ91: 2021-07-03 | BK91: 2021-07-06 | BL91: 2021-07-05 | BO91: 2021-07-06 | BP91: 2021-07-08 | BQ91: 2021-07-06 | BR91: 2022-07-08 | BT91: 2021-07-15 | BU91: 2021-07-13 | BV91: 2021-08-12 | BX91: 2021-08-24 | BY91: 2021-10-26 | BZ91: 2021-10-28
A92: 90 | J92: 2021-04-23 | K92: 2021-04-23 | L92: 2021-05-09 | N92: 2021-05-10 | Q92: 2021-05-21 | R92: 2021-05-23 | S92: 2021-05-24 | T92: 2021-05-27 | U92: 2021-05-31 | V92: 2021-06-02 | W92: 2021-06-02 | X92: 2021-06-03 | Y92: 2021-06-04 | AA92: 2021-06-11 | AC92: 2021-06-13 | AE92: 2021-06-15 | AF92: 2021-06-16 | AG92: 2021-06-18 | AH92: 2021-06-18 | AI92: 2021-06-20 | AJ92: 2021-06-19 | AK92: 2021-06-20 | AL92: 2021-06-22 | AN92: 2021-06-20 | AP92: 2021-06-21 | AQ92: 2021-06-21 | AR92: 2021-06-25 | AS92: 2021-06-22 | AT92: 2021-06-24 | AU92: 2021-06-26 | AV92: 2021-06-23 | AW92: 2021-06-25 | AX92: 2021-06-24 | AY92: 2021-06-26 | BA92: 2021-06-27 | BB92: 2021-06-29 | BD92: 2021-07-02 | BE92: 2021-07-03 | BF92: 2021-07-03 | BG92: 2021-07-03 | BH92: 2021-07-05 | BI92: 2021-07-03 | BJ92: 2021-07-04 | BK92: 2021-07-07 | BL92: 2021-07-06 | BO92: 2021-07-07 | BP92: 2021-07-09 | BQ92: 2021-07-07 | BR92: 2022-07-09 | BT92: 2021-07-16 | BU92: 2021-07-14 | BV92: 2021-08-13 | BX92: 2021-08-25 | BY92: 2021-10-27 | BZ92: 2021-10-29
A93: 13 weeks | J93: 2021-04-24 | K93: 2021-04-24 | L93: 2021-05-10 | N93: 2021-05-11 | Q93: 2021-05-22 | R93: 2021-05-24 | S93: 2021-05-25 | T93: 2021-05-28 | U93: 2021-06-01 | V93: 2021-06-03 | W93: 2021-06-03 | X93: 2021-06-04 | Y93: 2021-06-05 | AA93: 2021-06-12 | AC93: 2021-06-14 | AE93: 2021-06-16 | AF93: 2021-06-17 | AG93: 2021-06-19 | AH93: 2021-06-19 | AI93: 2021-06-21 | AJ93: 2021-06-20 | AK93: 2021-06-21 | AL93: 2021-06-23 | AN93: 2021-06-21 | AP93: 2021-06-22 | AQ93: 2021-06-22 | AR93: 2021-06-26 | AS93: 2021-06-23 | AT93: 2021-06-25 | AU93: 2021-06-27 | AV93: 2021-06-24 | AW93: 2021-06-26 | AX93: 2021-06-25 | AY93: 2021-06-27 | BA93: 2021-06-28 | BB93: 2021-06-30 | BD93: 2021-07-03 | BE93: 2021-07-04 | BF93: 2021-07-04 | BG93: 2021-07-04 | BH93: 2021-07-06 | BI93: 2021-07-04 | BJ93: 2021-07-05 | BK93: 2021-07-08 | BL93: 2021-07-07 | BO93: 2021-07-08 | BP93: 2021-07-10 | BQ93: 2021-07-08 | BR93: 2022-07-10 | BT93: 2021-07-17 | BU93: 2021-07-15 | BV93: 2021-08-14 | BX93: 2021-08-26 | BY93: 2021-10-28 | BZ93: 2021-10-30
A94: 92 | J94: 2021-04-25 | K94: 2021-04-25 | L94: 2021-05-11 | N94: 2021-05-12 | Q94: 2021-05-23 | R94: 2021-05-25 | S94: 2021-05-26 | T94: 2021-05-29 | U94: 2021-06-02 | V94: 2021-06-04 | W94: 2021-06-04 | X94: 2021-06-05 | Y94: 2021-06-06 | AA94: 2021-06-13 | AC94: 2021-06-15 | AE94: 2021-06-17 | AF94: 2021-06-18 | AG94: 2021-06-20 | AH94: 2021-06-20 | AI94: 2021-06-22 | AJ94: 2021-06-21 | AK94: 2021-06-22 | AL94: 2021-06-24 | AN94: 2021-06-22 | AP94: 2021-06-23 | AQ94: 2021-06-23 | AR94: 2021-06-27 | AS94: 2021-06-24 | AT94: 2021-06-26 | AU94: 2021-06-28 | AV94: 2021-06-25 | AW94: 2021-06-27 | AX94: 2021-06-26 | AY94: 2021-06-28 | BA94: 2021-06-29 | BB94: 2021-07-01 | BD94: 2021-07-04 | BE94: 2021-07-05 | BF94: 2021-07-05 | BG94: 2021-07-05 | BH94: 2021-07-07 | BI94: 2021-07-05 | BJ94: 2021-07-06 | BK94: 2021-07-09 | BL94: 2021-07-08 | BO94: 2021-07-09 | BP94: 2021-07-11 | BQ94: 2021-07-09 | BR94: 2022-07-11 | BT94: 2021-07-18 | BU94: 2021-07-16 | BV94: 2021-08-15 | BY94: 2021-10-29 | BZ94: 2021-10-31
A95: 93 | J95: 2021-04-26 | K95: 2021-04-26 | L95: 2021-05-12 | N95: 2021-05-13 | Q95: 2021-05-24 | R95: 2021-05-26 | S95: 2021-05-27 | T95: 2021-05-30 | U95: 2021-06-03 | V95: 2021-06-05 | W95: 2021-06-05 | X95: 2021-06-06 | Y95: 2021-06-07 | AA95: 2021-06-14 | AC95: 2021-06-16 | AE95: 2021-06-18 | AF95: 2021-06-19 | AG95: 2021-06-21 | AH95: 2021-06-21 | AI95: 2021-06-23 | AJ95: 2021-06-22 | AK95: 2021-06-23 | AL95: 2021-06-25 | AN95: 2021-06-23 | AP95: 2021-06-24 | AQ95: 2021-06-24 | AR95: 2021-06-28 | AS95: 2021-06-25 | AT95: 2021-06-27 | AU95: 2021-06-29 | AV95: 2021-06-26 | AW95: 2021-06-28 | AX95: 2021-06-27 | AY95: 2021-06-29 | BA95: 2021-06-30 | BB95: 2021-07-02 | BD95: 2021-07-05 | BE95: 2021-07-06 | BF95: 2021-07-06 | BG95: 2021-07-06 | BH95: 2021-07-08 | BI95: 2021-07-06 | BJ95: 2021-07-07 | BK95: 2021-07-10 | BL95: 2021-07-09 | BO95: 2021-07-10 | BP95: 2021-07-12 | BQ95: 2021-07-10 | BR95: 2022-07-12 | BT95: 2021-07-19 | BU95: 2021-07-17 | BV95: 2021-08-16 | BY95: 2021-10-30 | BZ95: 2021-11-01
A96: 94 | J96: 2021-04-27 | K96: 2021-04-27 | L96: 2021-05-13 | N96: 2021-05-14 | Q96: 2021-05-25 | R96: 2021-05-27 | S96: 2021-05-28 | T96: 2021-05-31 | U96: 2021-06-04 | V96: 2021-06-06 | W96: 2021-06-06 | X96: 2021-06-07 | Y96: 2021-06-08 | AA96: 2021-06-15 | AC96: 2021-06-17 | AE96: 2021-06-19 | AF96: 2021-06-20 | AG96: 2021-06-22 | AH96: 2021-06-22 | AI96: 2021-06-24 | AJ96: 2021-06-23 | AK96: 2021-06-24 | AL96: 2021-06-26 | AN96: 2021-06-24 | AP96: 2021-06-25 | AQ96: 2021-06-25 | AR96: 2021-06-29 | AS96: 2021-06-26 | AT96: 2021-06-28 | AU96: 2021-06-30 | AV96: 2021-06-27 | AW96: 2021-06-29 | AX96: 2021-06-28 | AY96: 2021-06-30 | BA96: 2021-07-01 | BB96: 2021-07-03 | BD96: 2021-07-06 | BE96: 2021-07-07 | BF96: 2021-07-07 | BG96: 2021-07-07 | BH96: 2021-07-09 | BI96: 2021-07-07 | BJ96: 2021-07-08 | BK96: 2021-07-11 | BL96: 2021-07-10 | BO96: 2021-07-11 | BP96: 2021-07-13 | BQ96: 2021-07-11 | BR96: 2022-07-13 | BT96: 2021-07-20 | BU96: 2021-07-18 | BV96: 2021-08-17 | BY96: 2021-10-31 | BZ96: 2021-11-02
A97: 95 | J97: 2021-04-28 | K97: 2021-04-28 | L97: 2021-05-14 | N97: 2021-05-15 | Q97: 2021-05-26 | R97: 2021-05-28 | S97: 2021-05-29 | T97: 2021-06-01 | U97: 2021-06-05 | V97: 2021-06-07 | W97: 2021-06-07 | X97: 2021-06-08 | Y97: 2021-06-09 | AA97: 2021-06-16 | AC97: 2021-06-18 | AE97: 2021-06-20 | AF97: 2021-06-21 | AG97: 2021-06-23 | AH97: 2021-06-23 | AI97: 2021-06-25 | AJ97: 2021-06-24 | AK97: 2021-06-25 | AL97: 2021-06-27 | AN97: 2021-06-25 | AP97: 2021-06-26 | AQ97: 2021-06-26 | AR97: 2021-06-30 | AS97: 2021-06-27 | AT97: 2021-06-29 | AU97: 2021-07-01 | AV97: 2021-06-28 | AW97: 2021-06-30 | AX97: 2021-06-29 | AY97: 2021-07-01 | BA97: 2021-07-02 | BB97: 2021-07-04 | BD97: 2021-07-07 | BE97: 2021-07-08 | BF97: 2021-07-08 | BG97: 2021-07-08 | BH97: 2021-07-10 | BI97: 2021-07-08 | BJ97: 2021-07-09 | BK97: 2021-07-12 | BL97: 2021-07-11 | BO97: 2021-07-12 | BP97: 2021-07-14 | BQ97: 2021-07-12 | BR97: 2022-07-14 | BT97: 2021-07-21 | BU97: 2021-07-19 | BY97: 2021-11-01 | BZ97: 2021-11-03
A98: 96 | J98: 2021-04-29 | K98: 2021-04-29 | L98: 2021-05-15 | N98: 2021-05-16 | Q98: 2021-05-27 | R98: 2021-05-29 | S98: 2021-05-30 | T98: 2021-06-02 | U98: 2021-06-06 | V98: 2021-06-08 | W98: 2021-06-08 | X98: 2021-06-09 | Y98: 2021-06-10 | AA98: 2021-06-17 | AC98: 2021-06-19 | AE98: 2021-06-21 | AF98: 2021-06-22 | AG98: 2021-06-24 | AH98: 2021-06-24 | AI98: 2021-06-26 | AJ98: 2021-06-25 | AK98: 2021-06-26 | AL98: 2021-06-28 | AN98: 2021-06-26 | AP98: 2021-06-27 | AQ98: 2021-06-27 | AR98: 2021-07-01 | AS98: 2021-06-28 | AT98: 2021-06-30 | AU98: 2021-07-02 | AV98: 2021-06-29 | AW98: 2021-07-01 | AX98: 2021-06-30 | AY98: 2021-07-02 | BA98: 2021-07-03 | BB98: 2021-07-05 | BD98: 2021-07-08 | BE98: 2021-07-09 | BF98: 2021-07-09 | BG98: 2021-07-09 | BH98: 2021-07-11 | BI98: 2021-07-09 | BJ98: 2021-07-10 | BK98: 2021-07-13 | BL98: 2021-07-12 | BO98: 2021-07-13 | BP98: 2021-07-15 | BQ98: 2021-07-13 | BR98: 2022-07-15 | BT98: 2021-07-22 | BU98: 2021-07-20 | BY98: 2021-11-02 | BZ98: 2021-11-04
A99: 97 | J99: 2021-04-30 | K99: 2021-04-30 | L99: 2021-05-16 | N99: 2021-05-17 | Q99: 2021-05-28 | R99: 2021-05-30 | S99: 2021-05-31 | T99: 2021-06-03 | U99: 2021-06-07 | V99: 2021-06-09 | W99: 2021-06-09 | X99: 2021-06-10 | Y99: 2021-06-11 | AA99: 2021-06-18 | AC99: 2021-06-20 | AE99: 2021-06-22 | AF99: 2021-06-23 | AG99: 2021-06-25 | AH99: 2021-06-25 | AI99: 2021-06-27 | AJ99: 2021-06-26 | AK99: 2021-06-27 | AL99: 2021-06-29 | AN99: 2021-06-27 | AP99: 2021-06-28 | AQ99: 2021-06-28 | AR99: 2021-07-02 | AS99: 2021-06-29 | AT99: 2021-07-01 | AU99: 2021-07-03 | AV99: 2021-06-30 | AW99: 2021-07-02 | AX99: 2021-07-01 | AY99: 2021-07-03 | BA99: 2021-07-04 | BB99: 2021-07-06 | BD99: 2021-07-09 | BE99: 2021-07-10 | BF99: 2021-07-10 | BG99: 2021-07-10 | BH99: 2021-07-12 | BI99: 2021-07-10 | BJ99: 2021-07-11 | BK99: 2021-07-14 | BL99: 2021-07-13 | BO99: 2021-07-14 | BP99: 2021-07-16 | BQ99: 2021-07-14 | BR99: 2022-07-16 | BT99: 2021-07-23 | BU99: 2021-07-21 | BY99: 2021-11-03 | BZ99: 2021-11-05
A100: 14 weeks | J100: 2021-05-01 | K100: 2021-05-01 | L100: 2021-05-17 | N100: 2021-05-18 | Q100: 2021-05-29 | R100: 2021-05-31 | S100: 2021-06-01 | T100: 2021-06-04 | U100: 2021-06-08 | V100: 2021-06-10 | W100: 2021-06-10 | X100: 2021-06-11 | Y100: 2021-06-12 | AA100: 2021-06-19 | AC100: 2021-06-21 | AE100: 2021-06-23 | AF100: 2021-06-24 | AG100: 2021-06-26 | AH100: 2021-06-26 | AI100: 2021-06-28 | AJ100: 2021-06-27 | AK100: 2021-06-28 | AL100: 2021-06-30 | AN100: 2021-06-28 | AP100: 2021-06-29 | AQ100: 2021-06-29 | AR100: 2021-07-03 | AS100: 2021-06-30 | AT100: 2021-07-02 | AU100: 2021-07-04 | AV100: 2021-07-01 | AW100: 2021-07-03 | AX100: 2021-07-02 | AY100: 2021-07-04 | BA100: 2021-07-05 | BB100: 2021-07-07 | BD100: 2021-07-10 | BE100: 2021-07-11 | BF100: 2021-07-11 | BG100: 2021-07-11 | BH100: 2021-07-13 | BI100: 2021-07-11 | BJ100: 2021-07-12 | BK100: 2021-07-15 | BL100: 2021-07-14 | BO100: 2021-07-15 | BQ100: 2021-07-15 | BR100: 2022-07-17 | BT100: 2021-07-24 | BU100: 2021-07-22 | BY100: 2021-11-04 | BZ100: 2021-11-06
A101: 99 | J101: 2021-05-02 | K101: 2021-05-02 | L101: 2021-05-18 | N101: 2021-05-19 | AA101: 2021-06-20 | BD101: 2021-07-11 | BE101: 2021-07-12 | BL101: 2021-07-15 | BO101: 2021-07-16 | BQ101: 2021-07-16 | BR101: 2022-07-18
A102: 100 | J102: 2021-05-03 | K102: 2021-05-03 | L102: 2021-05-19 | N102: 2021-05-20 | AA102: 2021-06-21 | BD102: 2021-07-12 | BE102: 2021-07-13 | BL102: 2021-07-16 | BO102: 2021-07-17 | BQ102: 2021-07-17 | BR102: 2022-07-19
A103: 101 | J103: 2021-05-04 | K103: 2021-05-04 | L103: 2021-05-20 | N103: 2021-05-21 | AA103: 2021-06-22 | BD103: 2021-07-13 | BE103: 2021-07-14 | BL103: 2021-07-17 | BO103: 2021-07-18 | BQ103: 2021-07-18 | BR103: 2022-07-20
A104: 102 | J104: 2021-05-05 | K104: 2021-05-05 | L104: 2021-05-21 | AA104: 2021-06-23 | BD104: 2021-07-14 | BE104: 2021-07-15 | BL104: 2021-07-18 | BO104: 2021-07-19 | BQ104: 2021-07-19 | BR104: 2022-07-21
A105: 103 | J105: 2021-05-06 | K105: 2021-05-06 | L105: 2021-05-22 | AA105: 2021-06-24 | BE105: 2021-07-16 | BL105: 2021-07-19 | BO105: 2021-07-20 | BQ105: 2021-07-20 | BR105: 2022-07-22
A106: 104 | J106: 2021-05-07 | K106: 2021-05-07 | AA106: 2021-06-25 | BE106: 2021-07-17 | BL106: 2021-07-20 | BO106: 2021-07-21 | BQ106: 2021-07-21 | BR106: 2022-07-23
A107: 15 weeks | J107: 2021-05-08 | K107: 2021-05-08 | AA107: 2021-06-26 | BE107: 2021-07-18 | BL107: 2021-07-21 | BQ107: 2021-07-22 | BR107: 2022-07-24
A108: 106 | J108: 2021-05-09 | K108: 2021-05-09 | BE108: 2021-07-19 | BL108: 2021-07-22
A109: 107 | J109: 2021-05-10 | K109: 2021-05-10 | BL109: 2021-07-23
A110: 108 | J110: 2021-05-11 | K110: 2021-05-11 | BL110: 2021-07-24
A111: 109 | J111: 2021-05-12 | K111: 2021-05-12 | BL111: 2021-07-25
A112: 110 | J112: 2021-05-13 | K112: 2021-05-13 | BL112: 2021-07-26
A113: 111 | J113: 2021-05-14 | K113: 2021-05-14 | BL113: 2021-07-27
A114: 16 weeks | J114: 2021-05-15 | K114: 2021-05-15 | BL114: 2021-07-28
A115: 113 | J115: 2021-05-16 | K115: 2021-05-16 | BL115: 2021-07-29
A116: 114 | J116: 2021-05-17 | K116: 2021-05-17 | BL116: 2021-07-30
A117: 115 | J117: 2021-05-18 | K117: 2021-05-18 | BL117: 2021-07-31
A118: 116 | J118: 2021-05-19 | K118: 2021-05-19 | BL118: 2021-08-01
A119: 117 | J119: 2021-05-20 | K119: 2021-05-20 | BL119: 2021-08-02
A120: 118 | J120: 2021-05-21 | K120: 2021-05-21 | BL120: 2021-08-03
A121: 17 weeks | J121: 2021-05-22 | K121: 2021-05-22 | BL121: 2021-08-04
A122: 120 | J122: 2021-05-23 | K122: 2021-05-23 | BL122: 2021-08-05
A123: 121 | J123: 2021-05-24 | K123: 2021-05-24 | BL123: 2021-08-06
A124: 122 | BL124: 2021-08-07
A125: 123 | BL125: 2021-08-08
A126: 124 | BL126: 2021-08-09
A127: 125 | BL127: 2021-08-10
A128: 18 weeks | BL128: 2021-08-11
A129: 127 | BL129: 2021-08-12
A130: 128 | BL130: 2021-08-13
A131: 129 | BL131: 2021-08-14
A132: 130 | BL132: 2021-08-15
A133: 131 | BL133: 2021-08-16
A134: 132 | BL134: 2021-08-17
A135: 19 weeks | BL135: 2021-08-18
A136: 134
A137: 135
A138: 136
A139: 137
A140: 138
A141: 139
A142: 20 weeks
A143: 141
A144: 142
A145: 143
A146: 144
A147: 145
A148: 146
A149: 21 weeks
A150: 148
A151: 149
A152: 150
A153: 151
A154: 152
A155: 153
A156: 22 weeks
A157: 155
A158: 156
A159: 157
A160: 158
A161: 159
A162: 160
A163: 23 weeks
A164: 162
A165: 163
A166: 164
A167: 165
A168: 166
A169: 167
A170: 24 weeks
A171: 169
A172: 170
A173: 171
A174: 172
A175: 173
A176: 174
A177: 175
A178: 176
A179: 177
A180: 178
A181: 179
A182: 180
A183: 181
A184: 182
A185: 183
A186: 184
A187: 185
A188: 186
A189: 187
A190: 188
A191: 189
A192: 190
A193: 191
A194: 192
A195: 193
A196: 194
A197: 195
A198: 28 weeks
A199: 197
A200: 198
... 18 more rows

Sheet Days to Hatch
B1: FLcap-1 | C1: FLcap-2 | D1: TXweb-1 | E1: TXweb-2 | F1: TXjbs-1 | G1: TXjbs-2 | H1: FLsw-1 | I1: FLsw-2 | J1: LAma-1 | K1: LAma-2 | L1: FLne-1 | M1: FLne-2 | N1: GA-1 | O1: GA-2 | P1: CAbb-1 | Q1: CAbb-2 | R1: CAbb-3 | S1: VAn-1 | T1: NJdf-1 | U1: NJdf-2 | V1: NJdf-3 | W1: LAknf-1 | X1: TNhb-1 | Y1: TNhb-2 | Z1: TNhb-3 | AA1: TNbc-1 | AB1: TNbc-2 | AC1: TNbc-3 | AD1: CAsc-1 | AE1: CAsc-2 | AF1: CAsc-3 | AG1: CAsc-4 | AH1: PAhan-1 | AI1: PAhan-2 | AJ1: CAwe-1 | AK1: CAwe-2 | AL1: CAwe-3 | AM1: PAfc-1 | AN1: PAfc-2 | AO1: PAfc-3 | AP1: MDpt-1 | AQ1: MDpt-2 | AR1: MDpt-3 | AS1: CAbb2-1 | AT1: CAbb2-2 | AU1: CAbb2-3 | AV1: TNjc-1 | AW1: TNjc-2 | AX1: TNjc-3 | AY1: CAred-1 | AZ1: CAred-2 | BA1: CAred-3 | BB1: WV-1 | BC1: WV-2 | BD1: PAph-1 | BE1: PAph-2 | BF1: PAph-3 | BG1: IL-1 | BH1: IL-2 | BI1: IL-3 | BJ1: MNdnr-1 | BK1: MNdnr-2 | BL1: MNdnr-3 | BM1: IAdn-1 | BN1: IAdn-2 | BO1: IAdn-3 | BP1: INnd-1 | BQ1: INnd-2 | BR1: INnd-3 | BS1: OHal-1 | BT1: OHal-2 | BU1: OHal-3 | BV1: BCsr-1 | BW1: BCsr-2 | BX1: IAdec-1 | BY1: IAdec-2 | BZ1: IAdec-3 | CA1: IAdav-1 | CB1: IAdav-2 | CC1: IAdav-3 | CD1: BCd2-1 | CE1: BCd2-2 | CF1: BCd2-3 | CG1: COsl-1 | CH1: COsl-2 | CI1: COsl-3 | CJ1: CAth-1 | CK1: CAth-2 | CL1: MEpr-1 | CM1: MEpr-2 | CN1: PAhar-1 | CO1: PAhar-2 | CP1: COfsv-1 | CQ1: COfsv-2 | CR1: COfsv-3 | CS1: TXjbs2-1 | CT1: BCh-1 | CU1: BCh-2 | CV1: BCwr-1 | CW1: BCwr-2 | CX1: Aus-1 | CY1: Aus-2 | CZ1: FLec-1 | DA1: FLec-2 | DB1: OKsq-1 | DC1: OKsq-2 | DD1: TNdh-1 | DE1: TNdh-2 | DF1: TNdh-3 | DG1: FLsw2-1 | DH1: FLsw2-2 | DI1: MTmc-1 | DJ1: MTmc-2 | DK1: MTmc-3 | DL1: OHaa-1 | DM1: OHaa-2 | DN1: TN1g&g-1 | DO1: TN1g&g-2 | DP1: TN1g&g-3 | DQ1: CAwe2-1 | DR1: CAwe2-2 | DS1: CAsr-1 | DT1: AKken-1 | DU1: AKken-2 | DV1: CAfp-1 | DW1: CAfp-2 | DX1: CAfp-3 | DY1: DC2pa-1 | DZ1: DC2pa-2 | EA1: MO-1 | EB1: MO-2 | EC1: BCl-1 | ED1: BCl-2 | EE1: CAbc-1 | EF1: CAbc-2 | EG1: AKgg-1 | EH1: AKgg-2 | EI1: NCrc-1 | EJ1: NCrc-2 | EK1: NCrc-3 | EL1: OHsr-1 | EM1: OHsr-2 | EN1: DCna-1 | EO1: DCna-2 | EP1: BChm-1 | EQ1: CAsmug-1 | ER1: CArc-1 | ES1: CArc-2 | ET1: CApr-1 | EU1: CApr-2 | EV1: CAtc-1 | EW1: CAtr-1 | EX1: CAtr-2 | EY1: YT-1 | EZ1: YT-2 | FA1: YT-3 | FB1: MD-1 | FC1: MD-2 | FD1: VArf-1 | FE1: VArf-2 | FF1: VArf-3 | FG1: CAlop-1 | FH1: CAlop-2 | FI1: NCrc-4 | FJ1: NCrc-5 | FK1: CAmr-1 | FL1: CAmr-2 | FM1: CAeq-1 | FN1: CAeq-2 | FO1: CAph-1 | FP1: CAph-2 | FQ1: WIe4k-1 | FR1: WIe4k-2 | FS1: MI-1 | FT1: MI-2 | FU1: MEsas-1 | FV1: MEsas-2 | FW1: TN2f&i-1 | FX1: TN2f&i-2 | FY1: TN2f&i-3 | FZ1: CAcp-1 | GA1: OKsl-1 | GB1: CAfry-1 | GC1: BCd3-1 | GD1: BCd3-2 | GE1: BCs-1 | GF1: CAhb-1 | GG1: CAhb-2 | GH1: Oksl-A-1 | GI1: NCjl-1 | GJ1: NCjl-2 | GK1: Africa-1 | GL1: Africa-2 | GM1: OK-GHO-1 | GN1: OK-GHO-2 | GO1: WI-GHO-1 | GP1: WI-GHO-2 | GQ1: WI-GHO-3 | GR1: CAtc-1 | GS1: WI-1 | GT1: VAr-1 | GU1: VAr-2 | GV1: WIwr-1 | GW1: WIwr-2 | GX1: VAn-1 | GY1: VAn-2 | GZ1: VAn-3 | HA1: BCpm-1 | HB1: BCdo-1 | HC1: BCdo-2 | HD1: OR-1 | HE1: OR-2
A2: 0 | B2: 2020-11-04 | C2: 2020-11-08 | D2: 2020-12-11 | E2: 2020-12-14 | F2: 2021-12-14 | H2: 2020-12-16 | I2: 2020-12-19 | J2: 2020-12-30 | K2: 2021-01-02 | L2: 2020-12-31 | M2: 2021-01-03 | N2: 2021-01-01 | O2: 2021-01-04 | P2: 2021-01-06 | Q2: 2021-01-09 | R2: 2021-01-13 | S2: 2021-01-14 | T2: 2021-01-17 | U2: 2021-01-20 | V2: 2021-01-23 | W2: 2021-01-18 | X2: 2021-01-23 | Y2: 2021-01-26 | Z2: 2021-01-29 | AA2: 2021-01-26 | AB2: 2021-01-29 | AD2: 2021-02-01 | AE2: ~2/4/21 | AF2: ~2/7/21 | AH2: 2021-02-02 | AI2: 2021-02-05 | AJ2: 2021-02-02 | AK2: 2021-02-05 | AL2: 2021-02-08 | AM2: 2021-02-05 | AN2: ?2/8/21 | AO2: ?2/11/21 | AP2: 2021-02-07 | AQ2: 2021-02-10 | AS2: 2021-02-08 | AT2: 2021-02-11 | AV2: 2021-02-10 | AW2: 2021-02-13 | AX2: 2021-02-16 | AY2: 2021-02-10 | AZ2: 2021-02-13 | BA2: 2021-02-16 | BB2: 2021-02-11 | BC2: 2021-02-14 | BD2: 2021-02-12 | BE2: 2021-02-15 | BF2: 2021-02-19 | BG2: 2021-02-14 | BH2: 2021-02-17 | BI2: 2021-02-20 | BJ2: 2021-02-16 | BK2: 2021-02-20 | BM2: 2021-02-16 | BN2: 2021-02-19 | BP2: 2021-02-17 | BQ2: 2021-02-20 | BR2: 2021-02-23 | BS2: 2021-02-23 | BT2: 2021-02-27 | BU2: 2021-03-03 | BV2: 2021-02-24 | BW2: 2021-02-27 | BX2: 2021-02-24 | BY2: ~2/27/21 | BZ2: ~3/2/21 | CA2: 2021-02-26 | CB2: 2021-03-01 | CD2: 2021-02-27 | CE2: 2021-03-02 | CF2: 2021-03-05 | CG2: 2021-02-27 | CH2: 2021-03-02 | CJ2: 2021-02-28 | CK2: ?3/3/21 | CL2: 2021-03-02 | CM2: 2021-03-05 | CN2: 2022-03-02 | CO2: 2022-03-05 | CP2: 2021-03-04 | CQ2: 2021-03-07 | CR2: 2021-03-10 | CS2: <3/15/21 | CT2: 2021-03-27 | CU2: 2021-03-30 | CV2: 2021-04-09 | CX2: 2021-06-19 | CY2: 2021-06-23
A3: 1 | B3: 2020-11-05 | C3: 2020-11-09 | D3: 2020-12-12 | E3: 2020-12-15 | F3: 2021-12-15 | H3: 2020-12-17 | I3: 2020-12-20 | J3: 2020-12-31 | K3: 2021-01-03 | L3: 2021-01-01 | M3: 2021-01-04 | N3: 2021-01-02 | O3: 2021-01-05 | P3: ravens | Q3: 2021-01-10 | R3: broke during laying | S3: 2021-01-15 | T3: 2021-01-18 | U3: 2021-01-21 | V3: 2021-01-24 | W3: 2021-01-19 | X3: 2021-01-24 | Y3: 2021-01-27 | Z3: 2021-01-30 | AA3: 2021-01-27 | AB3: 2021-01-30 | AD3: 2021-02-02 | AE3: 2021-02-05 | AF3: 2021-02-08 | AH3: 2021-02-03 | AI3: 2021-02-06 | AJ3: 2021-02-03 | AK3: 2021-02-06 | AL3: 2021-02-09 | AM3: 2021-02-06 | AN3: 2021-02-09 | AO3: 2021-02-12 | AP3: 2021-02-08 | AQ3: 2021-02-11 | AS3: 2021-02-09 | AT3: 2021-02-12 | AV3: 2021-02-11 | AW3: 2021-02-14 | AX3: 2021-02-17 | AY3: 2021-02-11 | AZ3: 2021-02-14 | BA3: 2021-02-17 | BB3: 2021-02-12 | BC3: 2021-02-15 | BD3: 2021-02-13 | BE3: 2021-02-16 | BF3: 2021-02-20 | BG3: 2021-02-15 | BH3: 2021-02-18 | BI3: 2021-02-21 | BJ3: 2021-02-17 | BK3: 2021-02-21 | BM3: 2021-02-17 | BN3: 2021-02-20 | BP3: 2021-02-18 | BQ3: 2021-02-21 | BR3: 2021-02-24 | BS3: 2021-02-24 | BT3: 2021-02-28 | BU3: 2021-03-04 | BV3: 2021-02-25 | BW3: 2021-02-28 | BX3: 2021-02-25 | BY3: 2021-02-28 | BZ3: 2021-03-03 | CA3: 2021-02-27 | CB3: 2021-03-02 | CD3: 2021-02-28 | CE3: 2021-03-03 | CF3: 2021-03-06 | CG3: 2021-02-28 | CH3: 2021-03-03 | CJ3: 2021-03-01 | CK3: 2021-03-04 | CL3: 2021-03-03 | CM3: 2021-03-06 | CN3: 2022-03-03 | CO3: 2022-03-06 | CP3: 2021-03-05 | CQ3: 2021-03-08 | CR3: 2021-03-11 | CS3: 2021-03-16 | CT3: 2021-03-28 | CU3: 2021-03-31 | CV3: 2021-04-10 | CX3: 2021-06-20 | CY3: 2021-06-24
A4: 2 | B4: 2020-11-06 | C4: 2020-11-10 | D4: 2020-12-13 | E4: 2020-12-16 | F4: 2021-12-16 | H4: 2020-12-18 | I4: 2020-12-21 | J4: 2021-01-01 | K4: 2021-01-04 | L4: 2021-01-02 | M4: 2021-01-05 | N4: 2021-01-03 | O4: 2021-01-06 | Q4: 2021-01-11 | S4: 2021-01-16 | T4: 2021-01-19 | U4: 2021-01-22 | V4: 2021-01-25 | W4: 2021-01-20 | X4: 2021-01-25 | Y4: 2021-01-28 | Z4: 2021-01-31 | AA4: 2021-01-28 | AB4: 2021-01-31 | AD4: 2021-02-03 | AE4: 2021-02-06 | AF4: 2021-02-09 | AH4: 2021-02-04 | AI4: 2021-02-07 | AJ4: 2021-02-04 | AK4: 2021-02-07 | AL4: 2021-02-10 | AM4: 2021-02-07 | AN4: 2021-02-10 | AO4: 2021-02-13 | AP4: 2021-02-09 | AQ4: 2021-02-12 | AS4: 2021-02-10 | AT4: 2021-02-13 | AV4: 2021-02-12 | AW4: 2021-02-15 | AX4: 2021-02-18 | AY4: 2021-02-12 | AZ4: 2021-02-15 | BA4: 2021-02-18 | BB4: 2021-02-13 | BC4: 2021-02-16 | BD4: 2021-02-14 | BE4: 2021-02-17 | BF4: 2021-02-21 | BG4: 2021-02-16 | BH4: 2021-02-19 | BI4: 2021-02-22 | BJ4: 2021-02-18 | BK4: 2021-02-22 | BM4: 2021-02-18 | BN4: 2021-02-21 | BP4: 2021-02-19 | BQ4: 2021-02-22 | BR4: 2021-02-25 | BS4: 2021-02-25 | BT4: 2021-03-01 | BU4: 2021-03-05 | BV4: 2021-02-26 | BW4: 2021-03-01 | BX4: 2021-02-26 | BY4: 2021-03-01 | BZ4: 2021-03-04 | CA4: 2021-02-28 | CB4: 2021-03-03 | CD4: 2021-03-01 | CE4: 2021-03-04 | CF4: 2021-03-07 | CG4: 2021-03-01 | CH4: 2021-03-04 | CJ4: 2021-03-02 | CK4: 2021-03-05 | CL4: 2021-03-04 | CM4: 2021-03-07 | CN4: 2022-03-04 | CO4: 2022-03-07 | CP4: 2021-03-06 | CQ4: 2021-03-09 | CR4: 2021-03-12 | CS4: 2021-03-17 | CT4: 2021-03-29 | CU4: 2021-04-01 | CV4: 2021-04-11 | CX4: 2021-06-21 | CY4: 2021-06-25
A5: 3 | B5: 2020-11-07 | C5: 2020-11-11 | D5: 2020-12-14 | E5: 2020-12-17 | F5: 2021-12-17 | H5: 2020-12-19 | I5: 2020-12-22 | J5: 2021-01-02 | K5: 2021-01-05 | L5: 2021-01-03 | M5: 2021-01-06 | N5: 2021-01-04 | O5: 2021-01-07 | Q5: 2021-01-12 | S5: 2021-01-17 | T5: 2021-01-20 | U5: 2021-01-23 | V5: 2021-01-26 | W5: 2021-01-21 | X5: 2021-01-26 | Y5: 2021-01-29 | Z5: 2021-02-01 | AA5: 2021-01-29 | AB5: 2021-02-01 | AD5: 2021-02-04 | AE5: 2021-02-07 | AF5: 2021-02-10 | AH5: 2021-02-05 | AI5: 2021-02-08 | AJ5: 2021-02-05 | AK5: 2021-02-08 | AL5: 2021-02-11 | AM5: 2021-02-08 | AN5: 2021-02-11 | AO5: 2021-02-14 | AP5: 2021-02-10 | AQ5: 2021-02-13 | AS5: 2021-02-11 | AT5: 2021-02-14 | AV5: 2021-02-13 | AW5: 2021-02-16 | AX5: 2021-02-19 | AY5: 2021-02-13 | AZ5: 2021-02-16 | BA5: 2021-02-19 | BB5: 2021-02-14 | BC5: 2021-02-17 | BD5: 2021-02-15 | BE5: 2021-02-18 | BF5: 2021-02-22 | BG5: 2021-02-17 | BH5: 2021-02-20 | BI5: 2021-02-23 | BJ5: 2021-02-19 | BK5: 2021-02-23 | BM5: 2021-02-19 | BN5: 2021-02-22 | BP5: 2021-02-20 | BQ5: 2021-02-23 | BR5: 2021-02-26 | BS5: 2021-02-26 | BT5: 2021-03-02 | BU5: 2021-03-06 | BV5: 2021-02-27 | BW5: 2021-03-02 | BX5: 2021-02-27 | BY5: 2021-03-02 | BZ5: 2021-03-05 | CA5: 2021-03-01 | CB5: 2021-03-04 | CD5: 2021-03-02 | CE5: 2021-03-05 | CF5: 2021-03-08 | CG5: 2021-03-02 | CH5: 2021-03-05 | CJ5: 2021-03-03 | CK5: 2021-03-06 | CL5: 2021-03-05 | CM5: 2021-03-08 | CN5: 2022-03-05 | CO5: 2022-03-08 | CP5: 2021-03-07 | CQ5: 2021-03-10 | CR5: 2021-03-13 | CS5: 2021-03-18 | CT5: 2021-03-30 | CU5: 2021-04-02 | CV5: 2021-04-12 | CX5: 2021-06-22 | CY5: 2021-06-26
A6: 4 | B6: 2020-11-08 | C6: 2020-11-12 | D6: 2020-12-15 | E6: 2020-12-18 | F6: 2021-12-18 | H6: 2020-12-20 | I6: 2020-12-23 | J6: 2021-01-03 | K6: 2021-01-06 | L6: 2021-01-04 | M6: 2021-01-07 | N6: 2021-01-05 | O6: 2021-01-08 | Q6: 2021-01-13 | S6: 2021-01-18 | T6: 2021-01-21 | U6: 2021-01-24 | V6: 2021-01-27 | W6: 2021-01-22 | X6: 2021-01-27 | Y6: 2021-01-30 | Z6: 2021-02-02 | AA6: 2021-01-30 | AB6: 2021-02-02 | AD6: 2021-02-05 | AE6: 2021-02-08 | AF6: 2021-02-11 | AH6: 2021-02-06 | AI6: 2021-02-09 | AJ6: 2021-02-06 | AK6: 2021-02-09 | AL6: 2021-02-12 | AM6: 2021-02-09 | AN6: 2021-02-12 | AO6: 2021-02-15 | AP6: 2021-02-11 | AQ6: 2021-02-14 | AS6: 2021-02-12 | AT6: 2021-02-15 | AV6: 2021-02-14 | AW6: 2021-02-17 | AX6: 2021-02-20 | AY6: 2021-02-14 | AZ6: 2021-02-17 | BA6: 2021-02-20 | BB6: 2021-02-15 | BC6: 2021-02-18 | BD6: 2021-02-16 | BE6: 2021-02-19 | BF6: 2021-02-23 | BG6: 2021-02-18 | BH6: 2021-02-21 | BI6: 2021-02-24 | BJ6: 2021-02-20 | BK6: 2021-02-24 | BM6: 2021-02-20 | BN6: 2021-02-23 | BP6: 2021-02-21 | BQ6: 2021-02-24 | BR6: 2021-02-27 | BS6: 2021-02-27 | BT6: 2021-03-03 | BU6: 2021-03-07 | BV6: 2021-02-28 | BW6: 2021-03-03 | BX6: 2021-02-28 | BY6: 2021-03-03 | BZ6: 2021-03-06 | CA6: 2021-03-02 | CB6: 2021-03-05 | CD6: 2021-03-03 | CE6: 2021-03-06 | CF6: 2021-03-09 | CG6: 2021-03-03 | CH6: 2021-03-06 | CJ6: 2021-03-04 | CK6: 2021-03-07 | CL6: 2021-03-06 | CM6: 2021-03-09 | CN6: 2022-03-06 | CO6: 2022-03-09 | CP6: 2021-03-08 | CQ6: 2021-03-11 | CR6: 2021-03-14 | CS6: 2021-03-19 | CT6: 2021-03-31 | CU6: 2021-04-03 | CV6: 2021-04-13 | CX6: 2021-06-23 | CY6: 2021-06-27
A7: 5 | B7: 2020-11-09 | C7: 2020-11-13 | D7: 2020-12-16 | E7: 2020-12-19 | F7: 2021-12-19 | H7: 2020-12-21 | I7: 2020-12-24 | J7: 2021-01-04 | K7: 2021-01-07 | L7: 2021-01-05 | M7: 2021-01-08 | N7: 2021-01-06 | O7: 2021-01-09 | Q7: ravens | S7: 2021-01-19 | T7: 2021-01-22 | U7: 2021-01-25 | V7: 2021-01-28 | W7: 2021-01-23 | X7: 2021-01-28 | Y7: 2021-01-31 | Z7: 2021-02-03 | AA7: 2021-01-31 | AB7: 2021-02-03 | AD7: 2021-02-06 | AE7: 2021-02-09 | AF7: 2021-02-12 | AH7: 2021-02-07 | AI7: 2021-02-10 | AJ7: 2021-02-07 | AK7: 2021-02-10 | AL7: 2021-02-13 | AM7: 2021-02-10 | AN7: 2021-02-13 | AO7: 2021-02-16 | AP7: 2021-02-12 | AQ7: 2021-02-15 | AS7: 2021-02-13 | AT7: 2021-02-16 | AV7: 2021-02-15 | AW7: 2021-02-18 | AX7: 2021-02-21 | AY7: 2021-02-15 | AZ7: 2021-02-18 | BA7: 2021-02-21 | BB7: 2021-02-16 | BC7: 2021-02-19 | BD7: 2021-02-17 | BE7: 2021-02-20 | BF7: 2021-02-24 | BG7: 2021-02-19 | BH7: 2021-02-22 | BI7: 2021-02-25 | BJ7: 2021-02-21 | BK7: 2021-02-25 | BM7: 2021-02-21 | BN7: 2021-02-24 | BP7: 2021-02-22 | BQ7: 2021-02-25 | BR7: 2021-02-28 | BS7: 2021-02-28 | BT7: 2021-03-04 | BU7: 2021-03-08 | BV7: 2021-03-01 | BW7: 2021-03-04 | BX7: 2021-03-01 | BY7: 2021-03-04 | BZ7: 2021-03-07 | CA7: 2021-03-03 | CB7: 2021-03-06 | CD7: 2021-03-04 | CE7: 2021-03-07 | CF7: 2021-03-10 | CG7: 2021-03-04 | CH7: 2021-03-07 | CJ7: 2021-03-05 | CK7: 2021-03-08 | CL7: 2021-03-07 | CM7: 2021-03-10 | CN7: 2022-03-07 | CO7: 2022-03-10 | CP7: 2021-03-09 | CQ7: 2021-03-12 | CR7: 2021-03-15 | CS7: 2021-03-20 | CT7: 2021-04-01 | CU7: 2021-04-04 | CV7: 2021-04-14 | CX7: 2021-06-24 | CY7: 2021-06-28
A8: 6 | B8: 2020-11-10 | C8: 2020-11-14 | D8: 2020-12-17 | E8: 2020-12-20 | F8: 2021-12-20 | H8: 2020-12-22 | I8: 2020-12-25 | J8: 2021-01-05 | K8: 2021-01-08 | L8: 2021-01-06 | M8: 2021-01-09 | N8: 2021-01-07 | O8: 2021-01-10 | S8: 2021-01-20 | T8: 2021-01-23 | U8: 2021-01-26 | V8: 2021-01-29 | W8: 2021-01-24 | X8: 2021-01-29 | Y8: 2021-02-01 | Z8: 2021-02-04 | AA8: 2021-02-01 | AB8: 2021-02-04 | AD8: 2021-02-07 | AE8: 2021-02-10 | AF8: 2021-02-13 | AH8: 2021-02-08 | AI8: 2021-02-11 | AJ8: 2021-02-08 | AK8: 2021-02-11 | AL8: 2021-02-14 | AM8: 2021-02-11 | AN8: 2021-02-14 | AO8: 2021-02-17 | AP8: 2021-02-13 | AQ8: 2021-02-16 | AS8: 2021-02-14 | AT8: 2021-02-17 | AV8: 2021-02-16 | AW8: 2021-02-19 | AX8: 2021-02-22 | AY8: 2021-02-16 | AZ8: 2021-02-19 | BA8: 2021-02-22 | BB8: 2021-02-17 | BC8: 2021-02-20 | BD8: 2021-02-18 | BE8: 2021-02-21 | BF8: 2021-02-25 | BG8: 2021-02-20 | BH8: 2021-02-23 | BI8: 2021-02-26 | BJ8: 2021-02-22 | BK8: 2021-02-26 | BM8: 2021-02-22 | BN8: 2021-02-25 | BP8: 2021-02-23 | BQ8: 2021-02-26 | BR8: 2021-03-01 | BS8: 2021-03-01 | BT8: 2021-03-05 | BU8: 2021-03-09 | BV8: 2021-03-02 | BW8: 2021-03-05 | BX8: 2021-03-02 | BY8: 2021-03-05 | BZ8: 2021-03-08 | CA8: 2021-03-04 | CB8: 2021-03-07 | CD8: 2021-03-05 | CE8: 2021-03-08 | CF8: 2021-03-11 | CG8: 2021-03-05 | CH8: 2021-03-08 | CJ8: 2021-03-06 | CK8: 2021-03-09 | CL8: 2021-03-08 | CM8: 2021-03-11 | CN8: 2022-03-08 | CO8: 2022-03-11 | CP8: 2021-03-10 | CQ8: 2021-03-13 | CR8: 2021-03-16 | CS8: 2021-03-21 | CT8: 2021-04-02 | CU8: 2021-04-05 | CV8: 2021-04-15 | CX8: 2021-06-25 | CY8: 2021-06-29
A9: 7 | B9: 2020-11-11 | C9: 2020-11-15 | D9: 2020-12-18 | E9: 2020-12-21 | F9: 2021-12-21 | H9: 2020-12-23 | I9: 2020-12-26 | J9: 2021-01-06 | K9: 2021-01-09 | L9: 2021-01-07 | M9: 2021-01-10 | N9: 2021-01-08 | O9: 2021-01-11 | S9: 2021-01-21 | T9: 2021-01-24 | U9: 2021-01-27 | V9: 2021-01-30 | W9: 2021-01-25 | X9: 2021-01-30 | Y9: 2021-02-02 | Z9: 2021-02-05 | AA9: 2021-02-02 | AB9: 2021-02-05 | AD9: 2021-02-08 | AE9: 2021-02-11 | AF9: 2021-02-14 | AH9: 2021-02-09 | AI9: 2021-02-12 | AJ9: 2021-02-09 | AK9: 2021-02-12 | AL9: 2021-02-15 | AM9: 2021-02-12 | AN9: 2021-02-15 | AO9: 2021-02-18 | AP9: 2021-02-14 | AQ9: 2021-02-17 | AS9: 2021-02-15 | AT9: 2021-02-18 | AV9: 2021-02-17 | AW9: 2021-02-20 | AX9: 2021-02-23 | AY9: 2021-02-17 | AZ9: 2021-02-20 | BA9: 2021-02-23 | BB9: 2021-02-18 | BC9: 2021-02-21 | BD9: 2021-02-19 | BE9: 2021-02-22 | BF9: 2021-02-26 | BG9: 2021-02-21 | BH9: 2021-02-24 | BI9: 2021-02-27 | BJ9: 2021-02-23 | BK9: 2021-02-27 | BM9: 2021-02-23 | BN9: 2021-02-26 | BP9: 2021-02-24 | BQ9: 2021-02-27 | BR9: 2021-03-02 | BS9: 2021-03-02 | BT9: 2021-03-06 | BU9: 2021-03-10 | BV9: 2021-03-03 | BW9: 2021-03-06 | BX9: 2021-03-03 | BY9: 2021-03-06 | BZ9: 2021-03-09 | CA9: 2021-03-05 | CB9: 2021-03-08 | CD9: 2021-03-06 | CE9: 2021-03-09 | CF9: 2021-03-12 | CG9: 2021-03-06 | CH9: 2021-03-09 | CJ9: 2021-03-07 | CK9: 2021-03-10 | CL9: 2021-03-09 | CM9: 2021-03-12 | CN9: 2022-03-09 | CO9: 2022-03-12 | CP9: 2021-03-11 | CQ9: 2021-03-14 | CR9: 2021-03-17 | CS9: 2021-03-22 | CT9: 2021-04-03 | CU9: 2021-04-06 | CV9: 2021-04-16 | CX9: 2021-06-26 | CY9: 2021-06-30
A10: 8 | B10: 2020-11-12 | C10: 2020-11-16 | D10: 2020-12-19 | E10: 2020-12-22 | F10: 2021-12-22 | H10: 2020-12-24 | I10: 2020-12-27 | J10: 2021-01-07 | K10: 2021-01-10 | L10: 2021-01-08 | M10: 2021-01-11 | N10: 2021-01-09 | O10: 2021-01-12 | S10: 2021-01-22 | T10: 2021-01-25 | U10: 2021-01-28 | V10: 2021-01-31 | W10: 2021-01-26 | X10: 2021-01-31 | Y10: 2021-02-03 | Z10: 2021-02-06 | AA10: 2021-02-03 | AB10: 2021-02-06 | AD10: 2021-02-09 | AE10: 2021-02-12 | AF10: 2021-02-15 | AH10: 2021-02-10 | AI10: 2021-02-13 | AJ10: 2021-02-10 | AK10: 2021-02-13 | AL10: 2021-02-16 | AM10: 2021-02-13 | AN10: 2021-02-16 | AO10: 2021-02-19 | AP10: 2021-02-15 | AQ10: 2021-02-18 | AS10: 2021-02-16 | AT10: 2021-02-19 | AV10: 2021-02-18 | AW10: 2021-02-21 | AX10: 2021-02-24 | AY10: 2021-02-18 | AZ10: 2021-02-21 | BA10: 2021-02-24 | BB10: 2021-02-19 | BC10: 2021-02-22 | BD10: 2021-02-20 | BE10: 2021-02-23 | BF10: 2021-02-27 | BG10: 2021-02-22 | BH10: 2021-02-25 | BI10: 2021-02-28 | BJ10: 2021-02-24 | BK10: 2021-02-28 | BM10: 2021-02-24 | BN10: 2021-02-27 | BP10: 2021-02-25 | BQ10: 2021-02-28 | BR10: 2021-03-03 | BS10: 2021-03-03 | BT10: 2021-03-07 | BU10: 2021-03-11 | BV10: 2021-03-04 | BW10: 2021-03-07 | BX10: 2021-03-04 | BY10: 2021-03-07 | BZ10: 2021-03-10 | CA10: 2021-03-06 | CB10: 2021-03-09 | CD10: 2021-03-07 | CE10: 2021-03-10 | CF10: 2021-03-13 | CG10: 2021-03-07 | CH10: 2021-03-10 | CJ10: 2021-03-08 | CK10: 2021-03-11 | CL10: 2021-03-10 | CM10: 2021-03-13 | CN10: 2022-03-10 | CO10: 2022-03-13 | CP10: 2021-03-12 | CQ10: 2021-03-15 | CR10: 2021-03-18 | CS10: 2021-03-23 | CT10: 2021-04-04 | CU10: 2021-04-07 | CV10: 2021-04-17 | CX10: 2021-06-27 | CY10: 2021-07-01
A11: 9 | B11: 2020-11-13 | C11: 2020-11-17 | D11: 2020-12-20 | E11: 2020-12-23 | F11: 2021-12-23 | H11: 2020-12-25 | I11: 2020-12-28 | J11: 2021-01-08 | K11: 2021-01-11 | L11: 2021-01-09 | M11: 2021-01-12 | N11: 2021-01-10 | O11: 2021-01-13 | S11: 2021-01-23 | T11: 2021-01-26 | U11: 2021-01-29 | V11: 2021-02-01 | W11: 2021-01-27 | X11: 2021-02-01 | Y11: 2021-02-04 | Z11: 2021-02-07 | AA11: 2021-02-04 | AB11: 2021-02-07 | AD11: 2021-02-10 | AF11: 2021-02-16 | AH11: 2021-02-11 | AI11: 2021-02-14 | AJ11: 2021-02-11 | AK11: 2021-02-14 | AL11: 2021-02-17 | AM11: 2021-02-14 | AN11: 2021-02-17 | AO11: 2021-02-20 | AP11: 2021-02-16 | AQ11: 2021-02-19 | AS11: 2021-02-17 | AT11: 2021-02-20 | AV11: 2021-02-19 | AW11: 2021-02-22 | AX11: 2021-02-25 | AY11: 2021-02-19 | AZ11: 2021-02-22 | BA11: 2021-02-25 | BB11: 2021-02-20 | BC11: 2021-02-23 | BD11: 2021-02-21 | BE11: 2021-02-24 | BF11: 2021-02-28 | BG11: 2021-02-23 | BH11: 2021-02-26 | BI11: 2021-03-01 | BJ11: 2021-02-25 | BK11: 2021-03-01 | BM11: 2021-02-25 | BN11: 2021-02-28 | BP11: 2021-02-26 | BQ11: 2021-03-01 | BR11: 2021-03-04 | BS11: 2021-03-04 | BT11: 2021-03-08 | BU11: 2021-03-12 | BV11: 2021-03-05 | BW11: 2021-03-08 | BX11: 2021-03-05 | BY11: 2021-03-08 | BZ11: 2021-03-11 | CA11: 2021-03-07 | CB11: 2021-03-10 | CD11: 2021-03-08 | CE11: 2021-03-11 | CF11: 2021-03-14 | CG11: 2021-03-08 | CH11: 2021-03-11 | CJ11: 2021-03-09 | CK11: 2021-03-12 | CL11: 2021-03-11 | CM11: 2021-03-14 | CN11: 2022-03-11 | CO11: 2022-03-14 | CP11: 2021-03-13 | CQ11: 2021-03-16 | CR11: 2021-03-19 | CS11: 2021-03-24 | CT11: 2021-04-05 | CU11: 2021-04-08 | CV11: 2021-04-18 | CX11: 2021-06-28 | CY11: 2021-07-02
A12: 10 | B12: 2020-11-14 | C12: 2020-11-18 | D12: 2020-12-21 | E12: 2020-12-24 | F12: 2021-12-24 | H12: 2020-12-26 | I12: 2020-12-29 | J12: 2021-01-09 | K12: 2021-01-12 | L12: 2021-01-10 | M12: 2021-01-13 | N12: 2021-01-11 | O12: 2021-01-14 | S12: 2021-01-24 | T12: 2021-01-27 | U12: 2021-01-30 | V12: 2021-02-02 | W12: 2021-01-28 | X12: 2021-02-02 | Y12: 2021-02-05 | Z12: 2021-02-08 | AA12: 2021-02-05 | AB12: 2021-02-08 | AD12: 2021-02-11 | AE12: broke | AF12: 2021-02-17 | AH12: 2021-02-12 | AI12: 2021-02-15 | AJ12: 2021-02-12 | AK12: 2021-02-15 | AL12: 2021-02-18 | AM12: 2021-02-15 | AN12: 2021-02-18 | AO12: 2021-02-21 | AP12: 2021-02-17 | AQ12: 2021-02-20 | AS12: 2021-02-18 | AT12: 2021-02-21 | AV12: 2021-02-20 | AW12: 2021-02-23 | AX12: 2021-02-26 | AY12: 2021-02-20 | AZ12: 2021-02-23 | BA12: 2021-02-26 | BB12: 2021-02-21 | BC12: 2021-02-24 | BD12: 2021-02-22 | BE12: 2021-02-25 | BF12: 2021-03-01 | BG12: 2021-02-24 | BH12: 2021-02-27 | BI12: 2021-03-02 | BJ12: 2021-02-26 | BK12: 2021-03-02 | BM12: 2021-02-26 | BN12: 2021-03-01 | BP12: 2021-02-27 | BQ12: 2021-03-02 | BR12: 2021-03-05 | BS12: 2021-03-05 | BT12: 2021-03-09 | BU12: 2021-03-13 | BV12: 2021-03-06 | BW12: 2021-03-09 | BX12: 2021-03-06 | BY12: 2021-03-09 | BZ12: 2021-03-12 | CA12: 2021-03-08 | CB12: 2021-03-11 | CD12: 2021-03-09 | CE12: 2021-03-12 | CF12: 2021-03-15 | CG12: 2021-03-09 | CH12: 2021-03-12 | CJ12: 2021-03-10 | CK12: 2021-03-13 | CL12: 2021-03-12 | CM12: 2021-03-15 | CN12: 2022-03-12 | CO12: 2022-03-15 | CP12: 2021-03-14 | CQ12: 2021-03-17 | CR12: 2021-03-20 | CS12: 2021-03-25 | CT12: 2021-04-06 | CU12: 2021-04-09 | CV12: 2021-04-19 | CX12: 2021-06-29 | CY12: 2021-07-03
A13: 11 | B13: 2020-11-15 | C13: 2020-11-19 | D13: 2020-12-22 | E13: 2020-12-25 | F13: 2021-12-25 | H13: 2020-12-27 | I13: 2020-12-30 | J13: 2021-01-10 | K13: 2021-01-13 | L13: 2021-01-11 | M13: 2021-01-14 | N13: 2021-01-12 | O13: 2021-01-15 | S13: 2021-01-25 | T13: 2021-01-28 | U13: 2021-01-31 | V13: 2021-02-03 | W13: 2021-01-29 | X13: 2021-02-03 | Y13: 2021-02-06 | Z13: 2021-02-09 | AA13: 2021-02-06 | AB13: 2021-02-09 | AD13: 2021-02-12 | AF13: 2021-02-18 | AH13: 2021-02-13 | AI13: 2021-02-16 | AJ13: 2021-02-13 | AK13: 2021-02-16 | AL13: 2021-02-19 | AM13: 2021-02-16 | AN13: 2021-02-19 | AO13: 2021-02-22 | AP13: 2021-02-18 | AQ13: 2021-02-21 | AS13: 2021-02-19 | AT13: 2021-02-22 | AV13: 2021-02-21 | AW13: 2021-02-24 | AX13: 2021-02-27 | AY13: 2021-02-21 | AZ13: 2021-02-24 | BA13: 2021-02-27 | BB13: 2021-02-22 | BC13: 2021-02-25 | BD13: 2021-02-23 | BE13: 2021-02-26 | BF13: 2021-03-02 | BG13: 2021-02-25 | BH13: 2021-02-28 | BI13: 2021-03-03 | BJ13: 2021-02-27 | BK13: 2021-03-03 | BM13: 2021-02-27 | BN13: 2021-03-02 | BP13: 2021-02-28 | BQ13: 2021-03-03 | BR13: 2021-03-06 | BS13: 2021-03-06 | BT13: 2021-03-10 | BU13: 2021-03-14 | BV13: 2021-03-07 | BW13: 2021-03-10 | BX13: 2021-03-07 | BY13: 2021-03-10 | BZ13: 2021-03-13 | CA13: 2021-03-09 | CB13: 2021-03-12 | CD13: 2021-03-10 | CE13: 2021-03-13 | CF13: 2021-03-16 | CG13: 2021-03-10 | CH13: 2021-03-13 | CJ13: 2021-03-11 | CK13: 2021-03-14 | CL13: 2021-03-13 | CM13: 2021-03-16 | CN13: 2022-03-13 | CO13: 2022-03-16 | CP13: 2021-03-15 | CQ13: 2021-03-18 | CR13: 2021-03-21 | CS13: 2021-03-26 | CT13: 2021-04-07 | CU13: 2021-04-10 | CV13: 2021-04-20 | CX13: 2021-06-30 | CY13: 2021-07-04
A14: 12 | B14: 2020-11-16 | C14: 2020-11-20 | D14: 2020-12-23 | E14: 2020-12-26 | F14: 2021-12-26 | H14: 2020-12-28 | I14: 2020-12-31 | J14: 2021-01-11 | K14: 2021-01-14 | L14: 2021-01-12 | M14: 2021-01-15 | N14: 2021-01-13 | O14: 2021-01-16 | S14: 2021-01-26 | T14: 2021-01-29 | U14: 2021-02-01 | V14: 2021-02-04 | W14: 2021-01-30 | X14: 2021-02-04 | Y14: 2021-02-07 | Z14: 2021-02-10 | AA14: 2021-02-07 | AB14: 2021-02-10 | AF14: 2021-02-19 | AH14: 2021-02-14 | AI14: 2021-02-17 | AJ14: 2021-02-14 | AK14: 2021-02-17 | AL14: 2021-02-20 | AM14: 2021-02-17 | AN14: 2021-02-20 | AO14: 2021-02-23 | AP14: 2021-02-19 | AQ14: 2021-02-22 | AS14: 2021-02-20 | AT14: 2021-02-23 | AV14: 2021-02-22 | AW14: 2021-02-25 | AX14: 2021-02-28 | AY14: 2021-02-22 | AZ14: 2021-02-25 | BA14: 2021-02-28 | BB14: 2021-02-23 | BC14: 2021-02-26 | BD14: 2021-02-24 | BE14: 2021-02-27 | BF14: 2021-03-03 | BG14: 2021-02-26 | BH14: 2021-03-01 | BI14: 2021-03-04 | BJ14: 2021-02-28 | BK14: 2021-03-04 | BM14: 2021-02-28 | BN14: 2021-03-03 | BP14: 2021-03-01 | BQ14: 2021-03-04 | BR14: 2021-03-07 | BS14: 2021-03-07 | BT14: 2021-03-11 | BU14: 2021-03-15 | BV14: 2021-03-08 | BW14: 2021-03-11 | BX14: 2021-03-08 | BY14: 2021-03-11 | BZ14: 2021-03-14 | CA14: 2021-03-10 | CB14: 2021-03-13 | CD14: 2021-03-11 | CE14: 2021-03-14 | CF14: 2021-03-17 | CG14: 2021-03-11 | CH14: 2021-03-14 | CJ14: 2021-03-12 | CK14: 2021-03-15 | CL14: 2021-03-14 | CM14: 2021-03-17 | CN14: 2022-03-14 | CO14: 2022-03-17 | CP14: 2021-03-16 | CQ14: 2021-03-19 | CR14: 2021-03-22 | CS14: 2021-03-27 | CT14: 2021-04-08 | CU14: 2021-04-11 | CV14: 2021-04-21 | CX14: 2021-07-01 | CY14: 2021-07-05
A15: 13 | B15: 2020-11-17 | C15: 2020-11-21 | D15: 2020-12-24 | E15: 2020-12-27 | F15: 2021-12-27 | H15: 2020-12-29 | I15: 2021-01-01 | J15: 2021-01-12 | K15: 2021-01-15 | L15: 2021-01-13 | M15: 2021-01-16 | N15: 2021-01-14 | O15: 2021-01-17 | S15: 2021-01-27 | T15: 2021-01-30 | U15: 2021-02-02 | V15: 2021-02-05 | W15: 2021-01-31 | X15: 2021-02-05 | Y15: 2021-02-08 | Z15: 2021-02-11 | AA15: 2021-02-08 | AB15: 2021-02-11 | AD15: broke | AF15: 2021-02-20 | AH15: 2021-02-15 | AI15: 2021-02-18 | AJ15: 2021-02-15 | AK15: 2021-02-18 | AL15: 2021-02-21 | AM15: 2021-02-18 | AN15: 2021-02-21 | AO15: 2021-02-24 | AP15: 2021-02-20 | AQ15: 2021-02-23 | AS15: 2021-02-21 | AT15: 2021-02-24 | AV15: 2021-02-23 | AW15: 2021-02-26 | AX15: 2021-03-01 | AY15: 2021-02-23 | AZ15: 2021-02-26 | BA15: 2021-03-01 | BB15: 2021-02-24 | BC15: 2021-02-27 | BD15: 2021-02-25 | BE15: 2021-02-28 | BF15: 2021-03-04 | BG15: 2021-02-27 | BH15: 2021-03-02 | BI15: 2021-03-05 | BJ15: 2021-03-01 | BK15: 2021-03-05 | BM15: 2021-03-01 | BN15: 2021-03-04 | BP15: 2021-03-02 | BQ15: 2021-03-05 | BR15: 2021-03-08 | BS15: 2021-03-08 | BT15: 2021-03-12 | BU15: 2021-03-16 | BV15: 2021-03-09 | BW15: 2021-03-12 | BX15: 2021-03-09 | BY15: 2021-03-12 | BZ15: 2021-03-15 | CA15: 2021-03-11 | CB15: 2021-03-14 | CD15: 2021-03-12 | CE15: 2021-03-15 | CF15: 2021-03-18 | CG15: 2021-03-12 | CH15: 2021-03-15 | CJ15: 2021-03-13 | CK15: 2021-03-16 | CL15: 2021-03-15 | CM15: 2021-03-18 | CN15: 2022-03-15 | CO15: 2022-03-18 | CP15: 2021-03-17 | CQ15: 2021-03-20 | CR15: 2021-03-23 | CS15: 2021-03-28 | CT15: 2021-04-09 | CU15: 2021-04-12 | CV15: 2021-04-22 | CX15: 2021-07-02 | CY15: 2021-07-06
A16: 14 | B16: 2020-11-18 | C16: 2020-11-22 | D16: 2020-12-25 | E16: 2020-12-28 | F16: 2021-12-28 | H16: 2020-12-30 | I16: 2021-01-02 | J16: 2021-01-13 | K16: 2021-01-16 | L16: 2021-01-14 | M16: 2021-01-17 | N16: 2021-01-15 | O16: 2021-01-18 | S16: 2021-01-28 | T16: 2021-01-31 | U16: 2021-02-03 | V16: 2021-02-06 | W16: 2021-02-01 | X16: 2021-02-06 | Y16: 2021-02-09 | Z16: 2021-02-12 | AA16: 2021-02-09 | AB16: 2021-02-12 | AF16: 2021-02-21 | AH16: 2021-02-16 | AI16: 2021-02-19 | AJ16: 2021-02-16 | AK16: 2021-02-19 | AL16: 2021-02-22 | AM16: 2021-02-19 | AN16: 2021-02-22 | AO16: 2021-02-25 | AP16: 2021-02-21 | AQ16: 2021-02-24 | AS16: 2021-02-22 | AT16: 2021-02-25 | AV16: 2021-02-24 | AW16: 2021-02-27 | AX16: 2021-03-02 | AY16: 2021-02-24 | AZ16: 2021-02-27 | BA16: 2021-03-02 | BB16: 2021-02-25 | BC16: 2021-02-28 | BD16: 2021-02-26 | BE16: 2021-03-01 | BF16: 2021-03-05 | BG16: 2021-02-28 | BH16: 2021-03-03 | BI16: 2021-03-06 | BJ16: 2021-03-02 | BK16: 2021-03-06 | BM16: 2021-03-02 | BN16: 2021-03-05 | BP16: 2021-03-03 | BQ16: 2021-03-06 | BR16: 2021-03-09 | BS16: 2021-03-09 | BT16: 2021-03-13 | BU16: 2021-03-17 | BV16: 2021-03-10 | BW16: 2021-03-13 | BX16: 2021-03-10 | BY16: 2021-03-13 | BZ16: 2021-03-16 | CA16: 2021-03-12 | CB16: 2021-03-15 | CD16: 2021-03-13 | CE16: 2021-03-16 | CF16: 2021-03-19 | CG16: 2021-03-13 | CH16: 2021-03-16 | CJ16: 2021-03-14 | CK16: 2021-03-17 | CL16: 2021-03-16 | CM16: 2021-03-19 | CN16: 2022-03-16 | CO16: 2022-03-19 | CP16: 2021-03-18 | CQ16: 2021-03-21 | CR16: 2021-03-24 | CS16: 2021-03-29 | CT16: 2021-04-10 | CU16: 2021-04-13 | CV16: 2021-04-23 | CX16: 2021-07-03 | CY16: 2021-07-07
A17: 15 | B17: 2020-11-19 | C17: 2020-11-23 | D17: 2020-12-26 | E17: 2020-12-29 | F17: 2021-12-29 | H17: 2020-12-31 | I17: 2021-01-03 | J17: 2021-01-14 | K17: 2021-01-17 | L17: 2021-01-15 | M17: 2021-01-18 | N17: 2021-01-16 | O17: 2021-01-19 | S17: 2021-01-29 | T17: 2021-02-01 | U17: 2021-02-04 | V17: 2021-02-07 | W17: 2021-02-02 | X17: 2021-02-07 | Y17: 2021-02-10 | Z17: 2021-02-13 | AA17: 2021-02-10 | AB17: 2021-02-13 | AF17: 2021-02-22 | AH17: 2021-02-17 | AI17: 2021-02-20 | AJ17: 2021-02-17 | AK17: 2021-02-20 | AL17: 2021-02-23 | AM17: 2021-02-20 | AN17: 2021-02-23 | AO17: 2021-02-26 | AP17: 2021-02-22 | AQ17: 2021-02-25 | AS17: 2021-02-23 | AT17: 2021-02-26 | AV17: 2021-02-25 | AW17: 2021-02-28 | AX17: 2021-03-03 | AY17: 2021-02-25 | AZ17: 2021-02-28 | BA17: 2021-03-03 | BB17: 2021-02-26 | BC17: 2021-03-01 | BD17: 2021-02-27 | BE17: 2021-03-02 | BF17: 2021-03-06 | BG17: 2021-03-01 | BH17: 2021-03-04 | BI17: 2021-03-07 | BJ17: 2021-03-03 | BK17: 2021-03-07 | BM17: 2021-03-03 | BN17: 2021-03-06 | BP17: 2021-03-04 | BQ17: 2021-03-07 | BR17: 2021-03-10 | BS17: 2021-03-10 | BT17: 2021-03-14 | BU17: 2021-03-18 | BV17: 2021-03-11 | BW17: 2021-03-14 | BX17: 2021-03-11 | BY17: 2021-03-14 | BZ17: 2021-03-17 | CA17: 2021-03-13 | CB17: 2021-03-16 | CD17: 2021-03-14 | CE17: 2021-03-17 | CF17: 2021-03-20 | CG17: 2021-03-14 | CH17: 2021-03-17 | CJ17: 2021-03-15 | CK17: 2021-03-18 | CL17: 2021-03-17 | CM17: 2021-03-20 | CN17: 2022-03-17 | CO17: 2022-03-20 | CP17: 2021-03-19 | CQ17: 2021-03-22 | CR17: 2021-03-25 | CS17: 2021-03-30 | CT17: 2021-04-11 | CU17: 2021-04-14 | CV17: 2021-04-24 | CX17: 2021-07-04 | CY17: 2021-07-08
A18: 16 | B18: 2020-11-20 | C18: 2020-11-24 | D18: 2020-12-27 | E18: 2020-12-30 | F18: 2021-12-30 | H18: 2021-01-01 | I18: 2021-01-04 | J18: 2021-01-15 | K18: 2021-01-18 | L18: 2021-01-16 | M18: 2021-01-19 | N18: 2021-01-17 | O18: 2021-01-20 | S18: 2021-01-30 | T18: 2021-02-02 | U18: 2021-02-05 | V18: 2021-02-08 | W18: 2021-02-03 | X18: 2021-02-08 | Y18: 2021-02-11 | Z18: 2021-02-14 | AA18: 2021-02-11 | AB18: 2021-02-14 | AF18: 2021-02-23 | AH18: 2021-02-18 | AI18: 2021-02-21 | AJ18: 2021-02-18 | AK18: 2021-02-21 | AL18: 2021-02-24 | AM18: 2021-02-21 | AN18: 2021-02-24 | AO18: 2021-02-27 | AP18: 2021-02-23 | AQ18: 2021-02-26 | AS18: 2021-02-24 | AT18: 2021-02-27 | AV18: 2021-02-26 | AW18: 2021-03-01 | AX18: 2021-03-04 | AY18: 2021-02-26 | AZ18: 2021-03-01 | BA18: 2021-03-04 | BB18: 2021-02-27 | BC18: 2021-03-02 | BD18: 2021-02-28 | BE18: 2021-03-03 | BF18: 2021-03-07 | BG18: 2021-03-02 | BH18: 2021-03-05 | BI18: 2021-03-08 | BJ18: 2021-03-04 | BK18: 2021-03-08 | BM18: 2021-03-04 | BN18: 2021-03-07 | BP18: 2021-03-05 | BQ18: 2021-03-08 | BR18: 2021-03-11 | BS18: 2021-03-11 | BT18: 2021-03-15 | BU18: 2021-03-19 | BV18: 2021-03-12 | BW18: 2021-03-15 | BX18: 2021-03-12 | BY18: 2021-03-15 | BZ18: 2021-03-18 | CA18: 2021-03-14 | CB18: 2021-03-17 | CD18: 2021-03-15 | CE18: 2021-03-18 | CF18: 2021-03-21 | CG18: 2021-03-15 | CH18: 2021-03-18 | CJ18: 2021-03-16 | CK18: 2021-03-19 | CL18: 2021-03-18 | CM18: 2021-03-21 | CN18: 2022-03-18 | CO18: 2022-03-21 | CP18: 2021-03-20 | CQ18: 2021-03-23 | CR18: 2021-03-26 | CS18: 2021-03-31 | CT18: 2021-04-12 | CU18: 2021-04-15 | CV18: 2021-04-25 | CX18: 2021-07-05 | CY18: 2021-07-09
A19: 17 | B19: 2020-11-21 | C19: 2020-11-25 | D19: 2020-12-28 | E19: 2020-12-31 | F19: 2021-12-31 | H19: 2021-01-02 | I19: 2021-01-05 | J19: 2021-01-16 | K19: 2021-01-19 | L19: 2021-01-17 | M19: 2021-01-20 | N19: 2021-01-18 | O19: 2021-01-21 | S19: 2021-01-31 | T19: 2021-02-03 | U19: 2021-02-06 | V19: 2021-02-09 | W19: 2021-02-04 | X19: 2021-02-09 | Y19: 2021-02-12 | Z19: 2021-02-15 | AA19: 2021-02-12 | AB19: 2021-02-15 | AF19: 2021-02-24 | AH19: 2021-02-19 | AI19: 2021-02-22 | AJ19: 2021-02-19 | AK19: 2021-02-22 | AL19: 2021-02-25 | AM19: 2021-02-22 | AN19: 2021-02-25 | AO19: 2021-02-28 | AP19: 2021-02-24 | AQ19: 2021-02-27 | AS19: 2021-02-25 | AT19: 2021-02-28 | AV19: 2021-02-27 | AW19: 2021-03-02 | AX19: 2021-03-05 | AY19: 2021-02-27 | AZ19: 2021-03-02 | BA19: 2021-03-05 | BB19: 2021-02-28 | BC19: 2021-03-03 | BD19: 2021-03-01 | BE19: 2021-03-04 | BF19: 2021-03-08 | BG19: 2021-03-03 | BH19: 2021-03-06 | BI19: 2021-03-09 | BJ19: 2021-03-05 | BK19: 2021-03-09 | BM19: 2021-03-05 | BN19: 2021-03-08 | BP19: 2021-03-06 | BQ19: 2021-03-09 | BR19: 2021-03-12 | BS19: 2021-03-12 | BT19: 2021-03-16 | BU19: 2021-03-20 | BV19: 2021-03-13 | BW19: 2021-03-16 | BX19: 2021-03-13 | BY19: 2021-03-16 | BZ19: 2021-03-19 | CA19: 2021-03-15 | CB19: 2021-03-18 | CD19: 2021-03-16 | CE19: 2021-03-19 | CF19: 2021-03-22 | CG19: 2021-03-16 | CH19: 2021-03-19 | CJ19: 2021-03-17 | CK19: 2021-03-20 | CL19: 2021-03-19 | CM19: 2021-03-22 | CN19: 2022-03-19 | CO19: 2022-03-22 | CP19: 2021-03-21 | CQ19: 2021-03-24 | CR19: 2021-03-27 | CS19: 2021-04-01 | CT19: 2021-04-13 | CU19: 2021-04-16 | CV19: 2021-04-26 | CX19: 2021-07-06 | CY19: 2021-07-10
A20: 18 | B20: 2020-11-22 | C20: 2020-11-26 | D20: 2020-12-29 | E20: 2021-01-01 | F20: 2022-01-01 | H20: 2021-01-03 | I20: 2021-01-06 | J20: 2021-01-17 | K20: 2021-01-20 | L20: 2021-01-18 | M20: 2021-01-21 | N20: 2021-01-19 | O20: 2021-01-22 | S20: 2021-02-01 | T20: 2021-02-04 | U20: 2021-02-07 | V20: 2021-02-10 | W20: 2021-02-05 | X20: 2021-02-10 | Y20: 2021-02-13 | Z20: 2021-02-16 | AA20: 2021-02-13 | AB20: 2021-02-16 | AF20: 2021-02-25 | AH20: 2021-02-20 | AI20: 2021-02-23 | AJ20: 2021-02-20 | AK20: 2021-02-23 | AL20: 2021-02-26 | AM20: 2021-02-23 | AN20: 2021-02-26 | AO20: 2021-03-01 | AP20: 2021-02-25 | AQ20: 2021-02-28 | AS20: 2021-02-26 | AT20: 2021-03-01 | AV20: 2021-02-28 | AW20: 2021-03-03 | AX20: 2021-03-06 | AY20: 2021-02-28 | AZ20: 2021-03-03 | BA20: 2021-03-06 | BB20: 2021-03-01 | BC20: 2021-03-04 | BD20: 2021-03-02 | BE20: 2021-03-05 | BF20: 2021-03-09 | BG20: 2021-03-04 | BH20: 2021-03-07 | BI20: 2021-03-10 | BJ20: 2021-03-06 | BK20: 2021-03-10 | BM20: 2021-03-06 | BN20: 2021-03-09 | BP20: 2021-03-07 | BQ20: 2021-03-10 | BR20: 2021-03-13 | BS20: 2021-03-13 | BT20: 2021-03-17 | BU20: 2021-03-21 | BV20: 2021-03-14 | BW20: 2021-03-17 | BX20: 2021-03-14 | BY20: 2021-03-17 | BZ20: 2021-03-20 | CA20: 2021-03-16 | CB20: 2021-03-19 | CD20: 2021-03-17 | CE20: 2021-03-20 | CF20: 2021-03-23 | CG20: 2021-03-17 | CH20: 2021-03-20 | CJ20: 2021-03-18 | CK20: 2021-03-21 | CL20: 2021-03-20 | CM20: 2021-03-23 | CN20: 2022-03-20 | CO20: 2022-03-23 | CP20: 2021-03-22 | CQ20: 2021-03-25 | CR20: 2021-03-28 | CS20: 2021-04-02 | CT20: 2021-04-14 | CU20: 2021-04-17 | CV20: 2021-04-27 | CX20: 2021-07-07 | CY20: 2021-07-11
A21: 19 | B21: 2020-11-23 | C21: 2020-11-27 | D21: 2020-12-30 | E21: 2021-01-02 | F21: 2022-01-02 | H21: 2021-01-04 | I21: 2021-01-07 | J21: 2021-01-18 | K21: 2021-01-21 | L21: 2021-01-19 | M21: 2021-01-22 | N21: 2021-01-20 | O21: 2021-01-23 | S21: 2021-02-02 | T21: 2021-02-05 | U21: 2021-02-08 | V21: 2021-02-11 | W21: 2021-02-06 | X21: 2021-02-11 | Y21: 2021-02-14 | Z21: 2021-02-17 | AA21: 2021-02-14 | AB21: 2021-02-17 | AF21: 2021-02-26 | AH21: 2021-02-21 | AI21: 2021-02-24 | AJ21: 2021-02-21 | AK21: 2021-02-24 | AL21: 2021-02-27 | AM21: 2021-02-24 | AN21: 2021-02-27 | AO21: 2021-03-02 | AP21: 2021-02-26 | AQ21: 2021-03-01 | AS21: 2021-02-27 | AT21: 2021-03-02 | AV21: 2021-03-01 | AW21: 2021-03-04 | AX21: 2021-03-07 | AY21: 2021-03-01 | AZ21: 2021-03-04 | BA21: 2021-03-07 | BB21: 2021-03-02 | BC21: 2021-03-05 | BD21: 2021-03-03 | BE21: 2021-03-06 | BF21: 2021-03-10 | BG21: 2021-03-05 | BH21: 2021-03-08 | BI21: 2021-03-11 | BJ21: 2021-03-07 | BK21: 2021-03-11 | BM21: 2021-03-07 | BN21: 2021-03-10 | BP21: 2021-03-08 | BQ21: 2021-03-11 | BR21: 2021-03-14 | BS21: 2021-03-14 | BT21: 2021-03-18 | BU21: 2021-03-22 | BV21: 2021-03-15 | BW21: 2021-03-18 | BX21: 2021-03-15 | BY21: 2021-03-18 | BZ21: 2021-03-21 | CA21: 2021-03-17 | CB21: 2021-03-20 | CD21: 2021-03-18 | CE21: 2021-03-21 | CF21: 2021-03-24 | CG21: 2021-03-18 | CH21: 2021-03-21 | CJ21: 2021-03-19 | CK21: 2021-03-22 | CL21: 2021-03-21 | CM21: 2021-03-24 | CN21: 2022-03-21 | CO21: 2022-03-24 | CP21: 2021-03-23 | CQ21: 2021-03-26 | CR21: 2021-03-29 | CS21: 2021-04-03 | CT21: 2021-04-15 | CU21: 2021-04-18 | CV21: 2021-04-28 | CX21: 2021-07-08 | CY21: 2021-07-12
A22: 20 | B22: 2020-11-24 | C22: 2020-11-28 | D22: 2020-12-31 | E22: 2021-01-03 | F22: 2022-01-03 | H22: 2021-01-05 | I22: 2021-01-08 | J22: 2021-01-19 | K22: 2021-01-22 | L22: 2021-01-20 | M22: 2021-01-23 | N22: 2021-01-21 | O22: 2021-01-24 | S22: 2021-02-03 | T22: 2021-02-06 | U22: 2021-02-09 | V22: 2021-02-12 | W22: 2021-02-07 | X22: 2021-02-12 | Y22: 2021-02-15 | Z22: 2021-02-18 | AA22: 2021-02-15 | AB22: 2021-02-18 | AF22: 2021-02-27 | AH22: 2021-02-22 | AI22: 2021-02-25 | AJ22: 2021-02-22 | AK22: 2021-02-25 | AL22: 2021-02-28 | AM22: 2021-02-25 | AN22: 2021-02-28 | AO22: 2021-03-03 | AP22: 2021-02-27 | AQ22: 2021-03-02 | AS22: 2021-02-28 | AT22: 2021-03-03 | AV22: 2021-03-02 | AW22: 2021-03-05 | AX22: 2021-03-08 | AY22: 2021-03-02 | AZ22: 2021-03-05 | BA22: 2021-03-08 | BB22: 2021-03-03 | BC22: 2021-03-06 | BD22: 2021-03-04 | BE22: 2021-03-07 | BF22: 2021-03-11 | BG22: 2021-03-06 | BH22: 2021-03-09 | BI22: 2021-03-12 | BJ22: 2021-03-08 | BK22: 2021-03-12 | BM22: 2021-03-08 | BN22: 2021-03-11 | BP22: 2021-03-09 | BQ22: 2021-03-12 | BR22: 2021-03-15 | BS22: 2021-03-15 | BT22: 2021-03-19 | BU22: 2021-03-23 | BV22: 2021-03-16 | BW22: 2021-03-19 | BX22: 2021-03-16 | BY22: 2021-03-19 | BZ22: 2021-03-22 | CA22: 2021-03-18 | CB22: 2021-03-21 | CD22: 2021-03-19 | CE22: 2021-03-22 | CF22: 2021-03-25 | CG22: 2021-03-19 | CH22: 2021-03-22 | CJ22: 2021-03-20 | CK22: 2021-03-23 | CL22: 2021-03-22 | CM22: 2021-03-25 | CN22: 2022-03-22 | CO22: 2022-03-25 | CP22: 2021-03-24 | CQ22: 2021-03-27 | CR22: 2021-03-30 | CS22: 2021-04-04 | CT22: 2021-04-16 | CU22: 2021-04-19 | CV22: 2021-04-29 | CX22: 2021-07-09 | CY22: 2021-07-13
A23: 21 | B23: 2020-11-25 | C23: 2020-11-29 | D23: 2021-01-01 | E23: 2021-01-04 | F23: 2022-01-04 | H23: 2021-01-06 | I23: 2021-01-09 | J23: 2021-01-20 | K23: 2021-01-23 | L23: 2021-01-21 | M23: 2021-01-24 | N23: 2021-01-22 | O23: 2021-01-25 | S23: 2021-02-04 | T23: 2021-02-07 | U23: 2021-02-10 | V23: 2021-02-13 | W23: 2021-02-08 | X23: 2021-02-13 | Y23: 2021-02-16 | Z23: 2021-02-19 | AA23: 2021-02-16 | AB23: 2021-02-19 | AF23: 2021-02-28 | AH23: 2021-02-23 | AI23: 2021-02-26 | AJ23: 2021-02-23 | AK23: 2021-02-26 | AL23: 2021-03-01 | AM23: 2021-02-26 | AN23: 2021-03-01 | AO23: 2021-03-04 | AP23: 2021-02-28 | AQ23: 2021-03-03 | AS23: 2021-03-01 | AT23: 2021-03-04 | AV23: 2021-03-03 | AW23: 2021-03-06 | AX23: 2021-03-09 | AY23: 2021-03-03 | AZ23: 2021-03-06 | BA23: 2021-03-09 | BB23: 2021-03-04 | BC23: 2021-03-07 | BD23: 2021-03-05 | BE23: 2021-03-08 | BF23: 2021-03-12 | BG23: 2021-03-07 | BH23: 2021-03-10 | BI23: 2021-03-13 | BJ23: 2021-03-09 | BK23: 2021-03-13 | BM23: 2021-03-09 | BN23: 2021-03-12 | BP23: 2021-03-10 | BQ23: 2021-03-13 | BR23: 2021-03-16 | BS23: 2021-03-16 | BT23: 2021-03-20 | BU23: 2021-03-24 | BV23: 2021-03-17 | BW23: 2021-03-20 | BX23: 2021-03-17 | BY23: 2021-03-20 | BZ23: 2021-03-23 | CA23: 2021-03-19 | CB23: 2021-03-22 | CD23: 2021-03-20 | CE23: 2021-03-23 | CF23: 2021-03-26 | CG23: 2021-03-20 | CH23: 2021-03-23 | CJ23: 2021-03-21 | CK23: 2021-03-24 | CL23: 2021-03-23 | CM23: 2021-03-26 | CN23: 2022-03-23 | CO23: 2022-03-26 | CP23: 2021-03-25 | CQ23: 2021-03-28 | CR23: 2021-03-31 | CS23: 2021-04-05 | CT23: 2021-04-17 | CU23: 2021-04-20 | CV23: 2021-04-30 | CX23: 2021-07-10 | CY23: 2021-07-14
A24: 22 | B24: 2020-11-26 | C24: 2020-11-30 | D24: 2021-01-02 | E24: 2021-01-05 | F24: 2022-01-05 | H24: 2021-01-07 | I24: 2021-01-10 | J24: 2021-01-21 | K24: 2021-01-24 | L24: 2021-01-22 | M24: 2021-01-25 | N24: 2021-01-23 | O24: 2021-01-26 | S24: 2021-02-05 | T24: 2021-02-08 | U24: 2021-02-11 | V24: 2021-02-14 | W24: 2021-02-09 | X24: 2021-02-14 | Y24: 2021-02-17 | Z24: 2021-02-20 | AA24: 2021-02-17 | AB24: 2021-02-20 | AF24: 2021-03-01 | AH24: 2021-02-24 | AI24: 2021-02-27 | AJ24: 2021-02-24 | AK24: 2021-02-27 | AL24: 2021-03-02 | AM24: 2021-02-27 | AN24: 2021-03-02 | AO24: 2021-03-05 | AP24: 2021-03-01 | AQ24: 2021-03-04 | AS24: 2021-03-02 | AT24: 2021-03-05 | AV24: 2021-03-04 | AW24: 2021-03-07 | AX24: 2021-03-10 | AY24: 2021-03-04 | AZ24: 2021-03-07 | BA24: 2021-03-10 | BB24: 2021-03-05 | BC24: 2021-03-08 | BD24: 2021-03-06 | BE24: 2021-03-09 | BF24: 2021-03-13 | BG24: 2021-03-08 | BH24: 2021-03-11 | BI24: 2021-03-14 | BJ24: 2021-03-10 | BK24: 2021-03-14 | BM24: 2021-03-10 | BN24: 2021-03-13 | BP24: 2021-03-11 | BQ24: 2021-03-14 | BR24: 2021-03-17 | BS24: 2021-03-17 | BT24: 2021-03-21 | BU24: 2021-03-25 | BV24: 2021-03-18 | BW24: 2021-03-21 | BX24: 2021-03-18 | BY24: 2021-03-21 | BZ24: 2021-03-24 | CA24: 2021-03-20 | CB24: 2021-03-23 | CD24: 2021-03-21 | CE24: 2021-03-24 | CF24: 2021-03-27 | CG24: 2021-03-21 | CH24: 2021-03-24 | CJ24: 2021-03-22 | CK24: 2021-03-25 | CL24: 2021-03-24 | CM24: 2021-03-27 | CN24: 2022-03-24 | CO24: 2022-03-27 | CP24: 2021-03-26 | CQ24: 2021-03-29 | CR24: 2021-04-01 | CS24: 2021-04-06 | CT24: 2021-04-18 | CU24: 2021-04-21 | CV24: 2021-05-01 | CX24: 2021-07-11 | CY24: 2021-07-15
A25: 23 | B25: 2020-11-27 | C25: 2020-12-01 | D25: 2021-01-03 | E25: 2021-01-06 | F25: 2022-01-06 | H25: 2021-01-08 | I25: 2021-01-11 | J25: 2021-01-22 | K25: 2021-01-25 | L25: 2021-01-23 | M25: 2021-01-26 | N25: 2021-01-24 | O25: 2021-01-27 | S25: 2021-02-06 | T25: 2021-02-09 | U25: 2021-02-12 | V25: 2021-02-15 | W25: 2021-02-10 | X25: 2021-02-15 | Y25: 2021-02-18 | Z25: 2021-02-21 | AA25: 2021-02-18 | AB25: 2021-02-21 | AF25: 2021-03-02 | AH25: 2021-02-25 | AI25: 2021-02-28 | AJ25: 2021-02-25 | AK25: 2021-02-28 | AL25: 2021-03-03 | AM25: 2021-02-28 | AN25: 2021-03-03 | AO25: 2021-03-06 | AP25: 2021-03-02 | AQ25: 2021-03-05 | AS25: 2021-03-03 | AT25: 2021-03-06 | AV25: 2021-03-05 | AW25: 2021-03-08 | AX25: 2021-03-11 | AY25: 2021-03-05 | AZ25: 2021-03-08 | BA25: 2021-03-11 | BB25: 2021-03-06 | BC25: 2021-03-09 | BD25: 2021-03-07 | BE25: 2021-03-10 | BF25: 2021-03-14 | BG25: 2021-03-09 | BH25: 2021-03-12 | BI25: 2021-03-15 | BJ25: 2021-03-11 | BK25: 2021-03-15 | BM25: 2021-03-11 | BN25: 2021-03-14 | BP25: 2021-03-12 | BQ25: 2021-03-15 | BR25: 2021-03-18 | BS25: 2021-03-18 | BT25: 2021-03-22 | BU25: 2021-03-26 | BV25: 2021-03-19 | BW25: 2021-03-22 | BX25: 2021-03-19 | BY25: 2021-03-22 | BZ25: 2021-03-25 | CA25: 2021-03-21 | CB25: 2021-03-24 | CD25: 2021-03-22 | CE25: 2021-03-25 | CF25: 2021-03-28 | CG25: 2021-03-22 | CH25: 2021-03-25 | CJ25: 2021-03-23 | CK25: 2021-03-26 | CL25: 2021-03-25 | CM25: 2021-03-28 | CN25: 2022-03-25 | CO25: 2022-03-28 | CP25: 2021-03-27 | CQ25: 2021-03-30 | CR25: 2021-04-02 | CS25: 2021-04-07 | CT25: 2021-04-19 | CU25: 2021-04-22 | CV25: 2021-05-02 | CX25: 2021-07-12 | CY25: 2021-07-16
A26: 24 | B26: 2020-11-28 | C26: 2020-12-02 | D26: 2021-01-04 | E26: 2021-01-07 | F26: 2022-01-07 | H26: 2021-01-09 | I26: 2021-01-12 | J26: 2021-01-23 | K26: 2021-01-26 | L26: 2021-01-24 | M26: 2021-01-27 | N26: 2021-01-25 | O26: 2021-01-28 | S26: 2021-02-07 | T26: 2021-02-10 | U26: 2021-02-13 | V26: 2021-02-16 | W26: 2021-02-11 | X26: 2021-02-16 | Y26: 2021-02-19 | Z26: 2021-02-22 | AA26: 2021-02-19 | AB26: 2021-02-22 | AF26: 2021-03-03 | AH26: 2021-02-26 | AI26: 2021-03-01 | AJ26: 2021-02-26 | AK26: 2021-03-01 | AL26: 2021-03-04 | AM26: 2021-03-01 | AN26: 2021-03-04 | AO26: 2021-03-07 | AP26: 2021-03-03 | AQ26: 2021-03-06 | AS26: 2021-03-04 | AT26: 2021-03-07 | AV26: 2021-03-06 | AW26: 2021-03-09 | AX26: 2021-03-12 | AY26: 2021-03-06 | AZ26: 2021-03-09 | BA26: 2021-03-12 | BB26: 2021-03-07 | BC26: 2021-03-10 | BD26: 2021-03-08 | BE26: 2021-03-11 | BF26: 2021-03-15 | BG26: 2021-03-10 | BH26: 2021-03-13 | BI26: 2021-03-16 | BJ26: 2021-03-12 | BK26: 2021-03-16 | BM26: 2021-03-12 | BN26: 2021-03-15 | BP26: 2021-03-13 | BQ26: 2021-03-16 | BR26: 2021-03-19 | BS26: 2021-03-19 | BT26: 2021-03-23 | BU26: 2021-03-27 | BV26: 2021-03-20 | BW26: 2021-03-23 | BX26: 2021-03-20 | BY26: 2021-03-23 | BZ26: 2021-03-26 | CA26: 2021-03-22 | CB26: 2021-03-25 | CD26: 2021-03-23 | CE26: 2021-03-26 | CF26: 2021-03-29 | CG26: 2021-03-23 | CH26: 2021-03-26 | CJ26: 2021-03-24 | CK26: 2021-03-27 | CL26: 2021-03-26 | CM26: 2021-03-29 | CN26: 2022-03-26 | CO26: 2022-03-29 | CP26: 2021-03-28 | CQ26: 2021-03-31 | CR26: 2021-04-03 | CS26: 2021-04-08 | CT26: 2021-04-20 | CU26: 2021-04-23 | CV26: 2021-05-03 | CX26: 2021-07-13 | CY26: 2021-07-17
A27: 25 | B27: 2020-11-29 | C27: 2020-12-03 | D27: 2021-01-05 | E27: 2021-01-08 | F27: 2022-01-08 | H27: 2021-01-10 | I27: 2021-01-13 | J27: 2021-01-24 | K27: 2021-01-27 | L27: 2021-01-25 | M27: 2021-01-28 | N27: 2021-01-26 | O27: 2021-01-29 | S27: 2021-02-08 | T27: 2021-02-11 | U27: 2021-02-14 | V27: 2021-02-17 | W27: 2021-02-12 | X27: 2021-02-17 | Y27: 2021-02-20 | Z27: 2021-02-23 | AA27: 2021-02-20 | AB27: 2021-02-23 | AF27: 2021-03-04 | AH27: 2021-02-27 | AI27: 2021-03-02 | AJ27: 2021-02-27 | AK27: 2021-03-02 | AL27: 2021-03-05 | AM27: 2021-03-02 | AN27: 2021-03-05 | AO27: 2021-03-08 | AP27: 2021-03-04 | AQ27: 2021-03-07 | AS27: 2021-03-05 | AT27: 2021-03-08 | AV27: 2021-03-07 | AW27: 2021-03-10 | AX27: 2021-03-13 | AY27: 2021-03-07 | AZ27: 2021-03-10 | BA27: 2021-03-13 | BB27: 2021-03-08 | BC27: 2021-03-11 | BD27: 2021-03-09 | BE27: 2021-03-12 | BF27: 2021-03-16 | BG27: 2021-03-11 | BH27: 2021-03-14 | BI27: 2021-03-17 | BJ27: 2021-03-13 | BK27: 2021-03-17 | BM27: 2021-03-13 | BN27: 2021-03-16 | BP27: 2021-03-14 | BQ27: 2021-03-17 | BR27: 2021-03-20 | BS27: 2021-03-20 | BT27: 2021-03-24 | BU27: 2021-03-28 | BV27: 2021-03-21 | BW27: 2021-03-24 | BX27: 2021-03-21 | BY27: 2021-03-24 | BZ27: 2021-03-27 | CA27: 2021-03-23 | CB27: 2021-03-26 | CD27: 2021-03-24 | CE27: 2021-03-27 | CF27: 2021-03-30 | CG27: 2021-03-24 | CH27: 2021-03-27 | CJ27: 2021-03-25 | CK27: 2021-03-28 | CL27: 2021-03-27 | CM27: 2021-03-30 | CN27: 2022-03-27 | CO27: 2022-03-30 | CP27: 2021-03-29 | CQ27: 2021-04-01 | CR27: 2021-04-04 | CS27: 2021-04-09 | CT27: 2021-04-21 | CU27: 2021-04-24 | CV27: 2021-05-04 | CX27: 2021-07-14 | CY27: 2021-07-18
A28: 26 | B28: 2020-11-30 | C28: 2020-12-04 | D28: 2021-01-06 | E28: 2021-01-09 | F28: 2022-01-09 | H28: 2021-01-11 | I28: 2021-01-14 | J28: 2021-01-25 | K28: 2021-01-28 | L28: 2021-01-26 | M28: 2021-01-29 | N28: 2021-01-27 | O28: 2021-01-30 | S28: 2021-02-09 | T28: 2021-02-12 | U28: 2021-02-15 | V28: 2021-02-18 | W28: 2021-02-13 | X28: 2021-02-18 | Y28: 2021-02-21 | Z28: 2021-02-24 | AA28: 2021-02-21 | AB28: 2021-02-24 | AF28: 2021-03-05 | AH28: 2021-02-28 | AI28: 2021-03-03 | AJ28: 2021-02-28 | AK28: 2021-03-03 | AL28: 2021-03-06 | AM28: 2021-03-03 | AN28: 2021-03-06 | AO28: 2021-03-09 | AP28: 2021-03-05 | AQ28: 2021-03-08 | AS28: 2021-03-06 | AT28: 2021-03-09 | AV28: 2021-03-08 | AW28: 2021-03-11 | AX28: 2021-03-14 | AY28: 2021-03-08 | AZ28: 2021-03-11 | BA28: 2021-03-14 | BB28: 2021-03-09 | BC28: 2021-03-12 | BD28: 2021-03-10 | BE28: 2021-03-13 | BF28: 2021-03-17 | BG28: 2021-03-12 | BH28: 2021-03-15 | BI28: 2021-03-18 | BJ28: 2021-03-14 | BK28: 2021-03-18 | BM28: 2021-03-14 | BN28: 2021-03-17 | BP28: 2021-03-15 | BQ28: 2021-03-18 | BR28: 2021-03-21 | BS28: 2021-03-21 | BT28: 2021-03-25 | BU28: 2021-03-29 | BV28: 2021-03-22 | BW28: 2021-03-25 | BX28: 2021-03-22 | BY28: 2021-03-25 | BZ28: 2021-03-28 | CA28: 2021-03-24 | CB28: 2021-03-27 | CD28: 2021-03-25 | CE28: 2021-03-28 | CF28: 2021-03-31 | CG28: 2021-03-25 | CH28: 2021-03-28 | CJ28: 2021-03-26 | CK28: 2021-03-29 | CL28: 2021-03-28 | CM28: 2021-03-31 | CN28: 2022-03-28 | CO28: 2022-03-31 | CP28: 2021-03-30 | CQ28: 2021-04-02 | CR28: 2021-04-05 | CS28: 2021-04-10 | CT28: 2021-04-22 | CU28: 2021-04-25 | CV28: 2021-05-05 | CX28: 2021-07-15 | CY28: 2021-07-19
A29: 27 | B29: 2020-12-01 | C29: 2020-12-05 | D29: 2021-01-07 | E29: 2021-01-10 | F29: 2022-01-10 | H29: 2021-01-12 | I29: 2021-01-15 | J29: 2021-01-26 | K29: 2021-01-29 | L29: 2021-01-27 | M29: 2021-01-30 | N29: 2021-01-28 | O29: 2021-01-31 | S29: 2021-02-10 | T29: 2021-02-13 | U29: 2021-02-16 | V29: 2021-02-19 | W29: 2021-02-14 | X29: 2021-02-19 | Y29: 2021-02-22 | Z29: 2021-02-25 | AA29: 2021-02-22 | AB29: 2021-02-25 | AF29: 2021-03-06 | AH29: 2021-03-01 | AI29: 2021-03-04 | AJ29: 2021-03-01 | AK29: 2021-03-04 | AL29: 2021-03-07 | AM29: 2021-03-04 | AN29: 2021-03-07 | AO29: 2021-03-10 | AP29: 2021-03-06 | AQ29: 2021-03-09 | AS29: 2021-03-07 | AT29: 2021-03-10 | AV29: 2021-03-09 | AW29: 2021-03-12 | AX29: 2021-03-15 | AY29: 2021-03-09 | AZ29: 2021-03-12 | BA29: 2021-03-15 | BB29: 2021-03-10 | BC29: 2021-03-13 | BD29: 2021-03-11 | BE29: 2021-03-14 | BF29: 2021-03-18 | BG29: 2021-03-13 | BH29: 2021-03-16 | BI29: 2021-03-19 | BJ29: 2021-03-15 | BK29: 2021-03-19 | BM29: 2021-03-15 | BN29: 2021-03-18 | BP29: 2021-03-16 | BQ29: 2021-03-19 | BR29: 2021-03-22 | BS29: 2021-03-22 | BT29: 2021-03-26 | BU29: 2021-03-30 | BV29: 2021-03-23 | BW29: 2021-03-26 | BX29: 2021-03-23 | BY29: 2021-03-26 | BZ29: 2021-03-29 | CA29: 2021-03-25 | CB29: 2021-03-28 | CD29: 2021-03-26 | CE29: 2021-03-29 | CF29: 2021-04-01 | CG29: 2021-03-26 | CH29: 2021-03-29 | CJ29: 2021-03-27 | CK29: 2021-03-30 | CL29: 2021-03-29 | CM29: 2021-04-01 | CN29: 2022-03-29 | CO29: 2022-04-01 | CP29: 2021-03-31 | CQ29: 2021-04-03 | CR29: 2021-04-06 | CS29: 2021-04-11 | CT29: 2021-04-23 | CU29: 2021-04-26 | CV29: 2021-05-06 | CX29: 2021-07-16 | CY29: 2021-07-20
A30: 28 | B30: 2020-12-02 | C30: 2020-12-06 | D30: 2021-01-08 | E30: 2021-01-11 | F30: 2022-01-11 | H30: 2021-01-13 | I30: 2021-01-16 | J30: 2021-01-27 | K30: 2021-01-30 | L30: 2021-01-28 | M30: 2021-01-31 | N30: 2021-01-29 | O30: 2021-02-01 | S30: 2021-02-11 | T30: 2021-02-14 | U30: 2021-02-17 | V30: 2021-02-20 | W30: 2021-02-15 | X30: 2021-02-20 | Y30: 2021-02-23 | Z30: 2021-02-26 | AA30: 2021-02-23 | AB30: 2021-02-26 | AF30: 2021-03-07 | AH30: 2021-03-02 | AI30: 2021-03-05 | AJ30: 2021-03-02 | AK30: 2021-03-05 | AL30: 2021-03-08 | AM30: 2021-03-05 | AN30: 2021-03-08 | AO30: 2021-03-11 | AP30: 2021-03-07 | AQ30: 2021-03-10 | AS30: 2021-03-08 | AT30: 2021-03-11 | AV30: 2021-03-10 | AW30: 2021-03-13 | AX30: 2021-03-16 | AY30: 2021-03-10 | AZ30: 2021-03-13 | BA30: 2021-03-16 | BB30: 2021-03-11 | BC30: 2021-03-14 | BD30: 2021-03-12 | BE30: 2021-03-15 | BF30: 2021-03-19 | BG30: 2021-03-14 | BH30: 2021-03-17 | BI30: 2021-03-20 | BJ30: 2021-03-16 | BK30: 2021-03-20 | BM30: 2021-03-16 | BN30: 2021-03-19 | BP30: 2021-03-17 | BQ30: 2021-03-20 | BR30: 2021-03-23 | BS30: 2021-03-23 | BT30: 2021-03-27 | BU30: 2021-03-31 | BV30: 2021-03-24 | BW30: 2021-03-27 | BX30: 2021-03-24 | BY30: 2021-03-27 | BZ30: 2021-03-30 | CA30: 2021-03-26 | CB30: 2021-03-29 | CD30: 2021-03-27 | CE30: 2021-03-30 | CF30: 2021-04-02 | CG30: 2021-03-27 | CH30: 2021-03-30 | CJ30: 2021-03-28 | CK30: 2021-03-31 | CL30: 2021-03-30 | CM30: 2021-04-02 | CN30: 2022-03-30 | CO30: 2022-04-02 | CP30: 2021-04-01 | CQ30: 2021-04-04 | CR30: 2021-04-07 | CS30: 2021-04-12 | CT30: 2021-04-24 | CU30: 2021-04-27 | CV30: 2021-05-07 | CX30: 2021-07-17 | CY30: 2021-07-21
A31: 29 | B31: 2020-12-03 | C31: 2020-12-07 | D31: 2021-01-09 | E31: 2021-01-12 | F31: 2022-01-12 | H31: 2021-01-14 | I31: 2021-01-17 | J31: 2021-01-28 | K31: 2021-01-31 | L31: 2021-01-29 | M31: 2021-02-01 | N31: 2021-01-30 | O31: 2021-02-02 | S31: 2021-02-12 | T31: 2021-02-15 | U31: 2021-02-18 | V31: 2021-02-21 | W31: 2021-02-16 | X31: 2021-02-21 | Y31: 2021-02-24 | Z31: 2021-02-27 | AA31: 2021-02-24 | AB31: 2021-02-27 | AF31: 2021-03-08 | AH31: 2021-03-03 | AI31: 2021-03-06 | AJ31: 2021-03-03 | AK31: 2021-03-06 | AL31: 2021-03-09 | AM31: 2021-03-06 | AN31: 2021-03-09 | AO31: 2021-03-12 | AP31: 2021-03-08 | AQ31: 2021-03-11 | AS31: 2021-03-09 | AT31: 2021-03-12 | AV31: 2021-03-11 | AW31: 2021-03-14 | AX31: 2021-03-17 | AY31: 2021-03-11 | AZ31: 2021-03-14 | BA31: 2021-03-17 | BB31: 2021-03-12 | BC31: 2021-03-15 | BD31: 2021-03-13 | BE31: 2021-03-16 | BF31: 2021-03-20 | BG31: 2021-03-15 | BH31: 2021-03-18 | BI31: 2021-03-21 | BJ31: 2021-03-17 | BK31: 2021-03-21 | BM31: 2021-03-17 | BN31: 2021-03-20 | BP31: 2021-03-18 | BQ31: 2021-03-21 | BR31: 2021-03-24 | BS31: 2021-03-24 | BT31: 2021-03-28 | BU31: 2021-04-01 | BV31: 2021-03-25 | BW31: 2021-03-28 | BX31: 2021-03-25 | BY31: 2021-03-28 | BZ31: 2021-03-31 | CA31: 2021-03-27 | CB31: 2021-03-30 | CD31: 2021-03-28 | CE31: 2021-03-31 | CF31: 2021-04-03 | CG31: 2021-03-28 | CH31: 2021-03-31 | CJ31: 2021-03-29 | CK31: 2021-04-01 | CL31: 2021-03-31 | CM31: 2021-04-03 | CN31: 2022-03-31 | CO31: 2022-04-03 | CP31: 2021-04-02 | CQ31: 2021-04-05 | CR31: 2021-04-08 | CS31: 2021-04-13 | CT31: 2021-04-25 | CU31: 2021-04-28 | CV31: 2021-05-08 | CX31: 2021-07-18 | CY31: 2021-07-22
A32: 30 | B32: 2020-12-04 | C32: 2020-12-08 | D32: 2021-01-10 | E32: 2021-01-13 | F32: 2022-01-13 | H32: 2021-01-15 | I32: 2021-01-18 | J32: 2021-01-29 | K32: 2021-02-01 | L32: 2021-01-30 | M32: 2021-02-02 | N32: 2021-01-31 | O32: 2021-02-03 | S32: 2021-02-13 | T32: 2021-02-16 | U32: 2021-02-19 | V32: 2021-02-22 | W32: 2021-02-17 | X32: 2021-02-22 | Y32: 2021-02-25 | Z32: 2021-02-28 | AA32: 2021-02-25 | AB32: 2021-02-28 | AF32: 2021-03-09 | AH32: 2021-03-04 | AI32: 2021-03-07 | AJ32: 2021-03-04 | AK32: 2021-03-07 | AL32: 2021-03-10 | AM32: 2021-03-07 | AN32: 2021-03-10 | AO32: 2021-03-13 | AP32: 2021-03-09 | AQ32: 2021-03-12 | AS32: 2021-03-10 | AT32: 2021-03-13 | AV32: 2021-03-12 | AW32: 2021-03-15 | AX32: 2021-03-18 | AY32: 2021-03-12 | AZ32: 2021-03-15 | BA32: 2021-03-18 | BB32: 2021-03-13 | BC32: 2021-03-16 | BD32: 2021-03-14 | BE32: 2021-03-17 | BF32: 2021-03-21 | BG32: 2021-03-16 | BH32: 2021-03-19 | BI32: 2021-03-22 | BJ32: 2021-03-18 | BK32: 2021-03-22 | BM32: 2021-03-18 | BN32: 2021-03-21 | BP32: 2021-03-19 | BQ32: 2021-03-22 | BR32: 2021-03-25 | BS32: 2021-03-25 | BT32: 2021-03-29 | BU32: 2021-04-02 | BV32: 2021-03-26 | BW32: 2021-03-29 | BX32: 2021-03-26 | BY32: 2021-03-29 | BZ32: 2021-04-01 | CA32: 2021-03-28 | CD32: 2021-03-29 | CE32: 2021-04-01 | CF32: 2021-04-04 | CG32: 2021-03-29 | CH32: 2021-04-01 | CJ32: 2021-03-30 | CK32: 2021-04-02 | CL32: 2021-04-01 | CM32: 2021-04-04 | CN32: 2022-04-01 | CO32: 2022-04-04 | CP32: 2021-04-03 | CQ32: 2021-04-06 | CR32: 2021-04-09 | CS32: 2021-04-14 | CT32: 2021-04-26 | CU32: 2021-04-29 | CV32: 2021-05-09 | CX32: 2021-07-19 | CY32: 2021-07-23
A33: 31 | B33: 2020-12-05 | C33: 2020-12-09 | D33: 2021-01-11 | E33: 2021-01-14 | F33: 2022-01-14 | H33: 2021-01-16 | I33: 2021-01-19 | J33: 2021-01-30 | K33: 2021-02-02 | L33: 2021-01-31 | M33: 2021-02-03 | N33: 2021-02-01 | O33: 2021-02-04 | S33: 2021-02-14 | T33: 2021-02-17 | U33: 2021-02-20 | V33: 2021-02-23 | W33: 2021-02-18 | X33: 2021-02-23 | Y33: 2021-02-26 | Z33: 2021-03-01 | AA33: 2021-02-26 | AB33: 2021-03-01 | AF33: 2021-03-10 | AH33: 2021-03-05 | AI33: 2021-03-08 | AJ33: 2021-03-05 | AK33: 2021-03-08 | AL33: 2021-03-11 | AM33: 2021-03-08 | AN33: 2021-03-11 | AO33: 2021-03-14 | AP33: 2021-03-10 | AQ33: 2021-03-13 | AS33: 2021-03-11 | AT33: 2021-03-14 | AV33: 2021-03-13 | AW33: 2021-03-16 | AX33: 2021-03-19 | AY33: 2021-03-13 | AZ33: 2021-03-16 | BA33: 2021-03-19 | BB33: 2021-03-14 | BC33: 2021-03-17 | BD33: 2021-03-15 | BE33: 2021-03-18 | BF33: 2021-03-22 | BG33: 2021-03-17 | BH33: 2021-03-20 | BI33: 2021-03-23 | BJ33: 2021-03-19 | BK33: 2021-03-23 | BM33: 2021-03-19 | BN33: 2021-03-22 | BP33: 2021-03-20 | BQ33: 2021-03-23 | BR33: 2021-03-26 | BS33: 2021-03-26 | BT33: 2021-03-30 | BU33: 2021-04-03 | BV33: 2021-03-27 | BW33: 2021-03-30 | BX33: 2021-03-27 | BY33: 2021-03-30 | BZ33: 2021-04-02 | CA33: 2021-03-29 | CD33: 2021-03-30 | CE33: 2021-04-02 | CF33: 2021-04-05 | CG33: 2021-03-30 | CH33: 2021-04-02 | CJ33: 2021-03-31 | CK33: 2021-04-03 | CL33: 2021-04-02 | CM33: 2021-04-05 | CN33: 2022-04-02 | CO33: 2022-04-05 | CP33: 2021-04-04 | CQ33: 2021-04-07 | CR33: 2021-04-10 | CS33: 2021-04-15 | CT33: 2021-04-27 | CU33: 2021-04-30 | CV33: 2021-05-10 | CX33: 2021-07-20 | CY33: 2021-07-24
A34: 32 | B34: 2020-12-06 | C34: 2020-12-10 | D34: 2021-01-12 | E34: 2021-01-15 | F34: 2022-01-15 | H34: 2021-01-17 | I34: 2021-01-20 | J34: 2021-01-31 | K34: 2021-02-03 | L34: 2021-02-01 | M34: 2021-02-04 | N34: 2021-02-02 | O34: 2021-02-05 | S34: 2021-02-15 | T34: 2021-02-18 | U34: 2021-02-21 | V34: 2021-02-24 | W34: 2021-02-19 | X34: 2021-02-24 | Y34: 2021-02-27 | Z34: 2021-03-02 | AA34: 2021-02-27 | AB34: 2021-03-02 | AF34: 2021-03-11 | AH34: 2021-03-06 | AI34: 2021-03-09 | AJ34: 2021-03-06 | AK34: 2021-03-09 | AM34: 2021-03-09 | AN34: 2021-03-12 | AO34: 2021-03-15 | AP34: 2021-03-11 | AQ34: 2021-03-14 | AS34: 2021-03-12 | AT34: 2021-03-15 | AV34: 2021-03-14 | AW34: 2021-03-17 | AX34: 2021-03-20 | AY34: 2021-03-14 | AZ34: 2021-03-17 | BA34: 2021-03-20 | BB34: 2021-03-15 | BC34: 2021-03-18 | BD34: 2021-03-16 | BE34: 2021-03-19 | BF34: 2021-03-23 | BG34: 2021-03-18 | BH34: 2021-03-21 | BI34: 2021-03-24 | BJ34: 2021-03-20 | BK34: 2021-03-24 | BM34: 2021-03-20 | BN34: 2021-03-23 | BP34: 2021-03-21 | BQ34: 2021-03-24 | BR34: 2021-03-27 | BS34: 2021-03-27 | BT34: 2021-03-31 | BU34: 2021-04-04 | BV34: 2021-03-28 | BW34: 2021-03-31 | BX34: 2021-03-28 | BY34: 2021-03-31 | BZ34: 2021-04-03 | CA34: 2021-03-30 | CD34: 2021-03-31 | CE34: 2021-04-03 | CF34: 2021-04-06 | CG34: 2021-03-31 | CH34: 2021-04-03 | CJ34: 2021-04-01 | CK34: 2021-04-04 | CL34: 2021-04-03 | CM34: 2021-04-06 | CN34: 2022-04-03 | CO34: 2022-04-06 | CP34: 2021-04-05 | CQ34: 2021-04-08 | CR34: 2021-04-11 | CS34: 2021-04-16 | CT34: 2021-04-28 | CU34: 2021-05-01 | CV34: 2021-05-11 | CX34: 2021-07-21 | CY34: 2021-07-25
A35: 33 | B35: 2020-12-07 | C35: 2020-12-11 | D35: 2021-01-13 | E35: 2021-01-16 | F35: 2022-01-16 | H35: 2021-01-18 | I35: 2021-01-21 | J35: 2021-02-01 | K35: 2021-02-04 | L35: 2021-02-02 | M35: 2021-02-05 | N35: 2021-02-03 | O35: 2021-02-06 | S35: 2021-02-16 | T35: 2021-02-19 | U35: 2021-02-22 | V35: 2021-02-25 | W35: 2021-02-20 | X35: 2021-02-25 | Y35: 2021-02-28 | Z35: 2021-03-03 | AA35: 2021-02-28 | AB35: 2021-03-03 | AF35: 2021-03-12 | AH35: 2021-03-07 | AI35: 2021-03-10 | AJ35: 2021-03-07 | AK35: 2021-03-10 | AM35: 2021-03-10 | AN35: 2021-03-13 | AO35: 2021-03-16 | AP35: 2021-03-12 | AQ35: 2021-03-15 | AS35: 2021-03-13 | AT35: 2021-03-16 | AV35: 2021-03-15 | AW35: 2021-03-18 | AX35: 2021-03-21 | AY35: 2021-03-15 | AZ35: 2021-03-18 | BA35: 2021-03-21 | BB35: 2021-03-16 | BC35: 2021-03-19 | BD35: 2021-03-17 | BE35: 2021-03-20 | BF35: 2021-03-24 | BG35: 2021-03-19 | BH35: 2021-03-22 | BI35: 2021-03-25 | BJ35: 2021-03-21 | BK35: 2021-03-25 | BM35: 2021-03-21 | BN35: 2021-03-24 | BP35: 2021-03-22 | BQ35: 2021-03-25 | BR35: 2021-03-28 | BS35: 2021-03-28 | BT35: 2021-04-01 | BU35: 2021-04-05 | BV35: 2021-03-29 | BW35: 2021-04-01 | BX35: 2021-03-29 | BY35: 2021-04-01 | BZ35: 2021-04-04 | CA35: eggs abandoned | CD35: 2021-04-01 | CE35: 2021-04-04 | CF35: 2021-04-07 | CG35: 2021-04-01 | CH35: 2021-04-04 | CJ35: 2021-04-02 | CK35: 2021-04-05 | CL35: 2021-04-04 | CM35: 2021-04-07 | CN35: 2022-04-04 | CO35: 2022-04-07 | CP35: 2021-04-06 | CQ35: 2021-04-09 | CR35: 2021-04-12 | CS35: 2021-04-17 | CT35: 2021-04-29 | CU35: 2021-05-02 | CV35: 2021-05-12 | CX35: 2021-07-22 | CY35: 2021-07-26
A36: 34 | B36: 2020-12-08 | C36: 2020-12-12 | D36: 2021-01-14 | E36: 2021-01-17 | F36: 2022-01-17 | H36: 2021-01-19 | I36: 2021-01-22 | J36: knocked into sticks at edge of nest | K36: 2021-02-05 | L36: 2021-02-03 | M36: 2021-02-06 | N36: 2021-02-04 | O36: 2021-02-07 | S36: 2021-02-17 | T36: 2021-02-20 | U36: 2021-02-23 | V36: 2021-02-26 | W36: 2021-02-21 | X36: 2021-02-26 | Y36: 2021-03-01 | Z36: 2021-03-04 | AA36: 2021-03-01 | AB36: 2021-03-04 | AF36: 2021-03-13 | AH36: 2021-03-08 | AI36: 2021-03-11 | AJ36: 2021-03-08 | AK36: 2021-03-11 | AM36: 2021-03-11 | AN36: 2021-03-14 | AO36: 2021-03-17 | AP36: 2021-03-13 | AQ36: 2021-03-16 | AS36: 2021-03-14 | AT36: 2021-03-17 | AV36: 2021-03-16 | AW36: 2021-03-19 | AX36: 2021-03-22 | AY36: 2021-03-16 | AZ36: 2021-03-19 | BA36: 2021-03-22 | BB36: 2021-03-17 | BC36: 2021-03-20 | BD36: 2021-03-18 | BE36: 2021-03-21 | BF36: 2021-03-25 | BG36: 2021-03-20 | BH36: 2021-03-23 | BI36: 2021-03-26 | BJ36: 2021-03-22 | BK36: 2021-03-26 | BM36: 2021-03-22 | BN36: 2021-03-25 | BP36: 2021-03-23 | BQ36: 2021-03-26 | BR36: 2021-03-29 | BS36: 2021-03-29 | BT36: 2021-04-02 | BU36: 2021-04-06 | BV36: 2021-03-30 | BW36: 2021-04-02 | BX36: 2021-03-30 | BY36: 2021-04-02 | BZ36: 2021-04-05 | CA36: intruders | CD36: 2021-04-02 | CE36: 2021-04-05 | CF36: 2021-04-08 | CG36: 2021-04-02 | CH36: 2021-04-05 | CJ36: 2021-04-03 | CK36: 2021-04-06 | CL36: 2021-04-05 | CM36: 2021-04-08 | CN36: 2022-04-05 | CO36: 2022-04-08 | CP36: 2021-04-07 | CQ36: 2021-04-10 | CR36: 2021-04-13 | CS36: 2021-04-18 | CT36: 2021-04-30 | CU36: 2021-05-03 | CV36: 2021-05-13 | CX36: 2021-07-23 | CY36: 2021-07-27
A37: 35 | B37: 2020-12-09 | C37: 2020-12-13 | D37: 2021-01-15 | E37: 2021-01-18 | F37: 2022-01-18 | H37: 2021-01-20 | I37: 2021-01-23 | K37: 2021-02-06 | L37: 2021-02-04 | M37: 2021-02-07 | N37: 2021-02-05 | O37: 2021-02-08 | S37: 2021-02-18 | T37: 2021-02-21 | U37: 2021-02-24 | V37: 2021-02-27 | W37: 2021-02-22 | X37: 2021-02-27 | Y37: 2021-03-02 | Z37: 2021-03-05 | AA37: 2021-03-02 | AB37: 2021-03-05 | AF37: 2021-03-14 | AH37: 2021-03-09 | AI37: 2021-03-12 | AJ37: 2021-03-09 | AM37: 2021-03-12 | AN37: 2021-03-15 | AO37: 2021-03-18 | AP37: 2021-03-14 | AQ37: 2021-03-17 | AS37: 2021-03-15 | AT37: 2021-03-18 | AV37: 2021-03-17 | AW37: 2021-03-20 | AX37: 2021-03-23 | AY37: 2021-03-17 | AZ37: 2021-03-20 | BA37: 2021-03-23 | BB37: 2021-03-18 | BC37: 2021-03-21 | BD37: 2021-03-19 | BE37: 2021-03-22 | BF37: 2021-03-26 | BG37: 2021-03-21 | BH37: 2021-03-24 | BI37: 2021-03-27 | BJ37: 2021-03-23 | BK37: 2021-03-27 | BM37: 2021-03-23 | BN37: 2021-03-26 | BP37: 2021-03-24 | BQ37: 2021-03-27 | BR37: 2021-03-30 | BS37: 2021-03-30 | BT37: 2021-04-03 | BU37: 2021-04-07 | BV37: 2021-03-31 | BW37: 2021-04-03 | BX37: 2021-03-31 | BY37: 2021-04-03 | BZ37: 2021-04-06 | CD37: 2021-04-03 | CE37: 2021-04-06 | CF37: 2021-04-09 | CG37: 2021-04-03 | CH37: 2021-04-06 | CJ37: 2021-04-04 | CK37: 2021-04-07 | CL37: 2021-04-06 | CM37: 2021-04-09 | CN37: 2022-04-06 | CO37: 2022-04-09 | CP37: 2021-04-08 | CQ37: 2021-04-11 | CR37: 2021-04-14 | CS37: 2021-04-19 | CT37: 2021-05-01 | CU37: 2021-05-04 | CV37: 2021-05-14 | CX37: 2021-07-24 | CY37: 2021-07-28
A38: 36 | B38: 2020-12-10 | C38: 2020-12-14 | D38: 2021-01-16 | F38: 2022-01-19 | H38: 2021-01-21 | K38: 2021-02-07 | L38: 2021-02-05 | M38: 2021-02-08 | N38: 2021-02-06 | O38: 2021-02-09 | S38: 2021-02-19 | T38: 2021-02-22 | U38: 2021-02-25 | V38: 2021-02-28 | W38: 2021-02-23 | X38: 2021-02-28 | Y38: 2021-03-03 | Z38: 2021-03-06 | AA38: 2021-03-03 | AB38: 2021-03-06 | AF38: 2021-03-15 | AH38: 2021-03-10 | AI38: 2021-03-13 | AJ38: 2021-03-10 | AM38: 2021-03-13 | AN38: 2021-03-16 | AO38: 2021-03-19 | AP38: 2021-03-15 | AQ38: 2021-03-18 | AS38: 2021-03-16 | AT38: 2021-03-19 | AV38: 2021-03-18 | AW38: 2021-03-21 | AX38: 2021-03-24 | AY38: 2021-03-18 | AZ38: 2021-03-21 | BA38: 2021-03-24 | BB38: 2021-03-19 | BC38: 2021-03-22 | BD38: 2021-03-20 | BE38: 2021-03-23 | BF38: 2021-03-27 | BG38: 2021-03-22 | BH38: 2021-03-25 | BI38: 2021-03-28 | BJ38: 2021-03-24 | BK38: 2021-03-28 | BM38: 2021-03-24 | BN38: 2021-03-27 | BP38: 2021-03-25 | BQ38: 2021-03-28 | BR38: 2021-03-31 | BS38: 2021-03-31 | BT38: 2021-04-04 | BU38: 2021-04-08 | BV38: 2021-04-01 | BW38: 2021-04-04 | BX38: 2021-04-01 | BY38: 2021-04-04 | CD38: 2021-04-04 | CE38: 2021-04-07 | CF38: 2021-04-10 | CG38: 2021-04-04 | CH38: 2021-04-07 | CJ38: 2021-04-05 | CK38: 2021-04-08 | CL38: 2021-04-07 | CM38: 2021-04-10 | CN38: 2022-04-07 | CO38: 2022-04-10 | CP38: 2021-04-09 | CQ38: 2021-04-12 | CR38: 2021-04-15 | CS38: 2021-04-20 | CT38: 2021-05-02 | CU38: 2021-05-05 | CV38: 2021-05-15 | CX38: 2021-07-25 | CY38: 2021-07-29
A39: 37 | B39: 2020-12-11 | D39: 2021-01-17 | F39: 2022-01-20 | H39: 2021-01-22 | K39: 2021-02-08 | L39: 2021-02-06 | M39: 2021-02-09 | N39: 2021-02-07 | O39: 2021-02-10 | S39: 2021-02-20 | T39: 2021-02-23 | U39: 2021-02-26 | V39: 2021-03-01 | X39: 2021-03-01 | Y39: 2021-03-04 | Z39: 2021-03-07 | AA39: 2021-03-04 | AH39: 2021-03-11 | AI39: 2021-03-14 | AJ39: 2021-03-11 | AM39: 2021-03-14 | AN39: 2021-03-17 | AO39: 2021-03-20 | AP39: 2021-03-16 | AQ39: 2021-03-19 | AS39: 2021-03-17 | AT39: 2021-03-20 | AV39: 2021-03-19 | AW39: 2021-03-22 | AY39: 2021-03-19 | AZ39: 2021-03-22 | BB39: 2021-03-20 | BD39: 2021-03-21 | BG39: 2021-03-23 | BH39: 2021-03-26 | BJ39: 2021-03-25 | BM39: 2021-03-25 | BP39: 2021-03-26 | BQ39: 2021-03-29 | BR39: 2021-04-01 | BS39: 2021-04-01 | BT39: 2021-04-05 | BV39: 2021-04-02 | BX39: 2021-04-02 | CD39: 2021-04-05 | CE39: 2021-04-08 | CG39: 2021-04-05 | CH39: 2021-04-08 | CJ39: 2021-04-06 | CK39: 2021-04-09 | CL39: 2021-04-08 | CM39: 2021-04-11 | CN39: 2022-04-08 | CP39: 2021-04-10 | CQ39: 2021-04-13 | CR39: 2021-04-16 | CS39: 2021-04-21 | CT39: 2021-05-03 | CX39: 2021-07-26 | CY39: 2021-07-30
A40: 38 | B40: 2020-12-12 | F40: 2022-01-21 | H40: 2021-01-23 | K40: 2021-02-09 | L40: 2021-02-07 | M40: 2021-02-10 | N40: 2021-02-08 | O40: 2021-02-11 | T40: 2021-02-24 | U40: 2021-02-27 | V40: 2021-03-02 | X40: 2021-03-02 | Z40: 2021-03-08 | AA40: 2021-03-05 | AH40: 2021-03-12 | AI40: 2021-03-15 | AM40: 2021-03-15 | AN40: 2021-03-18 | AP40: 2021-03-17 | AQ40: 2021-03-20 | AS40: 2021-03-18 | AT40: 2021-03-21 | AV40: 2021-03-20 | AY40: 2021-03-20 | BD40: 2021-03-22 | BG40: 2021-03-24 | BJ40: 2021-03-26 | BP40: 2021-03-27 | BQ40: 2021-03-30 | BR40: 2021-04-02 | BS40: 2021-04-02 | BV40: 2021-04-03 | BX40: 2021-04-03 | CD40: 2021-04-06 | CG40: 2021-04-06 | CJ40: 2021-04-07 | CK40: 2021-04-10 | CL40: 2021-04-09 | CM40: 2021-04-12 | CP40: 2021-04-11 | CQ40: 2021-04-14 | CR40: 2021-04-17 | CS40: 2021-04-22 | CT40: 2021-05-04 | CX40: 2021-07-27 | CY40: 2021-07-31
A41: 39 | B41: 2020-12-13 | L41: 2021-02-08 | M41: 2021-02-11 | N41: 2021-02-09 | O41: 2021-02-12 | T41: 2021-02-25 | U41: 2021-02-28 | X41: 2021-03-03 | Z41: 2021-03-09 | AH41: 2021-03-13 | AI41: 2021-03-16 | AM41: 2021-03-16 | AP41: 2021-03-18 | AQ41: 2021-03-21 | AS41: 2021-03-19 | AT41: 2021-03-22 | AV41: 2021-03-21 | AY41: 2021-03-21 | BD41: 2021-03-23 | BP41: 2021-03-28 | BQ41: 2021-03-31 | BR41: 2021-04-03 | BS41: 2021-04-03 | BX41: 2021-04-04 | CD41: 2021-04-07 | CG41: 2021-04-07 | CK41: 2021-04-11 | CL41: 2021-04-10 | CM41: 2021-04-13 | CP41: 2021-04-12 | CS41: 2021-04-23 | CX41: 2021-07-28
A42: 40 | B42: 2020-12-14 | M42: 2021-02-12 | N42: 2021-02-10 | O42: 2021-02-13 | T42: 2021-02-26 | U42: 2021-03-01 | X42: 2021-03-04 | Z42: 2021-03-10 | AI42: 2021-03-17 | AM42: 2021-03-17 | AP42: hatch | AQ42: 2021-03-22 | AS42: hatch | AT42: 2021-03-23 | BG42: dates approx | BP42: 2021-03-29 | BR42: 2021-04-04 | BS42: 2021-04-04 | CD42: 2021-04-08 | CK42: 2021-04-12 | CL42: 2021-04-11 | CM42: 2021-04-14 | CP42: 2021-04-13 | CS42: 2021-04-24 | CX42: 2021-07-29
A43: 41 | AP43: failed | AS43: failed
A44: 42 | J44: no hatch | M44: no hatch | O44: no hatch | U44: no hatch | Z44: no hatch | AI44: no hatch | AJ44: ravens took the eggs 3/11 | AQ44: no hatch | AT44: no hatch | BR44: no hatch | CD44: no hatch | CP44: no hatch
A45: 43
A46: 44
A47: 45
A48: 46
A49: 47
A50: 48
A51: 49
A52: 50
A53: 51
A54: 52
A55: 53
A56: 54
A57: 55
A58: 56
A59: 57
A60: 58
A61: 59

Sheet EagletAge
A1: code | B1: nest | C1: name/"forum nickname" | D1: hatch | E1: sort | F1: day | G1: days | H1: weeks
A2: FLsw-1 | B2: sw florida | C2: E17 | D2: 2021-01-23 | E2: =WEEKDAY(D2) -> 7 | F2: =TEXT(D2, "ddd") -> Sat | G2: =TODAY() - D2 -> 411 | H2: =INT(G2)/7 -> 58.71428571
A3: FLsw-2 | B3: sw florida | C3: E18 | D3: 2021-01-23 | E3: =WEEKDAY(D3) -> 7 | F3: =TEXT(D3, "ddd") -> Sat | G3: =TODAY() - D3 -> 411 | H3: =INT(G3)/7 -> 58.71428571
A4: FLne-1 | B4: ne florida | C4: NE24/Legacy | D4: 2021-02-08 | E4: 2 | F4: Mon | G4: 395 | H4: 56.42857143
A5: LAma-1 | B5: metro aviation | D5: 2021-02-09 | E5: 3 | F5: Tue | G5: 394 | H5: 56.28571429
A6: VA-1 | B6: norfolk | D6: 2021-02-20 | E6: =WEEKDAY(D6) -> 7 | F6: =TEXT(D6, "ddd") -> Sat | G6: =TODAY() - D6 -> 383 | H6: =INT(G6)/7 -> 54.71428571
A7: VA-2 | B7: norfolk | C7: date approx | D7: 2021-02-22 | E7: =WEEKDAY(D7) -> 2 | F7: =TEXT(D7, "ddd") -> Mon | G7: =TODAY() - D7 -> 381 | H7: =INT(G7)/7 -> 54.42857143
A8: LAknf-1 | B8: kisatchie natl forest | C8: Kisatchie | D8: 2021-02-23 | E8: =WEEKDAY(D8) -> 3 | F8: =TEXT(D8, "ddd") -> Tue | G8: =TODAY() - D8 -> 380 | H8: =INT(G8)/7 -> 54.28571429
A9: NJ-1 | B9: duke farms | D9: 2021-02-26 | E9: =WEEKDAY(D9) -> 6 | F9: =TEXT(D9, "ddd") -> Fri | G9: =TODAY() - D9 -> 377 | H9: =INT(G9)/7 -> 53.85714286
A10: NJ-2 | B10: duke farms | D10: 2021-03-02 | E10: 3 | F10: Tue | G10: 373 | H10: 53.28571429
A11: TNhb-1 | B11: harrison bay | D11: 2021-03-04 | E11: 5 | F11: Thu | G11: 371 | H11: 53
A12: TNhb-2 | B12: harrison bay | D12: 2021-03-04 | E12: 5 | F12: Thu | G12: 371 | H12: 53
A13: TNbc-1 | B13: bluff city | D13: 2021-03-05 | E13: 6 | F13: Fri | G13: 370 | H13: 52.85714286
A14: TNbc-2 | B14: bluff city | D14: 2021-03-06 | E14: 7 | F14: Sat | G14: 369 | H14: 52.71428571
A15: PAh-1 | B15: hanover | C15: Patience | D15: 2021-03-13 | E15: 7 | F15: Sat | G15: 362 | H15: 51.71428571
A16: CAsc-1 | B16: sauces canyon | C16: 13/D (F?)/Dina | D16: 2021-03-15 | E16: 2 | F16: Mon | G16: 360 | H16: 51.42857143
A17: PAfc-1 | B17: farm country | D17: 2021-03-17 | E17: =WEEKDAY(D17) -> 4 | F17: =TEXT(D17, "ddd") -> Wed | G17: =TODAY() - D17 -> 358 | H17: =INT(G17)/7 -> 51.14285714
A18: PAfc-2 | B18: farm country | C18: date approx | D18: 2021-03-18 | E18: =WEEKDAY(D18) -> 5 | F18: =TEXT(D18, "ddd") -> Thu | G18: =TODAY() - D18 -> 357 | H18: =INT(G18)/7 -> 51
A19: WV-2 | B19: NCTC | C19: E5/Talon | D19: 2021-03-20 | E19: =WEEKDAY(D19) -> 7 | F19: =TEXT(D19, "ddd") -> Sat | G19: =TODAY() - D19 -> 355 | H19: =INT(G19)/7 -> 50.71428571
A20: PAfc-3 | B20: farm country | C20: date approx | D20: 2021-03-20 | E20: =WEEKDAY(D20) -> 7 | F20: =TEXT(D20, "ddd") -> Sat | G20: =TODAY() - D20 -> 355 | H20: =INT(G20)/7 -> 50.71428571
A21: CAred-1 | B21: redding | C21: Honor | D21: 2021-03-21 | E21: 1 | F21: Sun | G21: 354 | H21: 50.57142857
A22: WV-2 | B22: NCTC | C22: E6/Spirit | D22: 2021-03-22 | E22: 2 | F22: Mon | G22: 353 | H22: 50.42857143
A23: TNjc-2 | B23: johnson city | C23: JC18 | D23: 2021-03-22 | E23: 2 | F23: Mon | G23: 353 | H23: 50.42857143
A24: CAred-2 | B24: redding | C24: Glory | D24: 2021-03-22 | E24: =WEEKDAY(D24) -> 2 | F24: =TEXT(D24, "ddd") -> Mon | G24: =TODAY() - D24 -> 353 | H24: =INT(G24)/7 -> 50.42857143
A25: PAhay-1 | B25: pittsburgh hays | C25: H13 | D25: 2021-03-23 | E25: 3 | F25: Tue | G25: 352 | H25: 50.28571429
A26: PAhay-2 | B26: pittsburgh hays | C26: H14 | D26: 2021-03-23 | E26: 3 | F26: Tue | G26: 352 | H26: 50.28571429
A27: CAred-3 | B27: redding | C27: Rebel | D27: 2021-03-24 | E27: 4 | F27: Wed | G27: 351 | H27: 50.14285714
A28: IL-1 | B28: upper miss river-trio | C28: date approx | D28: 2021-03-24 | E28: 4 | F28: Wed | G28: 351 | H28: 50.14285714
A29: TNjc-3 | B29: johnson city | C29: JC19 | D29: 2021-03-24 | E29: =WEEKDAY(D29) -> 4 | F29: =TEXT(D29, "ddd") -> Wed | G29: =TODAY() - D29 -> 351 | H29: =INT(G29)/7 -> 50.14285714
A30: IAdn-1 | B30: decorah north | C30: DN13 | D30: 2021-03-25 | E30: =WEEKDAY(D30) -> 5 | F30: =TEXT(D30, "ddd") -> Thu | G30: =TODAY() - D30 -> 350 | H30: =INT(G30)/7 -> 50
A31: MNdnr-1 | B31: mn dnr | D31: 2021-03-26 | E31: 6 | F31: Fri | G31: 349 | H31: 49.85714286
A32: IL-2 | B32: upper miss river-trio | C32: date approx | D32: 2021-03-26 | E32: =WEEKDAY(D32) -> 6 | F32: =TEXT(D32, "ddd") -> Fri | G32: =TODAY() - D32 -> 349 | H32: =INT(G32)/7 -> 49.85714286
A33: IAdn-2 | B33: decorah north | C33: DN14 | D33: 2021-03-27 | E33: =WEEKDAY(D33) -> 7 | F33: =TEXT(D33, "ddd") -> Sat | G33: =TODAY() - D33 -> 348 | H33: =INT(G33)/7 -> 49.71428571
A34: PAhay-3 | B34: pittsburgh hays | C34: H15 | D34: 2021-03-27 | E34: 7 | F34: =TEXT(D34, "ddd") -> Sat | G34: =TODAY() - D34 -> 348 | H34: 49.71428571
A35: MNdnr-2 | B35: mn dnr | D35: 2021-03-28 | E35: =WEEKDAY(D35) -> 1 | F35: =TEXT(D35, "ddd") -> Sun | G35: =TODAY() - D35 -> 347 | H35: =INT(G35)/7 -> 49.57142857
A36: IL-3 | B36: upper miss river-trio | C36: date approx | D36: 2021-03-28 | E36: =WEEKDAY(D36) -> 1 | F36: =TEXT(D36, "ddd") -> Sun | G36: =TODAY() - D36 -> 347 | H36: =INT(G36)/7 -> 49.57142857
A37: INnd-1 | B37: notre dame | C37: ND13 | D37: 2021-03-29 | E37: 2 | F37: Mon | G37: 346 | H37: 49.42857143
A38: INnd-2 | B38: notre dame | C38: ND14 | D38: 2021-03-31 | E38: 4 | F38: Wed | G38: 344 | H38: 49.14285714
A39: BCsr-1 | B39: surrey reserve | C39: SR5/Tiku | D39: 2021-04-03 | E39: 7 | F39: Sat | G39: 341 | H39: 48.71428571
A40: OHal-1 | B40: avon lake | C40: R17/Freedom | D40: 2021-04-04 | E40: 1 | F40: Sun | G40: 340 | H40: 48.57142857
A41: BCsr-2 | B41: surrey reserve | C41: SR6/Tucca | D41: 2021-04-04 | E41: 1 | F41: Sun | G41: 340 | H41: 48.57142857
A42: IA-1 | B42: decorah | C42: D36 | D42: 2021-04-04 | E42: =WEEKDAY(D42) -> 1 | F42: =TEXT(D42, "ddd") -> Sun | G42: =TODAY() - D42 -> 340 | H42: =INT(G42)/7 -> 48.57142857
A43: IA-2 | B43: decorah | C43: D37 | D43: 2021-04-04 | E43: =WEEKDAY(D43) -> 1 | F43: =TEXT(D43, "ddd") -> Sun | G43: =TODAY() - D43 -> 340 | H43: =INT(G43)/7 -> 48.57142857
A44: OHal-2 | B44: avon lake | C44: R18/Bravery | D44: 2021-04-05 | E44: 2 | F44: Mon | G44: 339 | H44: 48.42857143
A45: IA-3 | B45: decorah | C45: D38 | D45: 2021-04-06 | E45: =WEEKDAY(D45) -> 3 | F45: =TEXT(D45, "ddd") -> Tue | G45: =TODAY() - D45 -> 338 | H45: =INT(G45)/7 -> 48.28571429
A46: CAth-1 | B46: two harbors | C46: 16D/Toyon | D46: 2021-04-07 | E46: =WEEKDAY(D46) -> 4 | F46: =TEXT(D46, "ddd") -> Wed | G46: =TODAY() - D46 -> 337 | H46: =INT(G46)/7 -> 48.14285714
A47: OHal-3 | B47: avon lake | C47: R19/Mighty | D47: 2021-04-08 | E47: 5 | F47: Thu | G47: 336 | H47: 48
A48: BCd2-1 | B48: delta 2 | C48: Hope | D48: 2021-04-08 | E48: 5 | F48: Thu | G48: 336 | H48: 48
A49: BCd2-2 | B49: delta 2 | C49: Chase | D49: 2021-04-10 | E49: 7 | F49: Sat | G49: 334 | H49: 47.71428571
A50: MEpr-1 | B50: piscataquis river | C50: Milo | D50: 2021-04-13 | E50: 3 | F50: Tue | G50: 331 | H50: 47.28571429
A51: CO-2 | B51: fort st vrain | C51: FSV44 | D51: 2021-04-17 | E51: 7 | F51: Sat | G51: 327 | H51: 46.71428571
A52: BCh-1 | B52: hornby | D52: 2021-05-04 | E52: 3 | F52: Tue | G52: 310 | H52: 44.28571429
A53: BCh-2 | B53: hornby | D53: 2021-05-05 | E53: 4 | F53: Wed | G53: 309 | H53: 44.14285714
A54: BCwr-1 | B54: white rock | C54: Romeo | D54: 2021-05-15 | E54: =WEEKDAY(D54) -> 7 | F54: =TEXT(D54, "ddd") -> Sat | G54: =TODAY() - D54 -> 299 | H54: =INT(G54)/7 -> 42.71428571
A55: AKgg-1 | B55: glacier garden | C55: date approx | D55: 2021-05-27 | E55: =WEEKDAY(D55) -> 5 | F55: =TEXT(D55, "ddd") -> Thu | G55: =TODAY() - D55 -> 287 | H55: =INT(G55)/7 -> 41
A56: PAh-2 | B56: hanover | E56: 7 | F56: Sat | G56: 44630 | H56: 6375.714286
A57: FLec-1 | B57: eagle country | E57: 7 | F57: Sat | G57: 44630 | H57: 6375.714286
A58: FLec-2 | B58: eagle country | E58: 7 | F58: Sat | G58: 44630 | H58: 6375.714286
A59: FLne-2 | B59: ne florida | E59: 7 | F59: Sat | G59: 44630 | H59: 6375.714286
A60: TNdh-2 | B60: dale hollow | E60: =WEEKDAY(D60) -> 7 | F60: =TEXT(D60, "ddd") -> Sat | G60: =TODAY() - D60 -> 44630 | H60: =INT(G60)/7 -> 6375.714286
A61: TNdh-3 | B61: dale hollow | E61: 7 | F61: Sat | G61: 44630 | H61: 6375.714286
A62: TNbc-3 | B62: bluff city | E62: 7 | F62: Sat | G62: 44630 | H62: 6375.714286
A63: MDpt-1 | B63: port tobacco | E63: =WEEKDAY(D63) -> 7 | F63: =TEXT(D63, "ddd") -> Sat | G63: =TODAY() - D63 -> 44630 | H63: =INT(G63)/7 -> 6375.714286
A64: MDpt-2 | B64: port tobacco | E64: 7 | F64: Sat | G64: 44630 | H64: 6375.714286
A65: FLsw2-1 | B65: sw fl 2nd clutch | E65: =WEEKDAY(D65) -> 7 | F65: =TEXT(D65, "ddd") -> Sat | G65: =TODAY() - D65 -> 44630 | H65: =INT(G65)/7 -> 6375.714286
A66: FLsw2-2 | B66: sw fl 2nd clutch | E66: =WEEKDAY(D66) -> 7 | F66: =TEXT(D66, "ddd") -> Sat | G66: =TODAY() - D66 -> 44630 | H66: =INT(G66)/7 -> 6375.714286
A67: MTmc-1 | B67: miles city | E67: 7 | F67: Sat | G67: 44630 | H67: 6375.714286
A68: MTmc-2 | B68: miles city | E68: =WEEKDAY(D68) -> 7 | F68: =TEXT(D68, "ddd") -> Sat | G68: =TODAY() - D68 -> 44630 | H68: =INT(G68)/7 -> 6375.714286
A69: OHaa-1 | B69: aacs lakeside | E69: =WEEKDAY(D69) -> 7 | F69: =TEXT(D69, "ddd") -> Sat | G69: =TODAY() - D69 -> 44630 | H69: =INT(G69)/7 -> 6375.714286
A70: MTmc-3 | B70: miles city | E70: =WEEKDAY(D70) -> 7 | F70: =TEXT(D70, "ddd") -> Sat | G70: =TODAY() - D70 -> 44630 | H70: =INT(G70)/7 -> 6375.714286
A71: OHaa-2 | B71: aacs lakeside | E71: =WEEKDAY(D71) -> 7 | F71: =TEXT(D71, "ddd") -> Sat | G71: =TODAY() - D71 -> 44630 | H71: =INT(G71)/7 -> 6375.714286
A72: TNdw1-1 | B72: dollywood-g&g | E72: =WEEKDAY(D72) -> 7 | F72: =TEXT(D72, "ddd") -> Sat | G72: 44630 | H72: 6375.714286
A73: IAdav-1 | B73: davenport arconic | E73: 7 | F73: Sat | G73: 44630 | H73: 6375.714286
A74: IAdav-2 | B74: davenport arconic | E74: 7 | F74: Sat | G74: =TODAY() - D74 -> 44630 | H74: =INT(G74)/7 -> 6375.714286
A75: AKk-1 | B75: kenai | E75: =WEEKDAY(D75) -> 7 | F75: =TEXT(D75, "ddd") -> Sat | G75: 44630 | H75: 6375.714286
A76: OKseq-1 | B76: sequoyah | E76: 7 | F76: Sat | G76: =TODAY() - D76 -> 44630 | H76: =INT(G76)/7 -> 6375.714286
A77: GA-2 | B77: berry college | E77: 7 | F77: Sat | G77: =TODAY() - D77 -> 44630 | H77: =INT(G77)/7 -> 6375.714286
A78: CAfp-1 | B78: fraser point | E78: 7 | F78: Sat | G78: =TODAY() - D78 -> 44630 | H78: =INT(G78)/7 -> 6375.714286
A79: CAfp-2 | B79: fraser point | E79: 7 | F79: Sat | G79: =TODAY() - D79 -> 44630 | H79: =INT(G79)/7 -> 6375.714286
A80: CAfp-3 | B80: fraser point | E80: 7 | F80: Sat | G80: =TODAY() - D80 -> 44630 | H80: =INT(G80)/7 -> 6375.714286
A81: CAwe-1 | B81: west end | E81: 7 | F81: Sat | G81: 44630 | H81: 6375.714286
A82: CAwe-2 | B82: west end | E82: 7 | F82: Sat | G82: 44630 | H82: 6375.714286
A83: CAwe-3 | B83: west end | E83: 7 | F83: Sat | G83: 44630 | H83: 6375.714286
A84: IAdn-1 | B84: decorah north | E84: 7 | F84: Sat | G84: 44630 | H84: 6375.714286
A85: CAth-2 | B85: two harbors | E85: 7 | F85: Sat | G85: =TODAY() - D85 -> 44630 | H85: =INT(G85)/7 -> 6375.714286
A86: CAbb-1 | B86: big bear | E86: 7 | F86: Sat | G86: 44630 | H86: 6375.714286
A87: CAbc-1 | B87: bald canyon | E87: 7 | F87: Sat | G87: 44630 | H87: 6375.714286
A88: CAbc-2 | B88: bald canyon | E88: 7 | F88: Sat | G88: 44630 | H88: 6375.714286
A89: AKgg-2 | B89: glacier garden | E89: 7 | F89: Sat | G89: =TODAY() - D89 -> 44630 | H89: 6375.714286
A90: DC2-1 | B90: washington-police | E90: 7 | F90: Sat | G90: 44630 | H90: 6375.714286
A91: DC2-2 | B91: washington-police | E91: 7 | F91: Sat | G91: 44630 | H91: 6375.714286
A92: CAsc-2 | B92: sauces canyon | E92: 7 | F92: Sat | G92: 44630 | H92: 6375.714286
A93: CAsc-3 | B93: sauces canyon | E93: 7 | F93: Sat | G93: 44630 | H93: 6375.714286
A94: CO-3 | B94: fort st vrain | E94: 7 | F94: Sat | G94: 44630 | H94: 6375.714286
A95: PAhar-1 | B95: harmar | E95: 7 | F95: =TEXT(D95, "ddd") -> Sat | G95: =TODAY() - D95 -> 44630 | H95: =INT(G95)/7 -> 6375.714286
A96: PAhar-2 | B96: harmar | E96: 7 | F96: Sat | G96: 44630 | H96: 6375.714286
A97: DC1-1 | B97: washington-aef | E97: 7 | F97: Sat | G97: 44630 | H97: 6375.714286
A98: BCl-1 | B98: lafarge | E98: 7 | F98: Sat | G98: 44630 | H98: 6375.714286
A99: DC1-2 | B99: washington-aef | E99: 7 | F99: Sat | G99: 44630 | H99: 6375.714286
A100: BCl-2 | B100: lafarge | E100: 7 | F100: Sat | G100: 44630 | H100: 6375.714286
A101: CAsh-1 | B101: smuggler's harbor | E101: 7 | F101: =TEXT(D101, "ddd") -> Sat | G101: =TODAY() - D101 -> 44630 | H101: 6375.714286
A102: FLsw-2 | B102: sw florida | E102: 7 | F102: =TEXT(D102, "ddd") -> Sat | G102: 44630 | H102: 6375.714286
A103: CAlop-1 | B103: lopez | E103: =WEEKDAY(D103) -> 7 | F103: =TEXT(D103, "ddd") -> Sat | G103: 44630 | H103: 6375.714286
A104: CArc-1 | B104: rattlesnake canyon | E104: 7 | F104: Sat | G104: 44630 | H104: 6375.714286
A105: CAph-1 | B105: pelican harbor | E105: 7 | F105: Sat | G105: 44630 | H105: 6375.714286
A106: COsl-1 | B106: standley lake | E106: =WEEKDAY(D106) -> 7 | F106: =TEXT(D106, "ddd") -> Sat | G106: =TODAY() - D106 -> 44630 | H106: =INT(G106)/7 -> 6375.714286
A107: COsl-3 | B107: standley lake | E107: 7 | F107: Sat | G107: 44630 | H107: 6375.714286
A108: CAfh-1 | B108: fry's harbor | E108: 7 | F108: Sat | G108: 44630 | H108: 6375.714286
A109: CApr-1 | B109: pinnacle rock | E109: 7 | F109: Sat | G109: 44630 | H109: 6375.714286
A110: TN1-2 | B110: dollywood-e&r | E110: 7 | F110: Sat | G110: 44630 | H110: 6375.714286
A111: BCwr-2 | B111: white rock | E111: =WEEKDAY(D111) -> 7 | F111: =TEXT(D111, "ddd") -> Sat | G111: 44630 | H111: 6375.714286
A112: CAbh-1 | B112: baby's harbor | E112: =WEEKDAY(D112) -> 7 | F112: =TEXT(D112, "ddd") -> Sat | G112: 44630 | H112: 6375.714286
A113: CAbh-2 | B113: baby's harbor | E113: =WEEKDAY(D113) -> 7 | F113: =TEXT(D113, "ddd") -> Sat | G113: 44630 | H113: 6375.714286
A114: Afr-1 | B114: south africa | E114: =WEEKDAY(D114) -> 7 | F114: =TEXT(D114, "ddd") -> Sat | G114: =TODAY() - D114 -> 44630 | H114: =INT(G114)/7 -> 6375.714286
A115: Aus-1 | B115: australia | E115: 7 | F115: Sat | G115: 44630 | H115: 6375.714286
A116: BCs-1 | B116: sidney | E116: 7 | F116: Sat | G116: 44630 | H116: 6375.714286
A117: CAcv-1 | B117: cueva/hazards | E117: 7 | F117: Sat | G117: 44630 | H117: 6375.714286
A118: CAsr-1 | B118: seal rocks | E118: 7 | F118: Sat | G118: 44630 | H118: 6375.714286
A119: CAtc-1 | B119: trap canyon | E119: 7 | F119: Sat | G119: 44630 | H119: 6375.714286
A120: CAtc-2 | B120: trap canyon | E120: 7 | F120: Sat | G120: 44630 | H120: 6375.714286
A121: YT-1 | B121: yukon | E121: =WEEKDAY(D121) -> 7 | F121: =TEXT(D121, "ddd") -> Sat | G121: =TODAY() - D121 -> 44630 | H121: =INT(G121)/7 -> 6375.714286
A122: YT-2 | B122: yukon | E122: =WEEKDAY(D122) -> 7 | F122: =TEXT(D122, "ddd") -> Sat | G122: =TODAY() - D122 -> 44630 | H122: =INT(G122)/7 -> 6375.714286
A123: YT-3 | B123: yukon | E123: =WEEKDAY(D123) -> 7 | F123: =TEXT(D123, "ddd") -> Sat | G123: =TODAY() - D123 -> 44630 | H123: =INT(G123)/7 -> 6375.714286
B124: ~ = approx age; ≤ = on or before
B125: dates in dark orange are very approximate
D129: hatched | F129: died | G129: age | H129: age-wk
A130: FLcap-2 | B130: captiva | C130: Peace | D130: 2020-12-14 | E130: =WEEKDAY(D130) -> 2 | F130: 2021-01-14 | G130: =F130-D130 -> 31 | H130: =INT(G130)/7 -> 4.428571429
A131: TXweb-1 | B131: webster | C131: Belle Starr | D131: 2021-01-17 | E131: =WEEKDAY(D131) -> 1 | F131: 2021-01-20 | G131: 3 | H131: 0.4285714286
A132: TXweb-2 | B132: webster | C132: Sundance | D132: 2021-01-18 | E132: 2 | F132: 2021-01-20 | G132: 2 | H132: 0.2857142857
A133: TXjbs-1 | B133: seagoville | C133: JBS14 | D133: 2021-01-21 | E133: 5 | F133: 2021-01-23 | G133: 2 | H133: 0.2857142857
A134: FLcap-1 | B134: captiva | C134: Hope | D134: 2020-12-14 | E134: =WEEKDAY(D134) -> 2 | F134: 2021-01-24 | G134: =F134-D134 -> 41 | H134: =INT(G134)/7 -> 5.857142857
A135: GA-1 | B135: berry college | D135: 2021-02-10 | E135: 4 | F135: 2021-02-11 | G135: 1 | H135: 0.1428571429
A136: TNjc-1 | B136: johnson city | C136: JC17 | D136: 2021-03-21 | E136: 1 | F136: 2021-03-23 | G136: 2 | H136: =INT(G136)/7 -> 0.2857142857
A137: CO-1 | B137: fort st vrain | C137: FSV43 | D137: 2021-04-14 | E137: =WEEKDAY(D137) -> 4 | F137: 2021-04-15 | G137: 1 | H137: =INT(G137)/7 -> 0.1428571429
A138: COsl-1 | B138: standley lake | C138: SL1 | D138: 2021-04-07 | E138: =WEEKDAY(D138) -> 4 | F138: 2021-05-13 | G138: =F138-D138 -> 36 | H138: 5.142857143
E139: 7 | G139: =F139-D139 -> 0 | H139: 0
E140: 7 | G140: =F140-D140 -> 0 | H140: =INT(G140)/7 -> 0

Sheet Sheet1
